{"text_format":"2","workbook":"xlsx","n_sheets":2,"sheets":["Osoby z kontaktu","Słownik"],"not_rendered":{"charts":0,"images":0,"macros":0,"external_links":0,"defined_names":1,"comments":0,"pivot_tables":0},"unopened":[],"bounds":{"document_bytes":16777216,"sheet_cells":100000,"run_cost":"one","rows_first":2000,"rows_last":500,"rows_between":2000,"halvings":0,"cell_chars":16384,"cell_head_chars":4096},"cells_cut":0,"cells_raw":0,"read":"whole","date_system":"1900"}

{"sheet":"Osoby z kontaktu","index":0,"n_rows":61,"n_cols":14,"rows_kept":61,"cut":false,"hidden":false,"merged":[[0,11,0,13]]}
[{"$nulls":11},"Załącznik nr 1 do pisma okólnego nr 9/2021 \nRektora Uniwersytetu Przyrodniczego we Wrocławiu \nz dnia 29 grudnia 2021 r. "]
["Lp.","Imię","Nazwisko","Data ostatniego kontaktu z osobą zakażoną","PESEL\ndla osoby bez nr PESEL pozostaw puste","Ulica","Nr domu","Nr mieszkania","Kod pocztowy","Województwo","Powiat","Gmina","Miejscowość","Telefon kontaktowy\n(dla osoby nieletniej opiekuna prawnego)\nbez kierunkowego kraju"]
[2.0,{"$nulls":8},"wybierz","-","-"]
[3.0,{"$nulls":8},"wybierz","-","-"]
[4.0,{"$nulls":8},"wybierz","-","-"]
[5.0,{"$nulls":8},"wybierz","-","-"]
[6.0,{"$nulls":8},"wybierz","-","-"]
[7.0,{"$nulls":8},"wybierz","-","-"]
[8.0,{"$nulls":8},"wybierz","-","-"]
[9.0,{"$nulls":8},"wybierz","-","-"]
[10.0,{"$nulls":8},"wybierz","-","-"]
[11.0,{"$nulls":8},"wybierz","-","-"]
[12.0,{"$nulls":8},"wybierz","-","-"]
[13.0,{"$nulls":8},"wybierz","-","-"]
[14.0,{"$nulls":8},"wybierz","-","-"]
[15.0,{"$nulls":8},"wybierz","-","-"]
[16.0,{"$nulls":8},"wybierz","-","-"]
[17.0,{"$nulls":8},"wybierz","-","-"]
[18.0,{"$nulls":8},"wybierz","-","-"]
[19.0,{"$nulls":8},"wybierz","-","-"]
[20.0,{"$nulls":8},"wybierz","-","-"]
[21.0,{"$nulls":8},"wybierz","-","-"]
[22.0,{"$nulls":8},"wybierz","-","-"]
[23.0,{"$nulls":8},"wybierz","-","-"]
[24.0,{"$nulls":8},"wybierz","-","-"]
[25.0,{"$nulls":8},"wybierz","-","-"]
[26.0,{"$nulls":8},"wybierz","-","-"]
[27.0,{"$nulls":8},"wybierz","-","-"]
[28.0,{"$nulls":8},"wybierz","-","-"]
[29.0,{"$nulls":8},"wybierz","-","-"]
[30.0,{"$nulls":8},"wybierz","-","-"]
[31.0,{"$nulls":8},"wybierz","-","-"]
[32.0,{"$nulls":8},"wybierz","-","-"]
[33.0,{"$nulls":8},"wybierz","-","-"]
[34.0,{"$nulls":8},"wybierz","-","-"]
[35.0,{"$nulls":8},"wybierz","-","-"]
[36.0,{"$nulls":8},"wybierz","-","-"]
[37.0,{"$nulls":8},"wybierz","-","-"]
[38.0,{"$nulls":8},"wybierz","-","-"]
[39.0,{"$nulls":8},"wybierz","-","-"]
[40.0,{"$nulls":8},"wybierz","-","-"]
[41.0,{"$nulls":8},"wybierz","-","-"]
[42.0,{"$nulls":8},"wybierz","-","-"]
[43.0,{"$nulls":8},"wybierz","-","-"]
[44.0,{"$nulls":8},"wybierz","-","-"]
[45.0,{"$nulls":8},"wybierz","-","-"]
[46.0,{"$nulls":8},"wybierz","-","-"]
[47.0,{"$nulls":8},"wybierz","-","-"]
[48.0,{"$nulls":8},"wybierz","-","-"]
[49.0,{"$nulls":8},"wybierz","-","-"]
[50.0,{"$nulls":8},"wybierz","-","-"]
[51.0,{"$nulls":8},"wybierz","-","-"]
[52.0,{"$nulls":8},"wybierz","-","-"]
[53.0,{"$nulls":8},"wybierz","-","-"]
[54.0,{"$nulls":8},"wybierz","-","-"]
[55.0,{"$nulls":8},"wybierz","-","-"]
[56.0,{"$nulls":8},"wybierz","-","-"]
[57.0,{"$nulls":8},"wybierz","-","-"]
[58.0,{"$nulls":8},"wybierz","-","-"]
[59.0,{"$nulls":8},"wybierz","-","-"]
[60.0,{"$nulls":8},"wybierz","-","-"]

{"sheet":"Słownik","index":1,"n_rows":2338,"n_cols":10,"rows_kept":2338,"cut":false,"hidden":true,"merged":[]}
["woj","powiat","gmina"]
[{"$f":"INDEX('Osoby z kontaktu'!J3:J62,MATCH(\"wybierz\",'Osoby z kontaktu'!J3:J62,)-1)","v":"#REF!"},{"$f":"INDEX('Osoby z kontaktu'!K3:K62,MATCH(\"-\",'Osoby z kontaktu'!K3:K62,)-1)","v":"-"}]
[{"$nulls":9},"wybierz"]
["woj","powiat","gmina","Powiat_Lista","Powiaty_wybor","Gmina_Lista","Gmina_wybor",null,null,"DOLNOŚLĄSKIE"]
["DOLNOŚLĄSKIE","bolesławiecki","Bolesławiec",{"$f":"IF($A$2=A5,B5,\"-\")","v":"#REF!"},{"$f":"IFERROR(INDEX($D$5:$D$2272,MATCH(0,COUNTIF($E$4:E4,$D$5:$D$2272),0)),\"\")","v":""},{"$f":"IF(AND(A5=$A$2,D5=$B$2),C5,\"-\")","v":"#REF!"},{"$f":"IFERROR(INDEX($F$5:$F$2272,MATCH(0,COUNTIF($G$4:G4,$F$5:$F$2272),0)),\"\")","v":""},null,null,"KUJAWSKO-POMORSKIE"]
["DOLNOŚLĄSKIE","bolesławiecki","Gromadka","#REF!",{"$f":"IFERROR(INDEX($D$5:$D$2272,MATCH(0,COUNTIF($E$4:E5,$D$5:$D$2272),0)),\"\")","v":""},"#REF!",{"$f":"IFERROR(INDEX($F$5:$F$2272,MATCH(0,COUNTIF($G$4:G5,$F$5:$F$2272),0)),\"\")","v":""},null,null,"LUBELSKIE"]
["DOLNOŚLĄSKIE","bolesławiecki","Nowogrodziec","#REF!",{"$f":"IFERROR(INDEX($D$5:$D$2272,MATCH(0,COUNTIF($E$4:E6,$D$5:$D$2272),0)),\"\")","v":""},"#REF!",{"$f":"IFERROR(INDEX($F$5:$F$2272,MATCH(0,COUNTIF($G$4:G6,$F$5:$F$2272),0)),\"\")","v":""},null,null,"LUBUSKIE"]
["DOLNOŚLĄSKIE","bolesławiecki","Osiecznica","#REF!",{"$f":"IFERROR(INDEX($D$5:$D$2272,MATCH(0,COUNTIF($E$4:E7,$D$5:$D$2272),0)),\"\")","v":""},"#REF!",{"$f":"IFERROR(INDEX($F$5:$F$2272,MATCH(0,COUNTIF($G$4:G7,$F$5:$F$2272),0)),\"\")","v":""},null,null,"ŁÓDZKIE"]
["DOLNOŚLĄSKIE","bolesławiecki","Warta Bolesławiecka","#REF!",{"$f":"IFERROR(INDEX($D$5:$D$2272,MATCH(0,COUNTIF($E$4:E8,$D$5:$D$2272),0)),\"\")","v":""},"#REF!",{"$f":"IFERROR(INDEX($F$5:$F$2272,MATCH(0,COUNTIF($G$4:G8,$F$5:$F$2272),0)),\"\")","v":""},null,null,"MAŁOPOLSKIE"]
["DOLNOŚLĄSKIE","dzierżoniowski","Bielawa","#REF!",{"$f":"IFERROR(INDEX($D$5:$D$2272,MATCH(0,COUNTIF($E$4:E9,$D$5:$D$2272),0)),\"\")","v":""},"#REF!",{"$f":"IFERROR(INDEX($F$5:$F$2272,MATCH(0,COUNTIF($G$4:G9,$F$5:$F$2272),0)),\"\")","v":""},null,null,"MAZOWIECKIE"]
["DOLNOŚLĄSKIE","dzierżoniowski","Dzierżoniów","#REF!",{"$f":"IFERROR(INDEX($D$5:$D$2272,MATCH(0,COUNTIF($E$4:E10,$D$5:$D$2272),0)),\"\")","v":""},"#REF!",{"$f":"IFERROR(INDEX($F$5:$F$2272,MATCH(0,COUNTIF($G$4:G10,$F$5:$F$2272),0)),\"\")","v":""},null,null,"OPOLSKIE"]
["DOLNOŚLĄSKIE","dzierżoniowski","Łagiewniki","#REF!",{"$f":"IFERROR(INDEX($D$5:$D$2272,MATCH(0,COUNTIF($E$4:E11,$D$5:$D$2272),0)),\"\")","v":""},"#REF!",{"$f":"IFERROR(INDEX($F$5:$F$2272,MATCH(0,COUNTIF($G$4:G11,$F$5:$F$2272),0)),\"\")","v":""},null,null,"PODKARPACKIE"]
["DOLNOŚLĄSKIE","dzierżoniowski","Niemcza","#REF!",{"$f":"IFERROR(INDEX($D$5:$D$2272,MATCH(0,COUNTIF($E$4:E12,$D$5:$D$2272),0)),\"\")","v":""},"#REF!",{"$f":"IFERROR(INDEX($F$5:$F$2272,MATCH(0,COUNTIF($G$4:G12,$F$5:$F$2272),0)),\"\")","v":""},null,null,"PODLASKIE"]
["DOLNOŚLĄSKIE","dzierżoniowski","Pieszyce","#REF!",{"$f":"IFERROR(INDEX($D$5:$D$2272,MATCH(0,COUNTIF($E$4:E13,$D$5:$D$2272),0)),\"\")","v":""},"#REF!",{"$f":"IFERROR(INDEX($F$5:$F$2272,MATCH(0,COUNTIF($G$4:G13,$F$5:$F$2272),0)),\"\")","v":""},null,null,"POMORSKIE"]
["DOLNOŚLĄSKIE","dzierżoniowski","Piława Górna","#REF!",{"$f":"IFERROR(INDEX($D$5:$D$2272,MATCH(0,COUNTIF($E$4:E14,$D$5:$D$2272),0)),\"\")","v":""},"#REF!",{"$f":"IFERROR(INDEX($F$5:$F$2272,MATCH(0,COUNTIF($G$4:G14,$F$5:$F$2272),0)),\"\")","v":""},null,null,"ŚLĄSKIE"]
["DOLNOŚLĄSKIE","głogowski","Głogów","#REF!",{"$f":"IFERROR(INDEX($D$5:$D$2272,MATCH(0,COUNTIF($E$4:E15,$D$5:$D$2272),0)),\"\")","v":""},"#REF!",{"$f":"IFERROR(INDEX($F$5:$F$2272,MATCH(0,COUNTIF($G$4:G15,$F$5:$F$2272),0)),\"\")","v":""},null,null,"ŚWIĘTOKRZYSKIE"]
["DOLNOŚLĄSKIE","głogowski","Jerzmanowa","#REF!",{"$f":"IFERROR(INDEX($D$5:$D$2272,MATCH(0,COUNTIF($E$4:E16,$D$5:$D$2272),0)),\"\")","v":""},"#REF!",{"$f":"IFERROR(INDEX($F$5:$F$2272,MATCH(0,COUNTIF($G$4:G16,$F$5:$F$2272),0)),\"\")","v":""},null,null,"WARMIŃSKO-MAZURSKIE"]
["DOLNOŚLĄSKIE","głogowski","Kotla","#REF!",{"$f":"IFERROR(INDEX($D$5:$D$2272,MATCH(0,COUNTIF($E$4:E17,$D$5:$D$2272),0)),\"\")","v":""},"#REF!",{"$f":"IFERROR(INDEX($F$5:$F$2272,MATCH(0,COUNTIF($G$4:G17,$F$5:$F$2272),0)),\"\")","v":""},null,null,"WIELKOPOLSKIE"]
["DOLNOŚLĄSKIE","głogowski","Pęcław","#REF!",{"$f":"IFERROR(INDEX($D$5:$D$2272,MATCH(0,COUNTIF($E$4:E18,$D$5:$D$2272),0)),\"\")","v":""},"#REF!",{"$f":"IFERROR(INDEX($F$5:$F$2272,MATCH(0,COUNTIF($G$4:G18,$F$5:$F$2272),0)),\"\")","v":""},null,null,"ZACHODNIOPOMORSKIE"]
["DOLNOŚLĄSKIE","głogowski","Żukowice","#REF!",{"$f":"IFERROR(INDEX($D$5:$D$2272,MATCH(0,COUNTIF($E$4:E19,$D$5:$D$2272),0)),\"\")","v":""},"#REF!",{"$f":"IFERROR(INDEX($F$5:$F$2272,MATCH(0,COUNTIF($G$4:G19,$F$5:$F$2272),0)),\"\")","v":""}]
["DOLNOŚLĄSKIE","górowski","Góra","#REF!",{"$f":"IFERROR(INDEX($D$5:$D$2272,MATCH(0,COUNTIF($E$4:E20,$D$5:$D$2272),0)),\"\")","v":""},"#REF!",{"$f":"IFERROR(INDEX($F$5:$F$2272,MATCH(0,COUNTIF($G$4:G20,$F$5:$F$2272),0)),\"\")","v":""}]
["DOLNOŚLĄSKIE","górowski","Jemielno","#REF!",{"$f":"IFERROR(INDEX($D$5:$D$2272,MATCH(0,COUNTIF($E$4:E21,$D$5:$D$2272),0)),\"\")","v":""},"#REF!",{"$f":"IFERROR(INDEX($F$5:$F$2272,MATCH(0,COUNTIF($G$4:G21,$F$5:$F$2272),0)),\"\")","v":""}]
["DOLNOŚLĄSKIE","górowski","Niechlów","#REF!",{"$f":"IFERROR(INDEX($D$5:$D$2272,MATCH(0,COUNTIF($E$4:E22,$D$5:$D$2272),0)),\"\")","v":""},"#REF!",{"$f":"IFERROR(INDEX($F$5:$F$2272,MATCH(0,COUNTIF($G$4:G22,$F$5:$F$2272),0)),\"\")","v":""}]
["DOLNOŚLĄSKIE","górowski","Wąsosz","#REF!",{"$f":"IFERROR(INDEX($D$5:$D$2272,MATCH(0,COUNTIF($E$4:E23,$D$5:$D$2272),0)),\"\")","v":""},"#REF!",{"$f":"IFERROR(INDEX($F$5:$F$2272,MATCH(0,COUNTIF($G$4:G23,$F$5:$F$2272),0)),\"\")","v":""}]
["DOLNOŚLĄSKIE","jaworski","Bolków","#REF!",{"$f":"IFERROR(INDEX($D$5:$D$2272,MATCH(0,COUNTIF($E$4:E24,$D$5:$D$2272),0)),\"\")","v":""},"#REF!",{"$f":"IFERROR(INDEX($F$5:$F$2272,MATCH(0,COUNTIF($G$4:G24,$F$5:$F$2272),0)),\"\")","v":""}]
["DOLNOŚLĄSKIE","jaworski","Jawor","#REF!",{"$f":"IFERROR(INDEX($D$5:$D$2272,MATCH(0,COUNTIF($E$4:E25,$D$5:$D$2272),0)),\"\")","v":""},"#REF!",{"$f":"IFERROR(INDEX($F$5:$F$2272,MATCH(0,COUNTIF($G$4:G25,$F$5:$F$2272),0)),\"\")","v":""}]
["DOLNOŚLĄSKIE","jaworski","Męcinka","#REF!",{"$f":"IFERROR(INDEX($D$5:$D$2272,MATCH(0,COUNTIF($E$4:E26,$D$5:$D$2272),0)),\"\")","v":""},"#REF!",{"$f":"IFERROR(INDEX($F$5:$F$2272,MATCH(0,COUNTIF($G$4:G26,$F$5:$F$2272),0)),\"\")","v":""}]
["DOLNOŚLĄSKIE","jaworski","Mściwojów","#REF!",{"$f":"IFERROR(INDEX($D$5:$D$2272,MATCH(0,COUNTIF($E$4:E27,$D$5:$D$2272),0)),\"\")","v":""},"#REF!",{"$f":"IFERROR(INDEX($F$5:$F$2272,MATCH(0,COUNTIF($G$4:G27,$F$5:$F$2272),0)),\"\")","v":""}]
["DOLNOŚLĄSKIE","jaworski","Paszowice","#REF!",{"$f":"IFERROR(INDEX($D$5:$D$2272,MATCH(0,COUNTIF($E$4:E28,$D$5:$D$2272),0)),\"\")","v":""},"#REF!",{"$f":"IFERROR(INDEX($F$5:$F$2272,MATCH(0,COUNTIF($G$4:G28,$F$5:$F$2272),0)),\"\")","v":""}]
["DOLNOŚLĄSKIE","jaworski","Wądroże Wielkie","#REF!",{"$f":"IFERROR(INDEX($D$5:$D$2272,MATCH(0,COUNTIF($E$4:E29,$D$5:$D$2272),0)),\"\")","v":""},"#REF!",{"$f":"IFERROR(INDEX($F$5:$F$2272,MATCH(0,COUNTIF($G$4:G29,$F$5:$F$2272),0)),\"\")","v":""}]
["DOLNOŚLĄSKIE","Jelenia Góra","Jelenia Góra","#REF!",{"$f":"IFERROR(INDEX($D$5:$D$2272,MATCH(0,COUNTIF($E$4:E30,$D$5:$D$2272),0)),\"\")","v":""},"#REF!",{"$f":"IFERROR(INDEX($F$5:$F$2272,MATCH(0,COUNTIF($G$4:G30,$F$5:$F$2272),0)),\"\")","v":""}]
["DOLNOŚLĄSKIE","jeleniogórski","Janowice Wielkie","#REF!",{"$f":"IFERROR(INDEX($D$5:$D$2272,MATCH(0,COUNTIF($E$4:E31,$D$5:$D$2272),0)),\"\")","v":""},"#REF!",{"$f":"IFERROR(INDEX($F$5:$F$2272,MATCH(0,COUNTIF($G$4:G31,$F$5:$F$2272),0)),\"\")","v":""}]
["DOLNOŚLĄSKIE","jeleniogórski","Jeżów Sudecki","#REF!",{"$f":"IFERROR(INDEX($D$5:$D$2272,MATCH(0,COUNTIF($E$4:E32,$D$5:$D$2272),0)),\"\")","v":""},"#REF!",{"$f":"IFERROR(INDEX($F$5:$F$2272,MATCH(0,COUNTIF($G$4:G32,$F$5:$F$2272),0)),\"\")","v":""}]
["DOLNOŚLĄSKIE","jeleniogórski","Karpacz","#REF!",{"$f":"IFERROR(INDEX($D$5:$D$2272,MATCH(0,COUNTIF($E$4:E33,$D$5:$D$2272),0)),\"\")","v":""},"#REF!",{"$f":"IFERROR(INDEX($F$5:$F$2272,MATCH(0,COUNTIF($G$4:G33,$F$5:$F$2272),0)),\"\")","v":""}]
["DOLNOŚLĄSKIE","jeleniogórski","Kowary","#REF!",{"$f":"IFERROR(INDEX($D$5:$D$2272,MATCH(0,COUNTIF($E$4:E34,$D$5:$D$2272),0)),\"\")","v":""},"#REF!",{"$f":"IFERROR(INDEX($F$5:$F$2272,MATCH(0,COUNTIF($G$4:G34,$F$5:$F$2272),0)),\"\")","v":""}]
["DOLNOŚLĄSKIE","jeleniogórski","Mysłakowice","#REF!",{"$f":"IFERROR(INDEX($D$5:$D$2272,MATCH(0,COUNTIF($E$4:E35,$D$5:$D$2272),0)),\"\")","v":""},"#REF!",{"$f":"IFERROR(INDEX($F$5:$F$2272,MATCH(0,COUNTIF($G$4:G35,$F$5:$F$2272),0)),\"\")","v":""}]
["DOLNOŚLĄSKIE","jeleniogórski","Piechowice","#REF!",{"$f":"IFERROR(INDEX($D$5:$D$2272,MATCH(0,COUNTIF($E$4:E36,$D$5:$D$2272),0)),\"\")","v":""},"#REF!",{"$f":"IFERROR(INDEX($F$5:$F$2272,MATCH(0,COUNTIF($G$4:G36,$F$5:$F$2272),0)),\"\")","v":""}]
["DOLNOŚLĄSKIE","jeleniogórski","Podgórzyn","#REF!",{"$f":"IFERROR(INDEX($D$5:$D$2272,MATCH(0,COUNTIF($E$4:E37,$D$5:$D$2272),0)),\"\")","v":""},"#REF!",{"$f":"IFERROR(INDEX($F$5:$F$2272,MATCH(0,COUNTIF($G$4:G37,$F$5:$F$2272),0)),\"\")","v":""}]
["DOLNOŚLĄSKIE","jeleniogórski","Stara Kamienica","#REF!",{"$f":"IFERROR(INDEX($D$5:$D$2272,MATCH(0,COUNTIF($E$4:E38,$D$5:$D$2272),0)),\"\")","v":""},"#REF!",{"$f":"IFERROR(INDEX($F$5:$F$2272,MATCH(0,COUNTIF($G$4:G38,$F$5:$F$2272),0)),\"\")","v":""}]
["DOLNOŚLĄSKIE","jeleniogórski","Szklarska Poręba","#REF!",{"$f":"IFERROR(INDEX($D$5:$D$2272,MATCH(0,COUNTIF($E$4:E39,$D$5:$D$2272),0)),\"\")","v":""},"#REF!",{"$f":"IFERROR(INDEX($F$5:$F$2272,MATCH(0,COUNTIF($G$4:G39,$F$5:$F$2272),0)),\"\")","v":""}]
["DOLNOŚLĄSKIE","kamiennogórski","Kamienna Góra","#REF!",{"$f":"IFERROR(INDEX($D$5:$D$2272,MATCH(0,COUNTIF($E$4:E40,$D$5:$D$2272),0)),\"\")","v":""},"#REF!",{"$f":"IFERROR(INDEX($F$5:$F$2272,MATCH(0,COUNTIF($G$4:G40,$F$5:$F$2272),0)),\"\")","v":""}]
["DOLNOŚLĄSKIE","kamiennogórski","Lubawka","#REF!",{"$f":"IFERROR(INDEX($D$5:$D$2272,MATCH(0,COUNTIF($E$4:E41,$D$5:$D$2272),0)),\"\")","v":""},"#REF!",{"$f":"IFERROR(INDEX($F$5:$F$2272,MATCH(0,COUNTIF($G$4:G41,$F$5:$F$2272),0)),\"\")","v":""}]
["DOLNOŚLĄSKIE","kamiennogórski","Marciszów","#REF!",{"$f":"IFERROR(INDEX($D$5:$D$2272,MATCH(0,COUNTIF($E$4:E42,$D$5:$D$2272),0)),\"\")","v":""},"#REF!",{"$f":"IFERROR(INDEX($F$5:$F$2272,MATCH(0,COUNTIF($G$4:G42,$F$5:$F$2272),0)),\"\")","v":""}]
["DOLNOŚLĄSKIE","kłodzki","Bystrzyca Kłodzka","#REF!",{"$f":"IFERROR(INDEX($D$5:$D$2272,MATCH(0,COUNTIF($E$4:E43,$D$5:$D$2272),0)),\"\")","v":""},"#REF!",{"$f":"IFERROR(INDEX($F$5:$F$2272,MATCH(0,COUNTIF($G$4:G43,$F$5:$F$2272),0)),\"\")","v":""}]
["DOLNOŚLĄSKIE","kłodzki","Duszniki-Zdrój","#REF!",{"$f":"IFERROR(INDEX($D$5:$D$2272,MATCH(0,COUNTIF($E$4:E44,$D$5:$D$2272),0)),\"\")","v":""},"#REF!",{"$f":"IFERROR(INDEX($F$5:$F$2272,MATCH(0,COUNTIF($G$4:G44,$F$5:$F$2272),0)),\"\")","v":""}]
["DOLNOŚLĄSKIE","kłodzki","Kłodzko","#REF!",{"$f":"IFERROR(INDEX($D$5:$D$2272,MATCH(0,COUNTIF($E$4:E45,$D$5:$D$2272),0)),\"\")","v":""},"#REF!",{"$f":"IFERROR(INDEX($F$5:$F$2272,MATCH(0,COUNTIF($G$4:G45,$F$5:$F$2272),0)),\"\")","v":""}]
["DOLNOŚLĄSKIE","kłodzki","Kudowa-Zdrój","#REF!",{"$f":"IFERROR(INDEX($D$5:$D$2272,MATCH(0,COUNTIF($E$4:E46,$D$5:$D$2272),0)),\"\")","v":""},"#REF!",{"$f":"IFERROR(INDEX($F$5:$F$2272,MATCH(0,COUNTIF($G$4:G46,$F$5:$F$2272),0)),\"\")","v":""}]
["DOLNOŚLĄSKIE","kłodzki","Lądek-Zdrój","#REF!",{"$f":"IFERROR(INDEX($D$5:$D$2272,MATCH(0,COUNTIF($E$4:E47,$D$5:$D$2272),0)),\"\")","v":""},"#REF!",{"$f":"IFERROR(INDEX($F$5:$F$2272,MATCH(0,COUNTIF($G$4:G47,$F$5:$F$2272),0)),\"\")","v":""}]
["DOLNOŚLĄSKIE","kłodzki","Lewin Kłodzki","#REF!",{"$f":"IFERROR(INDEX($D$5:$D$2272,MATCH(0,COUNTIF($E$4:E48,$D$5:$D$2272),0)),\"\")","v":""},"#REF!",{"$f":"IFERROR(INDEX($F$5:$F$2272,MATCH(0,COUNTIF($G$4:G48,$F$5:$F$2272),0)),\"\")","v":""}]
["DOLNOŚLĄSKIE","kłodzki","Międzylesie","#REF!",{"$f":"IFERROR(INDEX($D$5:$D$2272,MATCH(0,COUNTIF($E$4:E49,$D$5:$D$2272),0)),\"\")","v":""},"#REF!",{"$f":"IFERROR(INDEX($F$5:$F$2272,MATCH(0,COUNTIF($G$4:G49,$F$5:$F$2272),0)),\"\")","v":""}]
["DOLNOŚLĄSKIE","kłodzki","Nowa Ruda","#REF!",null,"#REF!"]
["DOLNOŚLĄSKIE","kłodzki","Polanica-Zdrój","#REF!",null,"#REF!"]
["DOLNOŚLĄSKIE","kłodzki","Radków","#REF!",null,"#REF!"]
["DOLNOŚLĄSKIE","kłodzki","Stronie Śląskie","#REF!",null,"#REF!"]
["DOLNOŚLĄSKIE","kłodzki","Szczytna","#REF!",null,"#REF!"]
["DOLNOŚLĄSKIE","Legnica","Legnica","#REF!",null,"#REF!"]
["DOLNOŚLĄSKIE","legnicki","Chojnów","#REF!",null,"#REF!"]
["DOLNOŚLĄSKIE","legnicki","Krotoszyce","#REF!",null,"#REF!"]
["DOLNOŚLĄSKIE","legnicki","Kunice","#REF!",null,"#REF!"]
["DOLNOŚLĄSKIE","legnicki","Legnickie Pole","#REF!",null,"#REF!"]
["DOLNOŚLĄSKIE","legnicki","Miłkowice","#REF!",null,"#REF!"]
["DOLNOŚLĄSKIE","legnicki","Prochowice","#REF!",null,"#REF!"]
["DOLNOŚLĄSKIE","legnicki","Ruja","#REF!",null,"#REF!"]
["DOLNOŚLĄSKIE","lubański","Leśna","#REF!",null,"#REF!"]
["DOLNOŚLĄSKIE","lubański","Lubań","#REF!",null,"#REF!"]
["DOLNOŚLĄSKIE","lubański","Olszyna","#REF!",null,"#REF!"]
["DOLNOŚLĄSKIE","lubański","Platerówka","#REF!",null,"#REF!"]
["DOLNOŚLĄSKIE","lubański","Siekierczyn","#REF!",null,"#REF!"]
["DOLNOŚLĄSKIE","lubański","Świeradów-Zdrój","#REF!",null,"#REF!"]
["DOLNOŚLĄSKIE","lubiński","Lubin","#REF!",null,"#REF!"]
["DOLNOŚLĄSKIE","lubiński","Rudna","#REF!",null,"#REF!"]
["DOLNOŚLĄSKIE","lubiński","Ścinawa","#REF!",null,"#REF!"]
["DOLNOŚLĄSKIE","lwówecki","Gryfów Śląski","#REF!",null,"#REF!"]
["DOLNOŚLĄSKIE","lwówecki","Lubomierz","#REF!",null,"#REF!"]
["DOLNOŚLĄSKIE","lwówecki","Lwówek Śląski","#REF!",null,"#REF!"]
["DOLNOŚLĄSKIE","lwówecki","Mirsk","#REF!",null,"#REF!"]
["DOLNOŚLĄSKIE","lwówecki","Wleń","#REF!",null,"#REF!"]
["DOLNOŚLĄSKIE","milicki","Cieszków","#REF!",null,"#REF!"]
["DOLNOŚLĄSKIE","milicki","Krośnice","#REF!",null,"#REF!"]
["DOLNOŚLĄSKIE","milicki","Milicz","#REF!",null,"#REF!"]
["DOLNOŚLĄSKIE","oleśnicki","Bierutów","#REF!",null,"#REF!"]
["DOLNOŚLĄSKIE","oleśnicki","Dobroszyce","#REF!",null,"#REF!"]
["DOLNOŚLĄSKIE","oleśnicki","Dziadowa Kłoda","#REF!",null,"#REF!"]
["DOLNOŚLĄSKIE","oleśnicki","Międzybórz","#REF!",null,"#REF!"]
["DOLNOŚLĄSKIE","oleśnicki","Oleśnica","#REF!",null,"#REF!"]
["DOLNOŚLĄSKIE","oleśnicki","Syców","#REF!",null,"#REF!"]
["DOLNOŚLĄSKIE","oleśnicki","Twardogóra","#REF!",null,"#REF!"]
["DOLNOŚLĄSKIE","oławski","Domaniów","#REF!",null,"#REF!"]
["DOLNOŚLĄSKIE","oławski","Jelcz-Laskowice","#REF!",null,"#REF!"]
["DOLNOŚLĄSKIE","oławski","Oława","#REF!",null,"#REF!"]
["DOLNOŚLĄSKIE","polkowicki","Chocianów","#REF!",null,"#REF!"]
["DOLNOŚLĄSKIE","polkowicki","Gaworzyce","#REF!",null,"#REF!"]
["DOLNOŚLĄSKIE","polkowicki","Grębocice","#REF!",null,"#REF!"]
["DOLNOŚLĄSKIE","polkowicki","Polkowice","#REF!",null,"#REF!"]
["DOLNOŚLĄSKIE","polkowicki","Przemków","#REF!",null,"#REF!"]
["DOLNOŚLĄSKIE","polkowicki","Radwanice","#REF!",null,"#REF!"]
["DOLNOŚLĄSKIE","strzeliński","Borów","#REF!",null,"#REF!"]
["DOLNOŚLĄSKIE","strzeliński","Kondratowice","#REF!",null,"#REF!"]
["DOLNOŚLĄSKIE","strzeliński","Przeworno","#REF!",null,"#REF!"]
["DOLNOŚLĄSKIE","strzeliński","Strzelin","#REF!",null,"#REF!"]
["DOLNOŚLĄSKIE","strzeliński","Wiązów","#REF!",null,"#REF!"]
["DOLNOŚLĄSKIE","średzki","Kostomłoty","#REF!",null,"#REF!"]
["DOLNOŚLĄSKIE","średzki","Malczyce","#REF!",null,"#REF!"]
["DOLNOŚLĄSKIE","średzki","Miękinia","#REF!",null,"#REF!"]
["DOLNOŚLĄSKIE","średzki","Środa Śląska","#REF!",null,"#REF!"]
["DOLNOŚLĄSKIE","średzki","Udanin","#REF!",null,"#REF!"]
["DOLNOŚLĄSKIE","świdnicki","Dobromierz","#REF!",null,"#REF!"]
["DOLNOŚLĄSKIE","świdnicki","Jaworzyna Śląska","#REF!",null,"#REF!"]
["DOLNOŚLĄSKIE","świdnicki","Marcinowice","#REF!",null,"#REF!"]
["DOLNOŚLĄSKIE","świdnicki","Strzegom","#REF!",null,"#REF!"]
["DOLNOŚLĄSKIE","świdnicki","Świdnica","#REF!",null,"#REF!"]
["DOLNOŚLĄSKIE","świdnicki","Świebodzice","#REF!",null,"#REF!"]
["DOLNOŚLĄSKIE","świdnicki","Żarów","#REF!",null,"#REF!"]
["DOLNOŚLĄSKIE","trzebnicki","Oborniki Śląskie","#REF!",null,"#REF!"]
["DOLNOŚLĄSKIE","trzebnicki","Prusice","#REF!",null,"#REF!"]
["DOLNOŚLĄSKIE","trzebnicki","Trzebnica","#REF!",null,"#REF!"]
["DOLNOŚLĄSKIE","trzebnicki","Wisznia Mała","#REF!",null,"#REF!"]
["DOLNOŚLĄSKIE","trzebnicki","Zawonia","#REF!",null,"#REF!"]
["DOLNOŚLĄSKIE","trzebnicki","Żmigród","#REF!",null,"#REF!"]
["DOLNOŚLĄSKIE","Wałbrzych","Wałbrzych","#REF!",null,"#REF!"]
["DOLNOŚLĄSKIE","wałbrzyski","Boguszów-Gorce","#REF!",null,"#REF!"]
["DOLNOŚLĄSKIE","wałbrzyski","Czarny Bór","#REF!",null,"#REF!"]
["DOLNOŚLĄSKIE","wałbrzyski","Głuszyca","#REF!",null,"#REF!"]
["DOLNOŚLĄSKIE","wałbrzyski","Jedlina-Zdrój","#REF!",null,"#REF!"]
["DOLNOŚLĄSKIE","wałbrzyski","Mieroszów","#REF!",null,"#REF!"]
["DOLNOŚLĄSKIE","wałbrzyski","Stare Bogaczowice","#REF!",null,"#REF!"]
["DOLNOŚLĄSKIE","wałbrzyski","Szczawno-Zdrój","#REF!",null,"#REF!"]
["DOLNOŚLĄSKIE","wałbrzyski","Walim","#REF!",null,"#REF!"]
["DOLNOŚLĄSKIE","wołowski","Brzeg Dolny","#REF!",null,"#REF!"]
["DOLNOŚLĄSKIE","wołowski","Wińsko","#REF!",null,"#REF!"]
["DOLNOŚLĄSKIE","wołowski","Wołów","#REF!",null,"#REF!"]
["DOLNOŚLĄSKIE","Wrocław","Wrocław","#REF!",null,"#REF!"]
["DOLNOŚLĄSKIE","wrocławski","Czernica","#REF!",null,"#REF!"]
["DOLNOŚLĄSKIE","wrocławski","Długołęka","#REF!",null,"#REF!"]
["DOLNOŚLĄSKIE","wrocławski","Jordanów Śląski","#REF!",null,"#REF!"]
["DOLNOŚLĄSKIE","wrocławski","Kąty Wrocławskie","#REF!",null,"#REF!"]
["DOLNOŚLĄSKIE","wrocławski","Kobierzyce","#REF!",null,"#REF!"]
["DOLNOŚLĄSKIE","wrocławski","Mietków","#REF!",null,"#REF!"]
["DOLNOŚLĄSKIE","wrocławski","Siechnice","#REF!",null,"#REF!"]
["DOLNOŚLĄSKIE","wrocławski","Sobótka","#REF!",null,"#REF!"]
["DOLNOŚLĄSKIE","wrocławski","Żórawina","#REF!",null,"#REF!"]
["DOLNOŚLĄSKIE","ząbkowicki","Bardo","#REF!",null,"#REF!"]
["DOLNOŚLĄSKIE","ząbkowicki","Ciepłowody","#REF!",null,"#REF!"]
["DOLNOŚLĄSKIE","ząbkowicki","Kamieniec Ząbkowicki","#REF!",null,"#REF!"]
["DOLNOŚLĄSKIE","ząbkowicki","Stoszowice","#REF!",null,"#REF!"]
["DOLNOŚLĄSKIE","ząbkowicki","Ząbkowice Śląskie","#REF!",null,"#REF!"]
["DOLNOŚLĄSKIE","ząbkowicki","Ziębice","#REF!",null,"#REF!"]
["DOLNOŚLĄSKIE","ząbkowicki","Złoty Stok","#REF!",null,"#REF!"]
["DOLNOŚLĄSKIE","zgorzelecki","Bogatynia","#REF!",null,"#REF!"]
["DOLNOŚLĄSKIE","zgorzelecki","Pieńsk","#REF!",null,"#REF!"]
["DOLNOŚLĄSKIE","zgorzelecki","Sulików","#REF!",null,"#REF!"]
["DOLNOŚLĄSKIE","zgorzelecki","Węgliniec","#REF!",null,"#REF!"]
["DOLNOŚLĄSKIE","zgorzelecki","Zawidów","#REF!",null,"#REF!"]
["DOLNOŚLĄSKIE","zgorzelecki","Zgorzelec","#REF!",null,"#REF!"]
["DOLNOŚLĄSKIE","złotoryjski","Pielgrzymka","#REF!",null,"#REF!"]
["DOLNOŚLĄSKIE","złotoryjski","Świerzawa","#REF!",null,"#REF!"]
["DOLNOŚLĄSKIE","złotoryjski","Wojcieszów","#REF!",null,"#REF!"]
["DOLNOŚLĄSKIE","złotoryjski","Zagrodno","#REF!",null,"#REF!"]
["DOLNOŚLĄSKIE","złotoryjski","Złotoryja","#REF!",null,"#REF!"]
["KUJAWSKO-POMORSKIE","aleksandrowski","Aleksandrów Kujawski","#REF!",null,"#REF!"]
["KUJAWSKO-POMORSKIE","aleksandrowski","Bądkowo","#REF!",null,"#REF!"]
["KUJAWSKO-POMORSKIE","aleksandrowski","Ciechocinek","#REF!",null,"#REF!"]
["KUJAWSKO-POMORSKIE","aleksandrowski","Koneck","#REF!",null,"#REF!"]
["KUJAWSKO-POMORSKIE","aleksandrowski","Nieszawa","#REF!",null,"#REF!"]
["KUJAWSKO-POMORSKIE","aleksandrowski","Raciążek","#REF!",null,"#REF!"]
["KUJAWSKO-POMORSKIE","aleksandrowski","Waganiec","#REF!",null,"#REF!"]
["KUJAWSKO-POMORSKIE","aleksandrowski","Zakrzewo","#REF!",null,"#REF!"]
["KUJAWSKO-POMORSKIE","brodnicki","Bartniczka","#REF!",null,"#REF!"]
["KUJAWSKO-POMORSKIE","brodnicki","Bobrowo","#REF!",null,"#REF!"]
["KUJAWSKO-POMORSKIE","brodnicki","Brodnica","#REF!",null,"#REF!"]
["KUJAWSKO-POMORSKIE","brodnicki","Brzozie","#REF!",null,"#REF!"]
["KUJAWSKO-POMORSKIE","brodnicki","Górzno","#REF!",null,"#REF!"]
["KUJAWSKO-POMORSKIE","brodnicki","Jabłonowo Pomorskie","#REF!",null,"#REF!"]
["KUJAWSKO-POMORSKIE","brodnicki","Osiek","#REF!",null,"#REF!"]
["KUJAWSKO-POMORSKIE","brodnicki","Świedziebnia","#REF!",null,"#REF!"]
["KUJAWSKO-POMORSKIE","brodnicki","Zbiczno","#REF!",null,"#REF!"]
["KUJAWSKO-POMORSKIE","bydgoski","Białe Błota","#REF!",null,"#REF!"]
["KUJAWSKO-POMORSKIE","bydgoski","Dąbrowa Chełmińska","#REF!",null,"#REF!"]
["KUJAWSKO-POMORSKIE","bydgoski","Dobrcz","#REF!",null,"#REF!"]
["KUJAWSKO-POMORSKIE","bydgoski","Koronowo","#REF!",null,"#REF!"]
["KUJAWSKO-POMORSKIE","bydgoski","Nowa Wieś Wielka","#REF!",null,"#REF!"]
["KUJAWSKO-POMORSKIE","bydgoski","Osielsko","#REF!",null,"#REF!"]
["KUJAWSKO-POMORSKIE","bydgoski","Sicienko","#REF!",null,"#REF!"]
["KUJAWSKO-POMORSKIE","bydgoski","Solec Kujawski","#REF!",null,"#REF!"]
["KUJAWSKO-POMORSKIE","Bydgoszcz","Bydgoszcz","#REF!",null,"#REF!"]
["KUJAWSKO-POMORSKIE","chełmiński","Chełmno","#REF!",null,"#REF!"]
["KUJAWSKO-POMORSKIE","chełmiński","Kijewo Królewskie","#REF!",null,"#REF!"]
["KUJAWSKO-POMORSKIE","chełmiński","Lisewo","#REF!",null,"#REF!"]
["KUJAWSKO-POMORSKIE","chełmiński","Papowo Biskupie","#REF!",null,"#REF!"]
["KUJAWSKO-POMORSKIE","chełmiński","Stolno","#REF!",null,"#REF!"]
["KUJAWSKO-POMORSKIE","chełmiński","Unisław","#REF!",null,"#REF!"]
["KUJAWSKO-POMORSKIE","golubsko-dobrzyński","Ciechocin","#REF!",null,"#REF!"]
["KUJAWSKO-POMORSKIE","golubsko-dobrzyński","Golub-Dobrzyń","#REF!",null,"#REF!"]
["KUJAWSKO-POMORSKIE","golubsko-dobrzyński","Kowalewo Pomorskie","#REF!",null,"#REF!"]
["KUJAWSKO-POMORSKIE","golubsko-dobrzyński","Radomin","#REF!",null,"#REF!"]
["KUJAWSKO-POMORSKIE","golubsko-dobrzyński","Zbójno","#REF!",null,"#REF!"]
["KUJAWSKO-POMORSKIE","Grudziądz","Grudziądz","#REF!",null,"#REF!"]
["KUJAWSKO-POMORSKIE","grudziądzki","Grudziądz","#REF!",null,"#REF!"]
["KUJAWSKO-POMORSKIE","grudziądzki","Gruta","#REF!",null,"#REF!"]
["KUJAWSKO-POMORSKIE","grudziądzki","Łasin","#REF!",null,"#REF!"]
["KUJAWSKO-POMORSKIE","grudziądzki","Radzyń Chełmiński","#REF!",null,"#REF!"]
["KUJAWSKO-POMORSKIE","grudziądzki","Rogóźno","#REF!",null,"#REF!"]
["KUJAWSKO-POMORSKIE","grudziądzki","Świecie nad Osą","#REF!",null,"#REF!"]
["KUJAWSKO-POMORSKIE","inowrocławski","Dąbrowa Biskupia","#REF!",null,"#REF!"]
["KUJAWSKO-POMORSKIE","inowrocławski","Gniewkowo","#REF!",null,"#REF!"]
["KUJAWSKO-POMORSKIE","inowrocławski","Inowrocław","#REF!",null,"#REF!"]
["KUJAWSKO-POMORSKIE","inowrocławski","Janikowo","#REF!",null,"#REF!"]
["KUJAWSKO-POMORSKIE","inowrocławski","Kruszwica","#REF!",null,"#REF!"]
["KUJAWSKO-POMORSKIE","inowrocławski","Pakość","#REF!",null,"#REF!"]
["KUJAWSKO-POMORSKIE","inowrocławski","Rojewo","#REF!",null,"#REF!"]
["KUJAWSKO-POMORSKIE","inowrocławski","Złotniki Kujawskie","#REF!",null,"#REF!"]
["KUJAWSKO-POMORSKIE","lipnowski","Bobrowniki","#REF!",null,"#REF!"]
["KUJAWSKO-POMORSKIE","lipnowski","Chrostkowo","#REF!",null,"#REF!"]
["KUJAWSKO-POMORSKIE","lipnowski","Dobrzyń nad Wisłą","#REF!",null,"#REF!"]
["KUJAWSKO-POMORSKIE","lipnowski","Kikół","#REF!",null,"#REF!"]
["KUJAWSKO-POMORSKIE","lipnowski","Lipno","#REF!",null,"#REF!"]
["KUJAWSKO-POMORSKIE","lipnowski","Skępe","#REF!",null,"#REF!"]
["KUJAWSKO-POMORSKIE","lipnowski","Tłuchowo","#REF!",null,"#REF!"]
["KUJAWSKO-POMORSKIE","lipnowski","Wielgie","#REF!",null,"#REF!"]
["KUJAWSKO-POMORSKIE","mogileński","Dąbrowa","#REF!",null,"#REF!"]
["KUJAWSKO-POMORSKIE","mogileński","Jeziora Wielkie","#REF!",null,"#REF!"]
["KUJAWSKO-POMORSKIE","mogileński","Mogilno","#REF!",null,"#REF!"]
["KUJAWSKO-POMORSKIE","mogileński","Strzelno","#REF!",null,"#REF!"]
["KUJAWSKO-POMORSKIE","nakielski","Kcynia","#REF!",null,"#REF!"]
["KUJAWSKO-POMORSKIE","nakielski","Mrocza","#REF!",null,"#REF!"]
["KUJAWSKO-POMORSKIE","nakielski","Nakło nad Notecią","#REF!",null,"#REF!"]
["KUJAWSKO-POMORSKIE","nakielski","Sadki","#REF!",null,"#REF!"]
["KUJAWSKO-POMORSKIE","nakielski","Szubin","#REF!",null,"#REF!"]
["KUJAWSKO-POMORSKIE","radziejowski","Bytoń","#REF!",null,"#REF!"]
["KUJAWSKO-POMORSKIE","radziejowski","Dobre","#REF!",null,"#REF!"]
["KUJAWSKO-POMORSKIE","radziejowski","Osięciny","#REF!",null,"#REF!"]
["KUJAWSKO-POMORSKIE","radziejowski","Piotrków Kujawski","#REF!",null,"#REF!"]
["KUJAWSKO-POMORSKIE","radziejowski","Radziejów","#REF!",null,"#REF!"]
["KUJAWSKO-POMORSKIE","radziejowski","Topólka","#REF!",null,"#REF!"]
["KUJAWSKO-POMORSKIE","rypiński","Brzuze","#REF!",null,"#REF!"]
["KUJAWSKO-POMORSKIE","rypiński","Rogowo","#REF!",null,"#REF!"]
["KUJAWSKO-POMORSKIE","rypiński","Rypin","#REF!",null,"#REF!"]
["KUJAWSKO-POMORSKIE","rypiński","Skrwilno","#REF!",null,"#REF!"]
["KUJAWSKO-POMORSKIE","rypiński","Wąpielsk","#REF!",null,"#REF!"]
["KUJAWSKO-POMORSKIE","sępoleński","Kamień Krajeński","#REF!",null,"#REF!"]
["KUJAWSKO-POMORSKIE","sępoleński","Sępólno Krajeńskie","#REF!",null,"#REF!"]
["KUJAWSKO-POMORSKIE","sępoleński","Sośno","#REF!",null,"#REF!"]
["KUJAWSKO-POMORSKIE","sępoleński","Więcbork","#REF!",null,"#REF!"]
["KUJAWSKO-POMORSKIE","świecki","Bukowiec","#REF!",null,"#REF!"]
["KUJAWSKO-POMORSKIE","świecki","Dragacz","#REF!",null,"#REF!"]
["KUJAWSKO-POMORSKIE","świecki","Drzycim","#REF!",null,"#REF!"]
["KUJAWSKO-POMORSKIE","świecki","Jeżewo","#REF!",null,"#REF!"]
["KUJAWSKO-POMORSKIE","świecki","Lniano","#REF!",null,"#REF!"]
["KUJAWSKO-POMORSKIE","świecki","Nowe","#REF!",null,"#REF!"]
["KUJAWSKO-POMORSKIE","świecki","Osie","#REF!",null,"#REF!"]
["KUJAWSKO-POMORSKIE","świecki","Pruszcz","#REF!",null,"#REF!"]
["KUJAWSKO-POMORSKIE","świecki","Świecie","#REF!",null,"#REF!"]
["KUJAWSKO-POMORSKIE","świecki","Świekatowo","#REF!",null,"#REF!"]
["KUJAWSKO-POMORSKIE","świecki","Warlubie","#REF!",null,"#REF!"]
["KUJAWSKO-POMORSKIE","Toruń","Toruń","#REF!",null,"#REF!"]
["KUJAWSKO-POMORSKIE","toruński","Chełmża","#REF!",null,"#REF!"]
["KUJAWSKO-POMORSKIE","toruński","Czernikowo","#REF!",null,"#REF!"]
["KUJAWSKO-POMORSKIE","toruński","Lubicz","#REF!",null,"#REF!"]
["KUJAWSKO-POMORSKIE","toruński","Łubianka","#REF!",null,"#REF!"]
["KUJAWSKO-POMORSKIE","toruński","Łysomice","#REF!",null,"#REF!"]
["KUJAWSKO-POMORSKIE","toruński","Obrowo","#REF!",null,"#REF!"]
["KUJAWSKO-POMORSKIE","toruński","Wielka Nieszawka","#REF!",null,"#REF!"]
["KUJAWSKO-POMORSKIE","toruński","Zławieś Wielka","#REF!",null,"#REF!"]
["KUJAWSKO-POMORSKIE","tucholski","Cekcyn","#REF!",null,"#REF!"]
["KUJAWSKO-POMORSKIE","tucholski","Gostycyn","#REF!",null,"#REF!"]
["KUJAWSKO-POMORSKIE","tucholski","Kęsowo","#REF!",null,"#REF!"]
["KUJAWSKO-POMORSKIE","tucholski","Lubiewo","#REF!",null,"#REF!"]
["KUJAWSKO-POMORSKIE","tucholski","Śliwice","#REF!",null,"#REF!"]
["KUJAWSKO-POMORSKIE","tucholski","Tuchola","#REF!",null,"#REF!"]
["KUJAWSKO-POMORSKIE","wąbrzeski","Dębowa Łąka","#REF!",null,"#REF!"]
["KUJAWSKO-POMORSKIE","wąbrzeski","Książki","#REF!",null,"#REF!"]
["KUJAWSKO-POMORSKIE","wąbrzeski","Płużnica","#REF!",null,"#REF!"]
["KUJAWSKO-POMORSKIE","wąbrzeski","Ryńsk","#REF!",null,"#REF!"]
["KUJAWSKO-POMORSKIE","wąbrzeski","Wąbrzeźno","#REF!",null,"#REF!"]
["KUJAWSKO-POMORSKIE","Włocławek","Włocławek","#REF!",null,"#REF!"]
["KUJAWSKO-POMORSKIE","włocławski","Baruchowo","#REF!",null,"#REF!"]
["KUJAWSKO-POMORSKIE","włocławski","Boniewo","#REF!",null,"#REF!"]
["KUJAWSKO-POMORSKIE","włocławski","Brześć Kujawski","#REF!",null,"#REF!"]
["KUJAWSKO-POMORSKIE","włocławski","Choceń","#REF!",null,"#REF!"]
["KUJAWSKO-POMORSKIE","włocławski","Chodecz","#REF!",null,"#REF!"]
["KUJAWSKO-POMORSKIE","włocławski","Fabianki","#REF!",null,"#REF!"]
["KUJAWSKO-POMORSKIE","włocławski","Izbica Kujawska","#REF!",null,"#REF!"]
["KUJAWSKO-POMORSKIE","włocławski","Kowal","#REF!",null,"#REF!"]
["KUJAWSKO-POMORSKIE","włocławski","Lubanie","#REF!",null,"#REF!"]
["KUJAWSKO-POMORSKIE","włocławski","Lubień Kujawski","#REF!",null,"#REF!"]
["KUJAWSKO-POMORSKIE","włocławski","Lubraniec","#REF!",null,"#REF!"]
["KUJAWSKO-POMORSKIE","włocławski","Włocławek","#REF!",null,"#REF!"]
["KUJAWSKO-POMORSKIE","żniński","Barcin","#REF!",null,"#REF!"]
["KUJAWSKO-POMORSKIE","żniński","Gąsawa","#REF!",null,"#REF!"]
["KUJAWSKO-POMORSKIE","żniński","Janowiec Wielkopolski","#REF!",null,"#REF!"]
["KUJAWSKO-POMORSKIE","żniński","Łabiszyn","#REF!",null,"#REF!"]
["KUJAWSKO-POMORSKIE","żniński","Rogowo","#REF!",null,"#REF!"]
["KUJAWSKO-POMORSKIE","żniński","Żnin","#REF!",null,"#REF!"]
["LUBELSKIE","bialski","Biała Podlaska","#REF!",null,"#REF!"]
["LUBELSKIE","bialski","Drelów","#REF!",null,"#REF!"]
["LUBELSKIE","bialski","Janów Podlaski","#REF!",null,"#REF!"]
["LUBELSKIE","bialski","Kodeń","#REF!",null,"#REF!"]
["LUBELSKIE","bialski","Konstantynów","#REF!",null,"#REF!"]
["LUBELSKIE","bialski","Leśna Podlaska","#REF!",null,"#REF!"]
["LUBELSKIE","bialski","Łomazy","#REF!",null,"#REF!"]
["LUBELSKIE","bialski","Międzyrzec Podlaski","#REF!",null,"#REF!"]
["LUBELSKIE","bialski","Piszczac","#REF!",null,"#REF!"]
["LUBELSKIE","bialski","Rokitno","#REF!",null,"#REF!"]
["LUBELSKIE","bialski","Rossosz","#REF!",null,"#REF!"]
["LUBELSKIE","bialski","Sławatycze","#REF!",null,"#REF!"]
["LUBELSKIE","bialski","Sosnówka","#REF!",null,"#REF!"]
["LUBELSKIE","bialski","Terespol","#REF!",null,"#REF!"]
["LUBELSKIE","bialski","Tuczna","#REF!",null,"#REF!"]
["LUBELSKIE","bialski","Wisznice","#REF!",null,"#REF!"]
["LUBELSKIE","bialski","Zalesie","#REF!",null,"#REF!"]
["LUBELSKIE","Biała Podlaska","Biała Podlaska","#REF!",null,"#REF!"]
["LUBELSKIE","biłgorajski","Aleksandrów","#REF!",null,"#REF!"]
["LUBELSKIE","biłgorajski","Biłgoraj","#REF!",null,"#REF!"]
["LUBELSKIE","biłgorajski","Biszcza","#REF!",null,"#REF!"]
["LUBELSKIE","biłgorajski","Frampol","#REF!",null,"#REF!"]
["LUBELSKIE","biłgorajski","Goraj","#REF!",null,"#REF!"]
["LUBELSKIE","biłgorajski","Józefów","#REF!",null,"#REF!"]
["LUBELSKIE","biłgorajski","Księżpol","#REF!",null,"#REF!"]
["LUBELSKIE","biłgorajski","Łukowa","#REF!",null,"#REF!"]
["LUBELSKIE","biłgorajski","Obsza","#REF!",null,"#REF!"]
["LUBELSKIE","biłgorajski","Potok Górny","#REF!",null,"#REF!"]
["LUBELSKIE","biłgorajski","Tarnogród","#REF!",null,"#REF!"]
["LUBELSKIE","biłgorajski","Tereszpol","#REF!",null,"#REF!"]
["LUBELSKIE","biłgorajski","Turobin","#REF!",null,"#REF!"]
["LUBELSKIE","Chełm","Chełm","#REF!",null,"#REF!"]
["LUBELSKIE","chełmski","Białopole","#REF!",null,"#REF!"]
["LUBELSKIE","chełmski","Chełm","#REF!",null,"#REF!"]
["LUBELSKIE","chełmski","Dorohusk","#REF!",null,"#REF!"]
["LUBELSKIE","chełmski","Dubienka","#REF!",null,"#REF!"]
["LUBELSKIE","chełmski","Kamień","#REF!",null,"#REF!"]
["LUBELSKIE","chełmski","Leśniowice","#REF!",null,"#REF!"]
["LUBELSKIE","chełmski","Rejowiec","#REF!",null,"#REF!"]
["LUBELSKIE","chełmski","Rejowiec Fabryczny","#REF!",null,"#REF!"]
["LUBELSKIE","chełmski","Ruda-Huta","#REF!",null,"#REF!"]
["LUBELSKIE","chełmski","Sawin","#REF!",null,"#REF!"]
["LUBELSKIE","chełmski","Siedliszcze","#REF!",null,"#REF!"]
["LUBELSKIE","chełmski","Wierzbica","#REF!",null,"#REF!"]
["LUBELSKIE","chełmski","Wojsławice","#REF!",null,"#REF!"]
["LUBELSKIE","chełmski","Żmudź","#REF!",null,"#REF!"]
["LUBELSKIE","hrubieszowski","Dołhobyczów","#REF!",null,"#REF!"]
["LUBELSKIE","hrubieszowski","Horodło","#REF!",null,"#REF!"]
["LUBELSKIE","hrubieszowski","Hrubieszów","#REF!",null,"#REF!"]
["LUBELSKIE","hrubieszowski","Mircze","#REF!",null,"#REF!"]
["LUBELSKIE","hrubieszowski","Trzeszczany","#REF!",null,"#REF!"]
["LUBELSKIE","hrubieszowski","Uchanie","#REF!",null,"#REF!"]
["LUBELSKIE","hrubieszowski","Werbkowice","#REF!",null,"#REF!"]
["LUBELSKIE","janowski","Batorz","#REF!",null,"#REF!"]
["LUBELSKIE","janowski","Chrzanów","#REF!",null,"#REF!"]
["LUBELSKIE","janowski","Dzwola","#REF!",null,"#REF!"]
["LUBELSKIE","janowski","Godziszów","#REF!",null,"#REF!"]
["LUBELSKIE","janowski","Janów Lubelski","#REF!",null,"#REF!"]
["LUBELSKIE","janowski","Modliborzyce","#REF!",null,"#REF!"]
["LUBELSKIE","janowski","Potok Wielki","#REF!",null,"#REF!"]
["LUBELSKIE","krasnostawski","Fajsławice","#REF!",null,"#REF!"]
["LUBELSKIE","krasnostawski","Gorzków","#REF!",null,"#REF!"]
["LUBELSKIE","krasnostawski","Izbica","#REF!",null,"#REF!"]
["LUBELSKIE","krasnostawski","Krasnystaw","#REF!",null,"#REF!"]
["LUBELSKIE","krasnostawski","Kraśniczyn","#REF!",null,"#REF!"]
["LUBELSKIE","krasnostawski","Łopiennik Górny","#REF!",null,"#REF!"]
["LUBELSKIE","krasnostawski","Rudnik","#REF!",null,"#REF!"]
["LUBELSKIE","krasnostawski","Siennica Różana","#REF!",null,"#REF!"]
["LUBELSKIE","krasnostawski","Żółkiewka","#REF!",null,"#REF!"]
["LUBELSKIE","kraśnicki","Annopol","#REF!",null,"#REF!"]
["LUBELSKIE","kraśnicki","Dzierzkowice","#REF!",null,"#REF!"]
["LUBELSKIE","kraśnicki","Gościeradów","#REF!",null,"#REF!"]
["LUBELSKIE","kraśnicki","Kraśnik","#REF!",null,"#REF!"]
["LUBELSKIE","kraśnicki","Szastarka","#REF!",null,"#REF!"]
["LUBELSKIE","kraśnicki","Trzydnik Duży","#REF!",null,"#REF!"]
["LUBELSKIE","kraśnicki","Urzędów","#REF!",null,"#REF!"]
["LUBELSKIE","kraśnicki","Wilkołaz","#REF!",null,"#REF!"]
["LUBELSKIE","kraśnicki","Zakrzówek","#REF!",null,"#REF!"]
["LUBELSKIE","lubartowski","Abramów","#REF!",null,"#REF!"]
["LUBELSKIE","lubartowski","Firlej","#REF!",null,"#REF!"]
["LUBELSKIE","lubartowski","Jeziorzany","#REF!",null,"#REF!"]
["LUBELSKIE","lubartowski","Kamionka","#REF!",null,"#REF!"]
["LUBELSKIE","lubartowski","Kock","#REF!",null,"#REF!"]
["LUBELSKIE","lubartowski","Lubartów","#REF!",null,"#REF!"]
["LUBELSKIE","lubartowski","Michów","#REF!",null,"#REF!"]
["LUBELSKIE","lubartowski","Niedźwiada","#REF!",null,"#REF!"]
["LUBELSKIE","lubartowski","Ostrów Lubelski","#REF!",null,"#REF!"]
["LUBELSKIE","lubartowski","Ostrówek","#REF!",null,"#REF!"]
["LUBELSKIE","lubartowski","Serniki","#REF!",null,"#REF!"]
["LUBELSKIE","lubartowski","Uścimów","#REF!",null,"#REF!"]
["LUBELSKIE","lubelski","Bełżyce","#REF!",null,"#REF!"]
["LUBELSKIE","lubelski","Borzechów","#REF!",null,"#REF!"]
["LUBELSKIE","lubelski","Bychawa","#REF!",null,"#REF!"]
["LUBELSKIE","lubelski","Garbów","#REF!",null,"#REF!"]
["LUBELSKIE","lubelski","Głusk","#REF!",null,"#REF!"]
["LUBELSKIE","lubelski","Jabłonna","#REF!",null,"#REF!"]
["LUBELSKIE","lubelski","Jastków","#REF!",null,"#REF!"]
["LUBELSKIE","lubelski","Konopnica","#REF!",null,"#REF!"]
["LUBELSKIE","lubelski","Krzczonów","#REF!",null,"#REF!"]
["LUBELSKIE","lubelski","Niedrzwica Duża","#REF!",null,"#REF!"]
["LUBELSKIE","lubelski","Niemce","#REF!",null,"#REF!"]
["LUBELSKIE","lubelski","Strzyżewice","#REF!",null,"#REF!"]
["LUBELSKIE","lubelski","Wojciechów","#REF!",null,"#REF!"]
["LUBELSKIE","lubelski","Wólka","#REF!",null,"#REF!"]
["LUBELSKIE","lubelski","Wysokie","#REF!",null,"#REF!"]
["LUBELSKIE","lubelski","Zakrzew","#REF!",null,"#REF!"]
["LUBELSKIE","Lublin","Lublin","#REF!",null,"#REF!"]
["LUBELSKIE","łęczyński","Cyców","#REF!",null,"#REF!"]
["LUBELSKIE","łęczyński","Ludwin","#REF!",null,"#REF!"]
["LUBELSKIE","łęczyński","Łęczna","#REF!",null,"#REF!"]
["LUBELSKIE","łęczyński","Milejów","#REF!",null,"#REF!"]
["LUBELSKIE","łęczyński","Puchaczów","#REF!",null,"#REF!"]
["LUBELSKIE","łęczyński","Spiczyn","#REF!",null,"#REF!"]
["LUBELSKIE","łukowski","Adamów","#REF!",null,"#REF!"]
["LUBELSKIE","łukowski","Krzywda","#REF!",null,"#REF!"]
["LUBELSKIE","łukowski","Łuków","#REF!",null,"#REF!"]
["LUBELSKIE","łukowski","Serokomla","#REF!",null,"#REF!"]
["LUBELSKIE","łukowski","Stanin","#REF!",null,"#REF!"]
["LUBELSKIE","łukowski","Stoczek Łukowski","#REF!",null,"#REF!"]
["LUBELSKIE","łukowski","Trzebieszów","#REF!",null,"#REF!"]
["LUBELSKIE","łukowski","Wojcieszków","#REF!",null,"#REF!"]
["LUBELSKIE","łukowski","Wola Mysłowska","#REF!",null,"#REF!"]
["LUBELSKIE","opolski","Chodel","#REF!",null,"#REF!"]
["LUBELSKIE","opolski","Józefów nad Wisłą","#REF!",null,"#REF!"]
["LUBELSKIE","opolski","Karczmiska","#REF!",null,"#REF!"]
["LUBELSKIE","opolski","Łaziska","#REF!",null,"#REF!"]
["LUBELSKIE","opolski","Opole Lubelskie","#REF!",null,"#REF!"]
["LUBELSKIE","opolski","Poniatowa","#REF!",null,"#REF!"]
["LUBELSKIE","opolski","Wilków","#REF!",null,"#REF!"]
["LUBELSKIE","parczewski","Dębowa Kłoda","#REF!",null,"#REF!"]
["LUBELSKIE","parczewski","Jabłoń","#REF!",null,"#REF!"]
["LUBELSKIE","parczewski","Milanów","#REF!",null,"#REF!"]
["LUBELSKIE","parczewski","Parczew","#REF!",null,"#REF!"]
["LUBELSKIE","parczewski","Podedwórze","#REF!",null,"#REF!"]
["LUBELSKIE","parczewski","Siemień","#REF!",null,"#REF!"]
["LUBELSKIE","parczewski","Sosnowica","#REF!",null,"#REF!"]
["LUBELSKIE","puławski","Baranów","#REF!",null,"#REF!"]
["LUBELSKIE","puławski","Janowiec","#REF!",null,"#REF!"]
["LUBELSKIE","puławski","Kazimierz Dolny","#REF!",null,"#REF!"]
["LUBELSKIE","puławski","Końskowola","#REF!",null,"#REF!"]
["LUBELSKIE","puławski","Kurów","#REF!",null,"#REF!"]
["LUBELSKIE","puławski","Markuszów","#REF!",null,"#REF!"]
["LUBELSKIE","puławski","Nałęczów","#REF!",null,"#REF!"]
["LUBELSKIE","puławski","Puławy","#REF!",null,"#REF!"]
["LUBELSKIE","puławski","Wąwolnica","#REF!",null,"#REF!"]
["LUBELSKIE","puławski","Żyrzyn","#REF!",null,"#REF!"]
["LUBELSKIE","radzyński","Borki","#REF!",null,"#REF!"]
["LUBELSKIE","radzyński","Czemierniki","#REF!",null,"#REF!"]
["LUBELSKIE","radzyński","Kąkolewnica","#REF!",null,"#REF!"]
["LUBELSKIE","radzyński","Komarówka Podlaska","#REF!",null,"#REF!"]
["LUBELSKIE","radzyński","Radzyń Podlaski","#REF!",null,"#REF!"]
["LUBELSKIE","radzyński","Ulan-Majorat","#REF!",null,"#REF!"]
["LUBELSKIE","radzyński","Wohyń","#REF!",null,"#REF!"]
["LUBELSKIE","rycki","Dęblin","#REF!",null,"#REF!"]
["LUBELSKIE","rycki","Kłoczew","#REF!",null,"#REF!"]
["LUBELSKIE","rycki","Nowodwór","#REF!",null,"#REF!"]
["LUBELSKIE","rycki","Ryki","#REF!",null,"#REF!"]
["LUBELSKIE","rycki","Stężyca","#REF!",null,"#REF!"]
["LUBELSKIE","rycki","Ułęż","#REF!",null,"#REF!"]
["LUBELSKIE","świdnicki","Mełgiew","#REF!",null,"#REF!"]
["LUBELSKIE","świdnicki","Piaski","#REF!",null,"#REF!"]
["LUBELSKIE","świdnicki","Rybczewice","#REF!",null,"#REF!"]
["LUBELSKIE","świdnicki","Świdnik","#REF!",null,"#REF!"]
["LUBELSKIE","świdnicki","Trawniki","#REF!",null,"#REF!"]
["LUBELSKIE","tomaszowski","Bełżec","#REF!",null,"#REF!"]
["LUBELSKIE","tomaszowski","Jarczów","#REF!",null,"#REF!"]
["LUBELSKIE","tomaszowski","Krynice","#REF!",null,"#REF!"]
["LUBELSKIE","tomaszowski","Lubycza Królewska","#REF!",null,"#REF!"]
["LUBELSKIE","tomaszowski","Łaszczów","#REF!",null,"#REF!"]
["LUBELSKIE","tomaszowski","Rachanie","#REF!",null,"#REF!"]
["LUBELSKIE","tomaszowski","Susiec","#REF!",null,"#REF!"]
["LUBELSKIE","tomaszowski","Tarnawatka","#REF!",null,"#REF!"]
["LUBELSKIE","tomaszowski","Telatyn","#REF!",null,"#REF!"]
["LUBELSKIE","tomaszowski","Tomaszów Lubelski","#REF!",null,"#REF!"]
["LUBELSKIE","tomaszowski","Tyszowce","#REF!",null,"#REF!"]
["LUBELSKIE","tomaszowski","Ulhówek","#REF!",null,"#REF!"]
["LUBELSKIE","włodawski","Hanna","#REF!",null,"#REF!"]
["LUBELSKIE","włodawski","Hańsk","#REF!",null,"#REF!"]
["LUBELSKIE","włodawski","Stary Brus","#REF!",null,"#REF!"]
["LUBELSKIE","włodawski","Urszulin","#REF!",null,"#REF!"]
["LUBELSKIE","włodawski","Włodawa","#REF!",null,"#REF!"]
["LUBELSKIE","włodawski","Wola Uhruska","#REF!",null,"#REF!"]
["LUBELSKIE","włodawski","Wyryki","#REF!",null,"#REF!"]
["LUBELSKIE","zamojski","Adamów","#REF!",null,"#REF!"]
["LUBELSKIE","zamojski","Grabowiec","#REF!",null,"#REF!"]
["LUBELSKIE","zamojski","Komarów-Osada","#REF!",null,"#REF!"]
["LUBELSKIE","zamojski","Krasnobród","#REF!",null,"#REF!"]
["LUBELSKIE","zamojski","Łabunie","#REF!",null,"#REF!"]
["LUBELSKIE","zamojski","Miączyn","#REF!",null,"#REF!"]
["LUBELSKIE","zamojski","Nielisz","#REF!",null,"#REF!"]
["LUBELSKIE","zamojski","Radecznica","#REF!",null,"#REF!"]
["LUBELSKIE","zamojski","Sitno","#REF!",null,"#REF!"]
["LUBELSKIE","zamojski","Skierbieszów","#REF!",null,"#REF!"]
["LUBELSKIE","zamojski","Stary Zamość","#REF!",null,"#REF!"]
["LUBELSKIE","zamojski","Sułów","#REF!",null,"#REF!"]
["LUBELSKIE","zamojski","Szczebrzeszyn","#REF!",null,"#REF!"]
["LUBELSKIE","zamojski","Zamość","#REF!",null,"#REF!"]
["LUBELSKIE","zamojski","Zwierzyniec","#REF!",null,"#REF!"]
["LUBELSKIE","Zamość","Zamość","#REF!",null,"#REF!"]
["LUBUSKIE","gorzowski","Bogdaniec","#REF!",null,"#REF!"]
["LUBUSKIE","gorzowski","Deszczno","#REF!",null,"#REF!"]
["LUBUSKIE","gorzowski","Kłodawa","#REF!",null,"#REF!"]
["LUBUSKIE","gorzowski","Kostrzyn nad Odrą","#REF!",null,"#REF!"]
["LUBUSKIE","gorzowski","Lubiszyn","#REF!",null,"#REF!"]
["LUBUSKIE","gorzowski","Santok","#REF!",null,"#REF!"]
["LUBUSKIE","gorzowski","Witnica","#REF!",null,"#REF!"]
["LUBUSKIE","Gorzów Wielkopolski","Gorzów Wielkopolski","#REF!",null,"#REF!"]
["LUBUSKIE","krośnieński","Bobrowice","#REF!",null,"#REF!"]
["LUBUSKIE","krośnieński","Bytnica","#REF!",null,"#REF!"]
["LUBUSKIE","krośnieński","Dąbie","#REF!",null,"#REF!"]
["LUBUSKIE","krośnieński","Gubin","#REF!",null,"#REF!"]
["LUBUSKIE","krośnieński","Krosno Odrzańskie","#REF!",null,"#REF!"]
["LUBUSKIE","krośnieński","Maszewo","#REF!",null,"#REF!"]
["LUBUSKIE","międzyrzecki","Bledzew","#REF!",null,"#REF!"]
["LUBUSKIE","międzyrzecki","Międzyrzecz","#REF!",null,"#REF!"]
["LUBUSKIE","międzyrzecki","Przytoczna","#REF!",null,"#REF!"]
["LUBUSKIE","międzyrzecki","Pszczew","#REF!",null,"#REF!"]
["LUBUSKIE","międzyrzecki","Skwierzyna","#REF!",null,"#REF!"]
["LUBUSKIE","międzyrzecki","Trzciel","#REF!",null,"#REF!"]
["LUBUSKIE","nowosolski","Bytom Odrzański","#REF!",null,"#REF!"]
["LUBUSKIE","nowosolski","Kolsko","#REF!",null,"#REF!"]
["LUBUSKIE","nowosolski","Kożuchów","#REF!",null,"#REF!"]
["LUBUSKIE","nowosolski","Nowa Sól","#REF!",null,"#REF!"]
["LUBUSKIE","nowosolski","Nowe Miasteczko","#REF!",null,"#REF!"]
["LUBUSKIE","nowosolski","Otyń","#REF!",null,"#REF!"]
["LUBUSKIE","nowosolski","Siedlisko","#REF!",null,"#REF!"]
["LUBUSKIE","słubicki","Cybinka","#REF!",null,"#REF!"]
["LUBUSKIE","słubicki","Górzyca","#REF!",null,"#REF!"]
["LUBUSKIE","słubicki","Ośno Lubuskie","#REF!",null,"#REF!"]
["LUBUSKIE","słubicki","Rzepin","#REF!",null,"#REF!"]
["LUBUSKIE","słubicki","Słubice","#REF!",null,"#REF!"]
["LUBUSKIE","strzelecko-drezdenecki","Dobiegniew","#REF!",null,"#REF!"]
["LUBUSKIE","strzelecko-drezdenecki","Drezdenko","#REF!",null,"#REF!"]
["LUBUSKIE","strzelecko-drezdenecki","Stare Kurowo","#REF!",null,"#REF!"]
["LUBUSKIE","strzelecko-drezdenecki","Strzelce Krajeńskie","#REF!",null,"#REF!"]
["LUBUSKIE","strzelecko-drezdenecki","Zwierzyn","#REF!",null,"#REF!"]
["LUBUSKIE","sulęciński","Krzeszyce","#REF!",null,"#REF!"]
["LUBUSKIE","sulęciński","Lubniewice","#REF!",null,"#REF!"]
["LUBUSKIE","sulęciński","Słońsk","#REF!",null,"#REF!"]
["LUBUSKIE","sulęciński","Sulęcin","#REF!",null,"#REF!"]
["LUBUSKIE","sulęciński","Torzym","#REF!",null,"#REF!"]
["LUBUSKIE","świebodziński","Lubrza","#REF!",null,"#REF!"]
["LUBUSKIE","świebodziński","Łagów","#REF!",null,"#REF!"]
["LUBUSKIE","świebodziński","Skąpe","#REF!",null,"#REF!"]
["LUBUSKIE","świebodziński","Szczaniec","#REF!",null,"#REF!"]
["LUBUSKIE","świebodziński","Świebodzin","#REF!",null,"#REF!"]
["LUBUSKIE","świebodziński","Zbąszynek","#REF!",null,"#REF!"]
["LUBUSKIE","wschowski","Sława","#REF!",null,"#REF!"]
["LUBUSKIE","wschowski","Szlichtyngowa","#REF!",null,"#REF!"]
["LUBUSKIE","wschowski","Wschowa","#REF!",null,"#REF!"]
["LUBUSKIE","Zielona Góra","Zielona Góra","#REF!",null,"#REF!"]
["LUBUSKIE","zielonogórski","Babimost","#REF!",null,"#REF!"]
["LUBUSKIE","zielonogórski","Bojadła","#REF!",null,"#REF!"]
["LUBUSKIE","zielonogórski","Czerwieńsk","#REF!",null,"#REF!"]
["LUBUSKIE","zielonogórski","Kargowa","#REF!",null,"#REF!"]
["LUBUSKIE","zielonogórski","Nowogród Bobrzański","#REF!",null,"#REF!"]
["LUBUSKIE","zielonogórski","Sulechów","#REF!",null,"#REF!"]
["LUBUSKIE","zielonogórski","Świdnica","#REF!",null,"#REF!"]
["LUBUSKIE","zielonogórski","Trzebiechów","#REF!",null,"#REF!"]
["LUBUSKIE","zielonogórski","Zabór","#REF!",null,"#REF!"]
["LUBUSKIE","żagański","Brzeźnica","#REF!",null,"#REF!"]
["LUBUSKIE","żagański","Gozdnica","#REF!",null,"#REF!"]
["LUBUSKIE","żagański","Iłowa","#REF!",null,"#REF!"]
["LUBUSKIE","żagański","Małomice","#REF!",null,"#REF!"]
["LUBUSKIE","żagański","Niegosławice","#REF!",null,"#REF!"]
["LUBUSKIE","żagański","Szprotawa","#REF!",null,"#REF!"]
["LUBUSKIE","żagański","Wymiarki","#REF!",null,"#REF!"]
["LUBUSKIE","żagański","Żagań","#REF!",null,"#REF!"]
["LUBUSKIE","żarski","Brody","#REF!",null,"#REF!"]
["LUBUSKIE","żarski","Jasień","#REF!",null,"#REF!"]
["LUBUSKIE","żarski","Lipinki Łużyckie","#REF!",null,"#REF!"]
["LUBUSKIE","żarski","Lubsko","#REF!",null,"#REF!"]
["LUBUSKIE","żarski","Łęknica","#REF!",null,"#REF!"]
["LUBUSKIE","żarski","Przewóz","#REF!",null,"#REF!"]
["LUBUSKIE","żarski","Trzebiel","#REF!",null,"#REF!"]
["LUBUSKIE","żarski","Tuplice","#REF!",null,"#REF!"]
["LUBUSKIE","żarski","Żary","#REF!",null,"#REF!"]
["ŁÓDZKIE","bełchatowski","Bełchatów","#REF!",null,"#REF!"]
["ŁÓDZKIE","bełchatowski","Drużbice","#REF!",null,"#REF!"]
["ŁÓDZKIE","bełchatowski","Kleszczów","#REF!",null,"#REF!"]
["ŁÓDZKIE","bełchatowski","Kluki","#REF!",null,"#REF!"]
["ŁÓDZKIE","bełchatowski","Rusiec","#REF!",null,"#REF!"]
["ŁÓDZKIE","bełchatowski","Szczerców","#REF!",null,"#REF!"]
["ŁÓDZKIE","bełchatowski","Zelów","#REF!",null,"#REF!"]
["ŁÓDZKIE","brzeziński","Brzeziny","#REF!",null,"#REF!"]
["ŁÓDZKIE","brzeziński","Dmosin","#REF!",null,"#REF!"]
["ŁÓDZKIE","brzeziński","Jeżów","#REF!",null,"#REF!"]
["ŁÓDZKIE","brzeziński","Rogów","#REF!",null,"#REF!"]
["ŁÓDZKIE","kutnowski","Bedlno","#REF!",null,"#REF!"]
["ŁÓDZKIE","kutnowski","Dąbrowice","#REF!",null,"#REF!"]
["ŁÓDZKIE","kutnowski","Krośniewice","#REF!",null,"#REF!"]
["ŁÓDZKIE","kutnowski","Krzyżanów","#REF!",null,"#REF!"]
["ŁÓDZKIE","kutnowski","Kutno","#REF!",null,"#REF!"]
["ŁÓDZKIE","kutnowski","Łanięta","#REF!",null,"#REF!"]
["ŁÓDZKIE","kutnowski","Nowe Ostrowy","#REF!",null,"#REF!"]
["ŁÓDZKIE","kutnowski","Oporów","#REF!",null,"#REF!"]
["ŁÓDZKIE","kutnowski","Strzelce","#REF!",null,"#REF!"]
["ŁÓDZKIE","kutnowski","Żychlin","#REF!",null,"#REF!"]
["ŁÓDZKIE","łaski","Buczek","#REF!",null,"#REF!"]
["ŁÓDZKIE","łaski","Łask","#REF!",null,"#REF!"]
["ŁÓDZKIE","łaski","Sędziejowice","#REF!",null,"#REF!"]
["ŁÓDZKIE","łaski","Widawa","#REF!",null,"#REF!"]
["ŁÓDZKIE","łaski","Wodzierady","#REF!",null,"#REF!"]
["ŁÓDZKIE","łęczycki","Daszyna","#REF!",null,"#REF!"]
["ŁÓDZKIE","łęczycki","Góra Świętej Małgorzaty","#REF!",null,"#REF!"]
["ŁÓDZKIE","łęczycki","Grabów","#REF!",null,"#REF!"]
["ŁÓDZKIE","łęczycki","Łęczyca","#REF!",null,"#REF!"]
["ŁÓDZKIE","łęczycki","Piątek","#REF!",null,"#REF!"]
["ŁÓDZKIE","łęczycki","Świnice Warckie","#REF!",null,"#REF!"]
["ŁÓDZKIE","łęczycki","Witonia","#REF!",null,"#REF!"]
["ŁÓDZKIE","łowicki","Bielawy","#REF!",null,"#REF!"]
["ŁÓDZKIE","łowicki","Chąśno","#REF!",null,"#REF!"]
["ŁÓDZKIE","łowicki","Domaniewice","#REF!",null,"#REF!"]
["ŁÓDZKIE","łowicki","Kiernozia","#REF!",null,"#REF!"]
["ŁÓDZKIE","łowicki","Kocierzew Południowy","#REF!",null,"#REF!"]
["ŁÓDZKIE","łowicki","Łowicz","#REF!",null,"#REF!"]
["ŁÓDZKIE","łowicki","Łyszkowice","#REF!",null,"#REF!"]
["ŁÓDZKIE","łowicki","Nieborów","#REF!",null,"#REF!"]
["ŁÓDZKIE","łowicki","Zduny","#REF!",null,"#REF!"]
["ŁÓDZKIE","łódzki wschodni","Andrespol","#REF!",null,"#REF!"]
["ŁÓDZKIE","łódzki wschodni","Brójce","#REF!",null,"#REF!"]
["ŁÓDZKIE","łódzki wschodni","Koluszki","#REF!",null,"#REF!"]
["ŁÓDZKIE","łódzki wschodni","Nowosolna","#REF!",null,"#REF!"]
["ŁÓDZKIE","łódzki wschodni","Rzgów","#REF!",null,"#REF!"]
["ŁÓDZKIE","łódzki wschodni","Tuszyn","#REF!",null,"#REF!"]
["ŁÓDZKIE","Łódź","Łódź","#REF!",null,"#REF!"]
["ŁÓDZKIE","opoczyński","Białaczów","#REF!",null,"#REF!"]
["ŁÓDZKIE","opoczyński","Drzewica","#REF!",null,"#REF!"]
["ŁÓDZKIE","opoczyński","Mniszków","#REF!",null,"#REF!"]
["ŁÓDZKIE","opoczyński","Opoczno","#REF!",null,"#REF!"]
["ŁÓDZKIE","opoczyński","Paradyż","#REF!",null,"#REF!"]
["ŁÓDZKIE","opoczyński","Poświętne","#REF!",null,"#REF!"]
["ŁÓDZKIE","opoczyński","Sławno","#REF!",null,"#REF!"]
["ŁÓDZKIE","opoczyński","Żarnów","#REF!",null,"#REF!"]
["ŁÓDZKIE","pabianicki","Dłutów","#REF!",null,"#REF!"]
["ŁÓDZKIE","pabianicki","Dobroń","#REF!",null,"#REF!"]
["ŁÓDZKIE","pabianicki","Konstantynów Łódzki","#REF!",null,"#REF!"]
["ŁÓDZKIE","pabianicki","Ksawerów","#REF!",null,"#REF!"]
["ŁÓDZKIE","pabianicki","Lutomiersk","#REF!",null,"#REF!"]
["ŁÓDZKIE","pabianicki","Pabianice","#REF!",null,"#REF!"]
["ŁÓDZKIE","pajęczański","Działoszyn","#REF!",null,"#REF!"]
["ŁÓDZKIE","pajęczański","Kiełczygłów","#REF!",null,"#REF!"]
["ŁÓDZKIE","pajęczański","Nowa Brzeźnica","#REF!",null,"#REF!"]
["ŁÓDZKIE","pajęczański","Pajęczno","#REF!",null,"#REF!"]
["ŁÓDZKIE","pajęczański","Rząśnia","#REF!",null,"#REF!"]
["ŁÓDZKIE","pajęczański","Siemkowice","#REF!",null,"#REF!"]
["ŁÓDZKIE","pajęczański","Strzelce Wielkie","#REF!",null,"#REF!"]
["ŁÓDZKIE","pajęczański","Sulmierzyce","#REF!",null,"#REF!"]
["ŁÓDZKIE","piotrkowski","Aleksandrów","#REF!",null,"#REF!"]
["ŁÓDZKIE","piotrkowski","Czarnocin","#REF!",null,"#REF!"]
["ŁÓDZKIE","piotrkowski","Gorzkowice","#REF!",null,"#REF!"]
["ŁÓDZKIE","piotrkowski","Grabica","#REF!",null,"#REF!"]
["ŁÓDZKIE","piotrkowski","Łęki Szlacheckie","#REF!",null,"#REF!"]
["ŁÓDZKIE","piotrkowski","Moszczenica","#REF!",null,"#REF!"]
["ŁÓDZKIE","piotrkowski","Ręczno","#REF!",null,"#REF!"]
["ŁÓDZKIE","piotrkowski","Rozprza","#REF!",null,"#REF!"]
["ŁÓDZKIE","piotrkowski","Sulejów","#REF!",null,"#REF!"]
["ŁÓDZKIE","piotrkowski","Wola Krzysztoporska","#REF!",null,"#REF!"]
["ŁÓDZKIE","piotrkowski","Wolbórz","#REF!",null,"#REF!"]
["ŁÓDZKIE","Piotrków Trybunalski","Piotrków Trybunalski","#REF!",null,"#REF!"]
["ŁÓDZKIE","poddębicki","Dalików","#REF!",null,"#REF!"]
["ŁÓDZKIE","poddębicki","Pęczniew","#REF!",null,"#REF!"]
["ŁÓDZKIE","poddębicki","Poddębice","#REF!",null,"#REF!"]
["ŁÓDZKIE","poddębicki","Uniejów","#REF!",null,"#REF!"]
["ŁÓDZKIE","poddębicki","Wartkowice","#REF!",null,"#REF!"]
["ŁÓDZKIE","poddębicki","Zadzim","#REF!",null,"#REF!"]
["ŁÓDZKIE","radomszczański","Dobryszyce","#REF!",null,"#REF!"]
["ŁÓDZKIE","radomszczański","Gidle","#REF!",null,"#REF!"]
["ŁÓDZKIE","radomszczański","Gomunice","#REF!",null,"#REF!"]
["ŁÓDZKIE","radomszczański","Kamieńsk","#REF!",null,"#REF!"]
["ŁÓDZKIE","radomszczański","Kobiele Wielkie","#REF!",null,"#REF!"]
["ŁÓDZKIE","radomszczański","Kodrąb","#REF!",null,"#REF!"]
["ŁÓDZKIE","radomszczański","Lgota Wielka","#REF!",null,"#REF!"]
["ŁÓDZKIE","radomszczański","Ładzice","#REF!",null,"#REF!"]
["ŁÓDZKIE","radomszczański","Masłowice","#REF!",null,"#REF!"]
["ŁÓDZKIE","radomszczański","Przedbórz","#REF!",null,"#REF!"]
["ŁÓDZKIE","radomszczański","Radomsko","#REF!",null,"#REF!"]
["ŁÓDZKIE","radomszczański","Wielgomłyny","#REF!",null,"#REF!"]
["ŁÓDZKIE","radomszczański","Żytno","#REF!",null,"#REF!"]
["ŁÓDZKIE","rawski","Biała Rawska","#REF!",null,"#REF!"]
["ŁÓDZKIE","rawski","Cielądz","#REF!",null,"#REF!"]
["ŁÓDZKIE","rawski","Rawa Mazowiecka","#REF!",null,"#REF!"]
["ŁÓDZKIE","rawski","Regnów","#REF!",null,"#REF!"]
["ŁÓDZKIE","rawski","Sadkowice","#REF!",null,"#REF!"]
["ŁÓDZKIE","sieradzki","Błaszki","#REF!",null,"#REF!"]
["ŁÓDZKIE","sieradzki","Brąszewice","#REF!",null,"#REF!"]
["ŁÓDZKIE","sieradzki","Brzeźnio","#REF!",null,"#REF!"]
["ŁÓDZKIE","sieradzki","Burzenin","#REF!",null,"#REF!"]
["ŁÓDZKIE","sieradzki","Goszczanów","#REF!",null,"#REF!"]
["ŁÓDZKIE","sieradzki","Klonowa","#REF!",null,"#REF!"]
["ŁÓDZKIE","sieradzki","Sieradz","#REF!",null,"#REF!"]
["ŁÓDZKIE","sieradzki","Warta","#REF!",null,"#REF!"]
["ŁÓDZKIE","sieradzki","Wróblew","#REF!",null,"#REF!"]
["ŁÓDZKIE","sieradzki","Złoczew","#REF!",null,"#REF!"]
["ŁÓDZKIE","Skierniewice","Skierniewice","#REF!",null,"#REF!"]
["ŁÓDZKIE","skierniewicki","Bolimów","#REF!",null,"#REF!"]
["ŁÓDZKIE","skierniewicki","Głuchów","#REF!",null,"#REF!"]
["ŁÓDZKIE","skierniewicki","Godzianów","#REF!",null,"#REF!"]
["ŁÓDZKIE","skierniewicki","Kowiesy","#REF!",null,"#REF!"]
["ŁÓDZKIE","skierniewicki","Lipce Reymontowskie","#REF!",null,"#REF!"]
["ŁÓDZKIE","skierniewicki","Maków","#REF!",null,"#REF!"]
["ŁÓDZKIE","skierniewicki","Nowy Kawęczyn","#REF!",null,"#REF!"]
["ŁÓDZKIE","skierniewicki","Skierniewice","#REF!",null,"#REF!"]
["ŁÓDZKIE","skierniewicki","Słupia","#REF!",null,"#REF!"]
["ŁÓDZKIE","tomaszowski","Będków","#REF!",null,"#REF!"]
["ŁÓDZKIE","tomaszowski","Budziszewice","#REF!",null,"#REF!"]
["ŁÓDZKIE","tomaszowski","Czerniewice","#REF!",null,"#REF!"]
["ŁÓDZKIE","tomaszowski","Inowłódz","#REF!",null,"#REF!"]
["ŁÓDZKIE","tomaszowski","Lubochnia","#REF!",null,"#REF!"]
["ŁÓDZKIE","tomaszowski","Rokiciny","#REF!",null,"#REF!"]
["ŁÓDZKIE","tomaszowski","Rzeczyca","#REF!",null,"#REF!"]
["ŁÓDZKIE","tomaszowski","Tomaszów Mazowiecki","#REF!",null,"#REF!"]
["ŁÓDZKIE","tomaszowski","Ujazd","#REF!",null,"#REF!"]
["ŁÓDZKIE","tomaszowski","Żelechlinek","#REF!",null,"#REF!"]
["ŁÓDZKIE","wieluński","Biała","#REF!",null,"#REF!"]
["ŁÓDZKIE","wieluński","Czarnożyły","#REF!",null,"#REF!"]
["ŁÓDZKIE","wieluński","Konopnica","#REF!",null,"#REF!"]
["ŁÓDZKIE","wieluński","Mokrsko","#REF!",null,"#REF!"]
["ŁÓDZKIE","wieluński","Osjaków","#REF!",null,"#REF!"]
["ŁÓDZKIE","wieluński","Ostrówek","#REF!",null,"#REF!"]
["ŁÓDZKIE","wieluński","Pątnów","#REF!",null,"#REF!"]
["ŁÓDZKIE","wieluński","Skomlin","#REF!",null,"#REF!"]
["ŁÓDZKIE","wieluński","Wieluń","#REF!",null,"#REF!"]
["ŁÓDZKIE","wieluński","Wierzchlas","#REF!",null,"#REF!"]
["ŁÓDZKIE","wieruszowski","Bolesławiec","#REF!",null,"#REF!"]
["ŁÓDZKIE","wieruszowski","Czastary","#REF!",null,"#REF!"]
["ŁÓDZKIE","wieruszowski","Galewice","#REF!",null,"#REF!"]
["ŁÓDZKIE","wieruszowski","Lututów","#REF!",null,"#REF!"]
["ŁÓDZKIE","wieruszowski","Łubnice","#REF!",null,"#REF!"]
["ŁÓDZKIE","wieruszowski","Sokolniki","#REF!",null,"#REF!"]
["ŁÓDZKIE","wieruszowski","Wieruszów","#REF!",null,"#REF!"]
["ŁÓDZKIE","zduńskowolski","Szadek","#REF!",null,"#REF!"]
["ŁÓDZKIE","zduńskowolski","Zapolice","#REF!",null,"#REF!"]
["ŁÓDZKIE","zduńskowolski","Zduńska Wola","#REF!",null,"#REF!"]
["ŁÓDZKIE","zgierski","Aleksandrów Łódzki","#REF!",null,"#REF!"]
["ŁÓDZKIE","zgierski","Głowno","#REF!",null,"#REF!"]
["ŁÓDZKIE","zgierski","Ozorków","#REF!",null,"#REF!"]
["ŁÓDZKIE","zgierski","Parzęczew","#REF!",null,"#REF!"]
["ŁÓDZKIE","zgierski","Stryków","#REF!",null,"#REF!"]
["ŁÓDZKIE","zgierski","Zgierz","#REF!",null,"#REF!"]
["MAŁOPOLSKIE","bocheński","Bochnia","#REF!",null,"#REF!"]
["MAŁOPOLSKIE","bocheński","Drwinia","#REF!",null,"#REF!"]
["MAŁOPOLSKIE","bocheński","Lipnica Murowana","#REF!",null,"#REF!"]
["MAŁOPOLSKIE","bocheński","Łapanów","#REF!",null,"#REF!"]
["MAŁOPOLSKIE","bocheński","Nowy Wiśnicz","#REF!",null,"#REF!"]
["MAŁOPOLSKIE","bocheński","Rzezawa","#REF!",null,"#REF!"]
["MAŁOPOLSKIE","bocheński","Trzciana","#REF!",null,"#REF!"]
["MAŁOPOLSKIE","bocheński","Żegocina","#REF!",null,"#REF!"]
["MAŁOPOLSKIE","brzeski","Borzęcin","#REF!",null,"#REF!"]
["MAŁOPOLSKIE","brzeski","Brzesko","#REF!",null,"#REF!"]
["MAŁOPOLSKIE","brzeski","Czchów","#REF!",null,"#REF!"]
["MAŁOPOLSKIE","brzeski","Dębno","#REF!",null,"#REF!"]
["MAŁOPOLSKIE","brzeski","Gnojnik","#REF!",null,"#REF!"]
["MAŁOPOLSKIE","brzeski","Iwkowa","#REF!",null,"#REF!"]
["MAŁOPOLSKIE","brzeski","Szczurowa","#REF!",null,"#REF!"]
["MAŁOPOLSKIE","chrzanowski","Alwernia","#REF!",null,"#REF!"]
["MAŁOPOLSKIE","chrzanowski","Babice","#REF!",null,"#REF!"]
["MAŁOPOLSKIE","chrzanowski","Chrzanów","#REF!",null,"#REF!"]
["MAŁOPOLSKIE","chrzanowski","Libiąż","#REF!",null,"#REF!"]
["MAŁOPOLSKIE","chrzanowski","Trzebinia","#REF!",null,"#REF!"]
["MAŁOPOLSKIE","dąbrowski","Bolesław","#REF!",null,"#REF!"]
["MAŁOPOLSKIE","dąbrowski","Dąbrowa Tarnowska","#REF!",null,"#REF!"]
["MAŁOPOLSKIE","dąbrowski","Gręboszów","#REF!",null,"#REF!"]
["MAŁOPOLSKIE","dąbrowski","Mędrzechów","#REF!",null,"#REF!"]
["MAŁOPOLSKIE","dąbrowski","Olesno","#REF!",null,"#REF!"]
["MAŁOPOLSKIE","dąbrowski","Radgoszcz","#REF!",null,"#REF!"]
["MAŁOPOLSKIE","dąbrowski","Szczucin","#REF!",null,"#REF!"]
["MAŁOPOLSKIE","gorlicki","Biecz","#REF!",null,"#REF!"]
["MAŁOPOLSKIE","gorlicki","Bobowa","#REF!",null,"#REF!"]
["MAŁOPOLSKIE","gorlicki","Gorlice","#REF!",null,"#REF!"]
["MAŁOPOLSKIE","gorlicki","Lipinki","#REF!",null,"#REF!"]
["MAŁOPOLSKIE","gorlicki","Łużna","#REF!",null,"#REF!"]
["MAŁOPOLSKIE","gorlicki","Moszczenica","#REF!",null,"#REF!"]
["MAŁOPOLSKIE","gorlicki","Ropa","#REF!",null,"#REF!"]
["MAŁOPOLSKIE","gorlicki","Sękowa","#REF!",null,"#REF!"]
["MAŁOPOLSKIE","gorlicki","Uście Gorlickie","#REF!",null,"#REF!"]
["MAŁOPOLSKIE","krakowski","Czernichów","#REF!",null,"#REF!"]
["MAŁOPOLSKIE","krakowski","Igołomia-Wawrzeńczyce","#REF!",null,"#REF!"]
["MAŁOPOLSKIE","krakowski","Iwanowice","#REF!",null,"#REF!"]
["MAŁOPOLSKIE","krakowski","Jerzmanowice-Przeginia","#REF!",null,"#REF!"]
["MAŁOPOLSKIE","krakowski","Kocmyrzów-Luborzyca","#REF!",null,"#REF!"]
["MAŁOPOLSKIE","krakowski","Krzeszowice","#REF!",null,"#REF!"]
["MAŁOPOLSKIE","krakowski","Liszki","#REF!",null,"#REF!"]
["MAŁOPOLSKIE","krakowski","Michałowice","#REF!",null,"#REF!"]
["MAŁOPOLSKIE","krakowski","Mogilany","#REF!",null,"#REF!"]
["MAŁOPOLSKIE","krakowski","Skała","#REF!",null,"#REF!"]
["MAŁOPOLSKIE","krakowski","Skawina","#REF!",null,"#REF!"]
["MAŁOPOLSKIE","krakowski","Słomniki","#REF!",null,"#REF!"]
["MAŁOPOLSKIE","krakowski","Sułoszowa","#REF!",null,"#REF!"]
["MAŁOPOLSKIE","krakowski","Świątniki Górne","#REF!",null,"#REF!"]
["MAŁOPOLSKIE","krakowski","Wielka Wieś","#REF!",null,"#REF!"]
["MAŁOPOLSKIE","krakowski","Zabierzów","#REF!",null,"#REF!"]
["MAŁOPOLSKIE","krakowski","Zielonki","#REF!",null,"#REF!"]
["MAŁOPOLSKIE","Kraków","Kraków","#REF!",null,"#REF!"]
["MAŁOPOLSKIE","limanowski","Dobra","#REF!",null,"#REF!"]
["MAŁOPOLSKIE","limanowski","Jodłownik","#REF!",null,"#REF!"]
["MAŁOPOLSKIE","limanowski","Kamienica","#REF!",null,"#REF!"]
["MAŁOPOLSKIE","limanowski","Laskowa","#REF!",null,"#REF!"]
["MAŁOPOLSKIE","limanowski","Limanowa","#REF!",null,"#REF!"]
["MAŁOPOLSKIE","limanowski","Łukowica","#REF!",null,"#REF!"]
["MAŁOPOLSKIE","limanowski","Mszana Dolna","#REF!",null,"#REF!"]
["MAŁOPOLSKIE","limanowski","Niedźwiedź","#REF!",null,"#REF!"]
["MAŁOPOLSKIE","limanowski","Słopnice","#REF!",null,"#REF!"]
["MAŁOPOLSKIE","limanowski","Tymbark","#REF!",null,"#REF!"]
["MAŁOPOLSKIE","miechowski","Charsznica","#REF!",null,"#REF!"]
["MAŁOPOLSKIE","miechowski","Gołcza","#REF!",null,"#REF!"]
["MAŁOPOLSKIE","miechowski","Kozłów","#REF!",null,"#REF!"]
["MAŁOPOLSKIE","miechowski","Książ Wielki","#REF!",null,"#REF!"]
["MAŁOPOLSKIE","miechowski","Miechów","#REF!",null,"#REF!"]
["MAŁOPOLSKIE","miechowski","Racławice","#REF!",null,"#REF!"]
["MAŁOPOLSKIE","miechowski","Słaboszów","#REF!",null,"#REF!"]
["MAŁOPOLSKIE","myślenicki","Dobczyce","#REF!",null,"#REF!"]
["MAŁOPOLSKIE","myślenicki","Lubień","#REF!",null,"#REF!"]
["MAŁOPOLSKIE","myślenicki","Myślenice","#REF!",null,"#REF!"]
["MAŁOPOLSKIE","myślenicki","Pcim","#REF!",null,"#REF!"]
["MAŁOPOLSKIE","myślenicki","Raciechowice","#REF!",null,"#REF!"]
["MAŁOPOLSKIE","myślenicki","Siepraw","#REF!",null,"#REF!"]
["MAŁOPOLSKIE","myślenicki","Sułkowice","#REF!",null,"#REF!"]
["MAŁOPOLSKIE","myślenicki","Tokarnia","#REF!",null,"#REF!"]
["MAŁOPOLSKIE","myślenicki","Wiśniowa","#REF!",null,"#REF!"]
["MAŁOPOLSKIE","nowosądecki","Chełmiec","#REF!",null,"#REF!"]
["MAŁOPOLSKIE","nowosądecki","Gródek nad Dunajcem","#REF!",null,"#REF!"]
["MAŁOPOLSKIE","nowosądecki","Grybów","#REF!",null,"#REF!"]
["MAŁOPOLSKIE","nowosądecki","Kamionka Wielka","#REF!",null,"#REF!"]
["MAŁOPOLSKIE","nowosądecki","Korzenna","#REF!",null,"#REF!"]
["MAŁOPOLSKIE","nowosądecki","Krynica-Zdrój","#REF!",null,"#REF!"]
["MAŁOPOLSKIE","nowosądecki","Łabowa","#REF!",null,"#REF!"]
["MAŁOPOLSKIE","nowosądecki","Łącko","#REF!",null,"#REF!"]
["MAŁOPOLSKIE","nowosądecki","Łososina Dolna","#REF!",null,"#REF!"]
["MAŁOPOLSKIE","nowosądecki","Muszyna","#REF!",null,"#REF!"]
["MAŁOPOLSKIE","nowosądecki","Nawojowa","#REF!",null,"#REF!"]
["MAŁOPOLSKIE","nowosądecki","Piwniczna-Zdrój","#REF!",null,"#REF!"]
["MAŁOPOLSKIE","nowosądecki","Podegrodzie","#REF!",null,"#REF!"]
["MAŁOPOLSKIE","nowosądecki","Rytro","#REF!",null,"#REF!"]
["MAŁOPOLSKIE","nowosądecki","Stary Sącz","#REF!",null,"#REF!"]
["MAŁOPOLSKIE","nowotarski","Czarny Dunajec","#REF!",null,"#REF!"]
["MAŁOPOLSKIE","nowotarski","Czorsztyn","#REF!",null,"#REF!"]
["MAŁOPOLSKIE","nowotarski","Jabłonka","#REF!",null,"#REF!"]
["MAŁOPOLSKIE","nowotarski","Krościenko nad Dunajcem","#REF!",null,"#REF!"]
["MAŁOPOLSKIE","nowotarski","Lipnica Wielka","#REF!",null,"#REF!"]
["MAŁOPOLSKIE","nowotarski","Łapsze Niżne","#REF!",null,"#REF!"]
["MAŁOPOLSKIE","nowotarski","Nowy Targ","#REF!",null,"#REF!"]
["MAŁOPOLSKIE","nowotarski","Ochotnica Dolna","#REF!",null,"#REF!"]
["MAŁOPOLSKIE","nowotarski","Raba Wyżna","#REF!",null,"#REF!"]
["MAŁOPOLSKIE","nowotarski","Rabka-Zdrój","#REF!",null,"#REF!"]
["MAŁOPOLSKIE","nowotarski","Spytkowice","#REF!",null,"#REF!"]
["MAŁOPOLSKIE","nowotarski","Szaflary","#REF!",null,"#REF!"]
["MAŁOPOLSKIE","nowotarski","Szczawnica","#REF!",null,"#REF!"]
["MAŁOPOLSKIE","Nowy Sącz","Nowy Sącz","#REF!",null,"#REF!"]
["MAŁOPOLSKIE","olkuski","Bolesław","#REF!",null,"#REF!"]
["MAŁOPOLSKIE","olkuski","Bukowno","#REF!",null,"#REF!"]
["MAŁOPOLSKIE","olkuski","Klucze","#REF!",null,"#REF!"]
["MAŁOPOLSKIE","olkuski","Olkusz","#REF!",null,"#REF!"]
["MAŁOPOLSKIE","olkuski","Trzyciąż","#REF!",null,"#REF!"]
["MAŁOPOLSKIE","olkuski","Wolbrom","#REF!",null,"#REF!"]
["MAŁOPOLSKIE","oświęcimski","Brzeszcze","#REF!",null,"#REF!"]
["MAŁOPOLSKIE","oświęcimski","Chełmek","#REF!",null,"#REF!"]
["MAŁOPOLSKIE","oświęcimski","Kęty","#REF!",null,"#REF!"]
["MAŁOPOLSKIE","oświęcimski","Osiek","#REF!",null,"#REF!"]
["MAŁOPOLSKIE","oświęcimski","Oświęcim","#REF!",null,"#REF!"]
["MAŁOPOLSKIE","oświęcimski","Polanka Wielka","#REF!",null,"#REF!"]
["MAŁOPOLSKIE","oświęcimski","Przeciszów","#REF!",null,"#REF!"]
["MAŁOPOLSKIE","oświęcimski","Zator","#REF!",null,"#REF!"]
["MAŁOPOLSKIE","proszowicki","Koniusza","#REF!",null,"#REF!"]
["MAŁOPOLSKIE","proszowicki","Koszyce","#REF!",null,"#REF!"]
["MAŁOPOLSKIE","proszowicki","Nowe Brzesko","#REF!",null,"#REF!"]
["MAŁOPOLSKIE","proszowicki","Pałecznica","#REF!",null,"#REF!"]
["MAŁOPOLSKIE","proszowicki","Proszowice","#REF!",null,"#REF!"]
["MAŁOPOLSKIE","proszowicki","Radziemice","#REF!",null,"#REF!"]
["MAŁOPOLSKIE","suski","Budzów","#REF!",null,"#REF!"]
["MAŁOPOLSKIE","suski","Bystra-Sidzina","#REF!",null,"#REF!"]
["MAŁOPOLSKIE","suski","Jordanów","#REF!",null,"#REF!"]
["MAŁOPOLSKIE","suski","Maków Podhalański","#REF!",null,"#REF!"]
["MAŁOPOLSKIE","suski","Stryszawa","#REF!",null,"#REF!"]
["MAŁOPOLSKIE","suski","Sucha Beskidzka","#REF!",null,"#REF!"]
["MAŁOPOLSKIE","suski","Zawoja","#REF!",null,"#REF!"]
["MAŁOPOLSKIE","suski","Zembrzyce","#REF!",null,"#REF!"]
["MAŁOPOLSKIE","tarnowski","Ciężkowice","#REF!",null,"#REF!"]
["MAŁOPOLSKIE","tarnowski","Gromnik","#REF!",null,"#REF!"]
["MAŁOPOLSKIE","tarnowski","Lisia Góra","#REF!",null,"#REF!"]
["MAŁOPOLSKIE","tarnowski","Pleśna","#REF!",null,"#REF!"]
["MAŁOPOLSKIE","tarnowski","Radłów","#REF!",null,"#REF!"]
["MAŁOPOLSKIE","tarnowski","Ryglice","#REF!",null,"#REF!"]
["MAŁOPOLSKIE","tarnowski","Rzepiennik Strzyżewski","#REF!",null,"#REF!"]
["MAŁOPOLSKIE","tarnowski","Skrzyszów","#REF!",null,"#REF!"]
["MAŁOPOLSKIE","tarnowski","Szerzyny","#REF!",null,"#REF!"]
["MAŁOPOLSKIE","tarnowski","Tarnów","#REF!",null,"#REF!"]
["MAŁOPOLSKIE","tarnowski","Tuchów","#REF!",null,"#REF!"]
["MAŁOPOLSKIE","tarnowski","Wierzchosławice","#REF!",null,"#REF!"]
["MAŁOPOLSKIE","tarnowski","Wietrzychowice","#REF!",null,"#REF!"]
["MAŁOPOLSKIE","tarnowski","Wojnicz","#REF!",null,"#REF!"]
["MAŁOPOLSKIE","tarnowski","Zakliczyn","#REF!",null,"#REF!"]
["MAŁOPOLSKIE","tarnowski","Żabno","#REF!",null,"#REF!"]
["MAŁOPOLSKIE","Tarnów","Tarnów","#REF!",null,"#REF!"]
["MAŁOPOLSKIE","tatrzański","Biały Dunajec","#REF!",null,"#REF!"]
["MAŁOPOLSKIE","tatrzański","Bukowina Tatrzańska","#REF!",null,"#REF!"]
["MAŁOPOLSKIE","tatrzański","Kościelisko","#REF!",null,"#REF!"]
["MAŁOPOLSKIE","tatrzański","Poronin","#REF!",null,"#REF!"]
["MAŁOPOLSKIE","tatrzański","Zakopane","#REF!",null,"#REF!"]
["MAŁOPOLSKIE","wadowicki","Andrychów","#REF!",null,"#REF!"]
["MAŁOPOLSKIE","wadowicki","Brzeźnica","#REF!",null,"#REF!"]
["MAŁOPOLSKIE","wadowicki","Kalwaria Zebrzydowska","#REF!",null,"#REF!"]
["MAŁOPOLSKIE","wadowicki","Lanckorona","#REF!",null,"#REF!"]
["MAŁOPOLSKIE","wadowicki","Mucharz","#REF!",null,"#REF!"]
["MAŁOPOLSKIE","wadowicki","Spytkowice","#REF!",null,"#REF!"]
["MAŁOPOLSKIE","wadowicki","Stryszów","#REF!",null,"#REF!"]
["MAŁOPOLSKIE","wadowicki","Tomice","#REF!",null,"#REF!"]
["MAŁOPOLSKIE","wadowicki","Wadowice","#REF!",null,"#REF!"]
["MAŁOPOLSKIE","wadowicki","Wieprz","#REF!",null,"#REF!"]
["MAŁOPOLSKIE","wielicki","Biskupice","#REF!",null,"#REF!"]
["MAŁOPOLSKIE","wielicki","Gdów","#REF!",null,"#REF!"]
["MAŁOPOLSKIE","wielicki","Kłaj","#REF!",null,"#REF!"]
["MAŁOPOLSKIE","wielicki","Niepołomice","#REF!",null,"#REF!"]
["MAŁOPOLSKIE","wielicki","Wieliczka","#REF!",null,"#REF!"]
["MAZOWIECKIE","białobrzeski","Białobrzegi","#REF!",null,"#REF!"]
["MAZOWIECKIE","białobrzeski","Promna","#REF!",null,"#REF!"]
["MAZOWIECKIE","białobrzeski","Radzanów","#REF!",null,"#REF!"]
["MAZOWIECKIE","białobrzeski","Stara Błotnica","#REF!",null,"#REF!"]
["MAZOWIECKIE","białobrzeski","Stromiec","#REF!",null,"#REF!"]
["MAZOWIECKIE","białobrzeski","Wyśmierzyce","#REF!",null,"#REF!"]
["MAZOWIECKIE","ciechanowski","Ciechanów","#REF!",null,"#REF!"]
["MAZOWIECKIE","ciechanowski","Glinojeck","#REF!",null,"#REF!"]
["MAZOWIECKIE","ciechanowski","Gołymin-Ośrodek","#REF!",null,"#REF!"]
["MAZOWIECKIE","ciechanowski","Grudusk","#REF!",null,"#REF!"]
["MAZOWIECKIE","ciechanowski","Ojrzeń","#REF!",null,"#REF!"]
["MAZOWIECKIE","ciechanowski","Opinogóra Górna","#REF!",null,"#REF!"]
["MAZOWIECKIE","ciechanowski","Regimin","#REF!",null,"#REF!"]
["MAZOWIECKIE","ciechanowski","Sońsk","#REF!",null,"#REF!"]
["MAZOWIECKIE","garwoliński","Borowie","#REF!",null,"#REF!"]
["MAZOWIECKIE","garwoliński","Garwolin","#REF!",null,"#REF!"]
["MAZOWIECKIE","garwoliński","Górzno","#REF!",null,"#REF!"]
["MAZOWIECKIE","garwoliński","Łaskarzew","#REF!",null,"#REF!"]
["MAZOWIECKIE","garwoliński","Maciejowice","#REF!",null,"#REF!"]
["MAZOWIECKIE","garwoliński","Miastków Kościelny","#REF!",null,"#REF!"]
["MAZOWIECKIE","garwoliński","Parysów","#REF!",null,"#REF!"]
["MAZOWIECKIE","garwoliński","Pilawa","#REF!",null,"#REF!"]
["MAZOWIECKIE","garwoliński","Sobolew","#REF!",null,"#REF!"]
["MAZOWIECKIE","garwoliński","Trojanów","#REF!",null,"#REF!"]
["MAZOWIECKIE","garwoliński","Wilga","#REF!",null,"#REF!"]
["MAZOWIECKIE","garwoliński","Żelechów","#REF!",null,"#REF!"]
["MAZOWIECKIE","gostyniński","Gostynin","#REF!",null,"#REF!"]
["MAZOWIECKIE","gostyniński","Pacyna","#REF!",null,"#REF!"]
["MAZOWIECKIE","gostyniński","Sanniki","#REF!",null,"#REF!"]
["MAZOWIECKIE","gostyniński","Szczawin Kościelny","#REF!",null,"#REF!"]
["MAZOWIECKIE","grodziski","Baranów","#REF!",null,"#REF!"]
["MAZOWIECKIE","grodziski","Grodzisk Mazowiecki","#REF!",null,"#REF!"]
["MAZOWIECKIE","grodziski","Jaktorów","#REF!",null,"#REF!"]
["MAZOWIECKIE","grodziski","Milanówek","#REF!",null,"#REF!"]
["MAZOWIECKIE","grodziski","Podkowa Leśna","#REF!",null,"#REF!"]
["MAZOWIECKIE","grodziski","Żabia Wola","#REF!",null,"#REF!"]
["MAZOWIECKIE","grójecki","Belsk Duży","#REF!",null,"#REF!"]
["MAZOWIECKIE","grójecki","Błędów","#REF!",null,"#REF!"]
["MAZOWIECKIE","grójecki","Chynów","#REF!",null,"#REF!"]
["MAZOWIECKIE","grójecki","Goszczyn","#REF!",null,"#REF!"]
["MAZOWIECKIE","grójecki","Grójec","#REF!",null,"#REF!"]
["MAZOWIECKIE","grójecki","Jasieniec","#REF!",null,"#REF!"]
["MAZOWIECKIE","grójecki","Mogielnica","#REF!",null,"#REF!"]
["MAZOWIECKIE","grójecki","Nowe Miasto nad Pilicą","#REF!",null,"#REF!"]
["MAZOWIECKIE","grójecki","Pniewy","#REF!",null,"#REF!"]
["MAZOWIECKIE","grójecki","Warka","#REF!",null,"#REF!"]
["MAZOWIECKIE","kozienicki","Garbatka-Letnisko","#REF!",null,"#REF!"]
["MAZOWIECKIE","kozienicki","Głowaczów","#REF!",null,"#REF!"]
["MAZOWIECKIE","kozienicki","Gniewoszów","#REF!",null,"#REF!"]
["MAZOWIECKIE","kozienicki","Grabów nad Pilicą","#REF!",null,"#REF!"]
["MAZOWIECKIE","kozienicki","Kozienice","#REF!",null,"#REF!"]
["MAZOWIECKIE","kozienicki","Magnuszew","#REF!",null,"#REF!"]
["MAZOWIECKIE","kozienicki","Sieciechów","#REF!",null,"#REF!"]
["MAZOWIECKIE","legionowski","Jabłonna","#REF!",null,"#REF!"]
["MAZOWIECKIE","legionowski","Legionowo","#REF!",null,"#REF!"]
["MAZOWIECKIE","legionowski","Nieporęt","#REF!",null,"#REF!"]
["MAZOWIECKIE","legionowski","Serock","#REF!",null,"#REF!"]
["MAZOWIECKIE","legionowski","Wieliszew","#REF!",null,"#REF!"]
["MAZOWIECKIE","lipski","Chotcza","#REF!",null,"#REF!"]
["MAZOWIECKIE","lipski","Ciepielów","#REF!",null,"#REF!"]
["MAZOWIECKIE","lipski","Lipsko","#REF!",null,"#REF!"]
["MAZOWIECKIE","lipski","Rzeczniów","#REF!",null,"#REF!"]
["MAZOWIECKIE","lipski","Sienno","#REF!",null,"#REF!"]
["MAZOWIECKIE","lipski","Solec nad Wisłą","#REF!",null,"#REF!"]
["MAZOWIECKIE","łosicki","Huszlew","#REF!",null,"#REF!"]
["MAZOWIECKIE","łosicki","Łosice","#REF!",null,"#REF!"]
["MAZOWIECKIE","łosicki","Olszanka","#REF!",null,"#REF!"]
["MAZOWIECKIE","łosicki","Platerów","#REF!",null,"#REF!"]
["MAZOWIECKIE","łosicki","Sarnaki","#REF!",null,"#REF!"]
["MAZOWIECKIE","łosicki","Stara Kornica","#REF!",null,"#REF!"]
["MAZOWIECKIE","makowski","Czerwonka","#REF!",null,"#REF!"]
["MAZOWIECKIE","makowski","Karniewo","#REF!",null,"#REF!"]
["MAZOWIECKIE","makowski","Krasnosielc","#REF!",null,"#REF!"]
["MAZOWIECKIE","makowski","Maków Mazowiecki","#REF!",null,"#REF!"]
["MAZOWIECKIE","makowski","Młynarze","#REF!",null,"#REF!"]
["MAZOWIECKIE","makowski","Płoniawy-Bramura","#REF!",null,"#REF!"]
["MAZOWIECKIE","makowski","Różan","#REF!",null,"#REF!"]
["MAZOWIECKIE","makowski","Rzewnie","#REF!",null,"#REF!"]
["MAZOWIECKIE","makowski","Sypniewo","#REF!",null,"#REF!"]
["MAZOWIECKIE","makowski","Szelków","#REF!",null,"#REF!"]
["MAZOWIECKIE","miński","Cegłów","#REF!",null,"#REF!"]
["MAZOWIECKIE","miński","Dębe Wielkie","#REF!",null,"#REF!"]
["MAZOWIECKIE","miński","Dobre","#REF!",null,"#REF!"]
["MAZOWIECKIE","miński","Halinów","#REF!",null,"#REF!"]
["MAZOWIECKIE","miński","Jakubów","#REF!",null,"#REF!"]
["MAZOWIECKIE","miński","Kałuszyn","#REF!",null,"#REF!"]
["MAZOWIECKIE","miński","Latowicz","#REF!",null,"#REF!"]
["MAZOWIECKIE","miński","Mińsk Mazowiecki","#REF!",null,"#REF!"]
["MAZOWIECKIE","miński","Mrozy","#REF!",null,"#REF!"]
["MAZOWIECKIE","miński","Siennica","#REF!",null,"#REF!"]
["MAZOWIECKIE","miński","Stanisławów","#REF!",null,"#REF!"]
["MAZOWIECKIE","miński","Sulejówek","#REF!",null,"#REF!"]
["MAZOWIECKIE","mławski","Dzierzgowo","#REF!",null,"#REF!"]
["MAZOWIECKIE","mławski","Lipowiec Kościelny","#REF!",null,"#REF!"]
["MAZOWIECKIE","mławski","Mława","#REF!",null,"#REF!"]
["MAZOWIECKIE","mławski","Radzanów","#REF!",null,"#REF!"]
["MAZOWIECKIE","mławski","Strzegowo","#REF!",null,"#REF!"]
["MAZOWIECKIE","mławski","Stupsk","#REF!",null,"#REF!"]
["MAZOWIECKIE","mławski","Szreńsk","#REF!",null,"#REF!"]
["MAZOWIECKIE","mławski","Szydłowo","#REF!",null,"#REF!"]
["MAZOWIECKIE","mławski","Wieczfnia Kościelna","#REF!",null,"#REF!"]
["MAZOWIECKIE","mławski","Wiśniewo","#REF!",null,"#REF!"]
["MAZOWIECKIE","nowodworski","Czosnów","#REF!",null,"#REF!"]
["MAZOWIECKIE","nowodworski","Leoncin","#REF!",null,"#REF!"]
["MAZOWIECKIE","nowodworski","Nasielsk","#REF!",null,"#REF!"]
["MAZOWIECKIE","nowodworski","Nowy Dwór Mazowiecki","#REF!",null,"#REF!"]
["MAZOWIECKIE","nowodworski","Pomiechówek","#REF!",null,"#REF!"]
["MAZOWIECKIE","nowodworski","Zakroczym","#REF!",null,"#REF!"]
["MAZOWIECKIE","ostrołęcki","Baranowo","#REF!",null,"#REF!"]
["MAZOWIECKIE","ostrołęcki","Czarnia","#REF!",null,"#REF!"]
["MAZOWIECKIE","ostrołęcki","Czerwin","#REF!",null,"#REF!"]
["MAZOWIECKIE","ostrołęcki","Goworowo","#REF!",null,"#REF!"]
["MAZOWIECKIE","ostrołęcki","Kadzidło","#REF!",null,"#REF!"]
["MAZOWIECKIE","ostrołęcki","Lelis","#REF!",null,"#REF!"]
["MAZOWIECKIE","ostrołęcki","Łyse","#REF!",null,"#REF!"]
["MAZOWIECKIE","ostrołęcki","Myszyniec","#REF!",null,"#REF!"]
["MAZOWIECKIE","ostrołęcki","Olszewo-Borki","#REF!",null,"#REF!"]
["MAZOWIECKIE","ostrołęcki","Rzekuń","#REF!",null,"#REF!"]
["MAZOWIECKIE","ostrołęcki","Troszyn","#REF!",null,"#REF!"]
["MAZOWIECKIE","Ostrołęka","Ostrołęka","#REF!",null,"#REF!"]
["MAZOWIECKIE","ostrowski","Andrzejewo","#REF!",null,"#REF!"]
["MAZOWIECKIE","ostrowski","Boguty-Pianki","#REF!",null,"#REF!"]
["MAZOWIECKIE","ostrowski","Brok","#REF!",null,"#REF!"]
["MAZOWIECKIE","ostrowski","Małkinia Górna","#REF!",null,"#REF!"]
["MAZOWIECKIE","ostrowski","Nur","#REF!",null,"#REF!"]
["MAZOWIECKIE","ostrowski","Ostrów Mazowiecka","#REF!",null,"#REF!"]
["MAZOWIECKIE","ostrowski","Stary Lubotyń","#REF!",null,"#REF!"]
["MAZOWIECKIE","ostrowski","Szulborze Wielkie","#REF!",null,"#REF!"]
["MAZOWIECKIE","ostrowski","Wąsewo","#REF!",null,"#REF!"]
["MAZOWIECKIE","ostrowski","Zaręby Kościelne","#REF!",null,"#REF!"]
["MAZOWIECKIE","otwocki","Celestynów","#REF!",null,"#REF!"]
["MAZOWIECKIE","otwocki","Józefów","#REF!",null,"#REF!"]
["MAZOWIECKIE","otwocki","Karczew","#REF!",null,"#REF!"]
["MAZOWIECKIE","otwocki","Kołbiel","#REF!",null,"#REF!"]
["MAZOWIECKIE","otwocki","Osieck","#REF!",null,"#REF!"]
["MAZOWIECKIE","otwocki","Otwock","#REF!",null,"#REF!"]
["MAZOWIECKIE","otwocki","Sobienie-Jeziory","#REF!",null,"#REF!"]
["MAZOWIECKIE","otwocki","Wiązowna","#REF!",null,"#REF!"]
["MAZOWIECKIE","piaseczyński","Góra Kalwaria","#REF!",null,"#REF!"]
["MAZOWIECKIE","piaseczyński","Konstancin-Jeziorna","#REF!",null,"#REF!"]
["MAZOWIECKIE","piaseczyński","Lesznowola","#REF!",null,"#REF!"]
["MAZOWIECKIE","piaseczyński","Piaseczno","#REF!",null,"#REF!"]
["MAZOWIECKIE","piaseczyński","Prażmów","#REF!",null,"#REF!"]
["MAZOWIECKIE","piaseczyński","Tarczyn","#REF!",null,"#REF!"]
["MAZOWIECKIE","Płock","Płock","#REF!",null,"#REF!"]
["MAZOWIECKIE","płocki","Bielsk","#REF!",null,"#REF!"]
["MAZOWIECKIE","płocki","Bodzanów","#REF!",null,"#REF!"]
["MAZOWIECKIE","płocki","Brudzeń Duży","#REF!",null,"#REF!"]
["MAZOWIECKIE","płocki","Bulkowo","#REF!",null,"#REF!"]
["MAZOWIECKIE","płocki","Drobin","#REF!",null,"#REF!"]
["MAZOWIECKIE","płocki","Gąbin","#REF!",null,"#REF!"]
["MAZOWIECKIE","płocki","Łąck","#REF!",null,"#REF!"]
["MAZOWIECKIE","płocki","Mała Wieś","#REF!",null,"#REF!"]
["MAZOWIECKIE","płocki","Nowy Duninów","#REF!",null,"#REF!"]
["MAZOWIECKIE","płocki","Radzanowo","#REF!",null,"#REF!"]
["MAZOWIECKIE","płocki","Słubice","#REF!",null,"#REF!"]
["MAZOWIECKIE","płocki","Słupno","#REF!",null,"#REF!"]
["MAZOWIECKIE","płocki","Stara Biała","#REF!",null,"#REF!"]
["MAZOWIECKIE","płocki","Staroźreby","#REF!",null,"#REF!"]
["MAZOWIECKIE","płocki","Wyszogród","#REF!",null,"#REF!"]
["MAZOWIECKIE","płoński","Baboszewo","#REF!",null,"#REF!"]
["MAZOWIECKIE","płoński","Czerwińsk nad Wisłą","#REF!",null,"#REF!"]
["MAZOWIECKIE","płoński","Dzierzążnia","#REF!",null,"#REF!"]
["MAZOWIECKIE","płoński","Joniec","#REF!",null,"#REF!"]
["MAZOWIECKIE","płoński","Naruszewo","#REF!",null,"#REF!"]
["MAZOWIECKIE","płoński","Nowe Miasto","#REF!",null,"#REF!"]
["MAZOWIECKIE","płoński","Płońsk","#REF!",null,"#REF!"]
["MAZOWIECKIE","płoński","Raciąż","#REF!",null,"#REF!"]
["MAZOWIECKIE","płoński","Sochocin","#REF!",null,"#REF!"]
["MAZOWIECKIE","płoński","Załuski","#REF!",null,"#REF!"]
["MAZOWIECKIE","pruszkowski","Brwinów","#REF!",null,"#REF!"]
["MAZOWIECKIE","pruszkowski","Michałowice","#REF!",null,"#REF!"]
["MAZOWIECKIE","pruszkowski","Nadarzyn","#REF!",null,"#REF!"]
["MAZOWIECKIE","pruszkowski","Piastów","#REF!",null,"#REF!"]
["MAZOWIECKIE","pruszkowski","Pruszków","#REF!",null,"#REF!"]
["MAZOWIECKIE","pruszkowski","Raszyn","#REF!",null,"#REF!"]
["MAZOWIECKIE","przasnyski","Chorzele","#REF!",null,"#REF!"]
["MAZOWIECKIE","przasnyski","Czernice Borowe","#REF!",null,"#REF!"]
["MAZOWIECKIE","przasnyski","Jednorożec","#REF!",null,"#REF!"]
["MAZOWIECKIE","przasnyski","Krasne","#REF!",null,"#REF!"]
["MAZOWIECKIE","przasnyski","Krzynowłoga Mała","#REF!",null,"#REF!"]
["MAZOWIECKIE","przasnyski","Przasnysz","#REF!",null,"#REF!"]
["MAZOWIECKIE","przysuski","Borkowice","#REF!",null,"#REF!"]
["MAZOWIECKIE","przysuski","Gielniów","#REF!",null,"#REF!"]
["MAZOWIECKIE","przysuski","Klwów","#REF!",null,"#REF!"]
["MAZOWIECKIE","przysuski","Odrzywół","#REF!",null,"#REF!"]
["MAZOWIECKIE","przysuski","Potworów","#REF!",null,"#REF!"]
["MAZOWIECKIE","przysuski","Przysucha","#REF!",null,"#REF!"]
["MAZOWIECKIE","przysuski","Rusinów","#REF!",null,"#REF!"]
["MAZOWIECKIE","przysuski","Wieniawa","#REF!",null,"#REF!"]
["MAZOWIECKIE","pułtuski","Gzy","#REF!",null,"#REF!"]
["MAZOWIECKIE","pułtuski","Obryte","#REF!",null,"#REF!"]
["MAZOWIECKIE","pułtuski","Pokrzywnica","#REF!",null,"#REF!"]
["MAZOWIECKIE","pułtuski","Pułtusk","#REF!",null,"#REF!"]
["MAZOWIECKIE","pułtuski","Świercze","#REF!",null,"#REF!"]
["MAZOWIECKIE","pułtuski","Winnica","#REF!",null,"#REF!"]
["MAZOWIECKIE","pułtuski","Zatory","#REF!",null,"#REF!"]
["MAZOWIECKIE","Radom","Radom","#REF!",null,"#REF!"]
["MAZOWIECKIE","radomski","Gózd","#REF!",null,"#REF!"]
["MAZOWIECKIE","radomski","Iłża","#REF!",null,"#REF!"]
["MAZOWIECKIE","radomski","Jastrzębia","#REF!",null,"#REF!"]
["MAZOWIECKIE","radomski","Jedlińsk","#REF!",null,"#REF!"]
["MAZOWIECKIE","radomski","Jedlnia-Letnisko","#REF!",null,"#REF!"]
["MAZOWIECKIE","radomski","Kowala","#REF!",null,"#REF!"]
["MAZOWIECKIE","radomski","Pionki","#REF!",null,"#REF!"]
["MAZOWIECKIE","radomski","Przytyk","#REF!",null,"#REF!"]
["MAZOWIECKIE","radomski","Skaryszew","#REF!",null,"#REF!"]
["MAZOWIECKIE","radomski","Wierzbica","#REF!",null,"#REF!"]
["MAZOWIECKIE","radomski","Wolanów","#REF!",null,"#REF!"]
["MAZOWIECKIE","radomski","Zakrzew","#REF!",null,"#REF!"]
["MAZOWIECKIE","Siedlce","Siedlce","#REF!",null,"#REF!"]
["MAZOWIECKIE","siedlecki","Domanice","#REF!",null,"#REF!"]
["MAZOWIECKIE","siedlecki","Korczew","#REF!",null,"#REF!"]
["MAZOWIECKIE","siedlecki","Kotuń","#REF!",null,"#REF!"]
["MAZOWIECKIE","siedlecki","Mokobody","#REF!",null,"#REF!"]
["MAZOWIECKIE","siedlecki","Mordy","#REF!",null,"#REF!"]
["MAZOWIECKIE","siedlecki","Paprotnia","#REF!",null,"#REF!"]
["MAZOWIECKIE","siedlecki","Przesmyki","#REF!",null,"#REF!"]
["MAZOWIECKIE","siedlecki","Siedlce","#REF!",null,"#REF!"]
["MAZOWIECKIE","siedlecki","Skórzec","#REF!",null,"#REF!"]
["MAZOWIECKIE","siedlecki","Suchożebry","#REF!",null,"#REF!"]
["MAZOWIECKIE","siedlecki","Wiśniew","#REF!",null,"#REF!"]
["MAZOWIECKIE","siedlecki","Wodynie","#REF!",null,"#REF!"]
["MAZOWIECKIE","siedlecki","Zbuczyn","#REF!",null,"#REF!"]
["MAZOWIECKIE","sierpecki","Gozdowo","#REF!",null,"#REF!"]
["MAZOWIECKIE","sierpecki","Mochowo","#REF!",null,"#REF!"]
["MAZOWIECKIE","sierpecki","Rościszewo","#REF!",null,"#REF!"]
["MAZOWIECKIE","sierpecki","Sierpc","#REF!",null,"#REF!"]
["MAZOWIECKIE","sierpecki","Szczutowo","#REF!",null,"#REF!"]
["MAZOWIECKIE","sierpecki","Zawidz","#REF!",null,"#REF!"]
["MAZOWIECKIE","sochaczewski","Brochów","#REF!",null,"#REF!"]
["MAZOWIECKIE","sochaczewski","Iłów","#REF!",null,"#REF!"]
["MAZOWIECKIE","sochaczewski","Młodzieszyn","#REF!",null,"#REF!"]
["MAZOWIECKIE","sochaczewski","Nowa Sucha","#REF!",null,"#REF!"]
["MAZOWIECKIE","sochaczewski","Rybno","#REF!",null,"#REF!"]
["MAZOWIECKIE","sochaczewski","Sochaczew","#REF!",null,"#REF!"]
["MAZOWIECKIE","sochaczewski","Teresin","#REF!",null,"#REF!"]
["MAZOWIECKIE","sokołowski","Bielany","#REF!",null,"#REF!"]
["MAZOWIECKIE","sokołowski","Ceranów","#REF!",null,"#REF!"]
["MAZOWIECKIE","sokołowski","Jabłonna Lacka","#REF!",null,"#REF!"]
["MAZOWIECKIE","sokołowski","Kosów Lacki","#REF!",null,"#REF!"]
["MAZOWIECKIE","sokołowski","Repki","#REF!",null,"#REF!"]
["MAZOWIECKIE","sokołowski","Sabnie","#REF!",null,"#REF!"]
["MAZOWIECKIE","sokołowski","Sokołów Podlaski","#REF!",null,"#REF!"]
["MAZOWIECKIE","sokołowski","Sterdyń","#REF!",null,"#REF!"]
["MAZOWIECKIE","szydłowiecki","Chlewiska","#REF!",null,"#REF!"]
["MAZOWIECKIE","szydłowiecki","Jastrząb","#REF!",null,"#REF!"]
["MAZOWIECKIE","szydłowiecki","Mirów","#REF!",null,"#REF!"]
["MAZOWIECKIE","szydłowiecki","Orońsko","#REF!",null,"#REF!"]
["MAZOWIECKIE","szydłowiecki","Szydłowiec","#REF!",null,"#REF!"]
["MAZOWIECKIE","Warszawa","Warszawa","#REF!",null,"#REF!"]
["MAZOWIECKIE","warszawski zachodni","Błonie","#REF!",null,"#REF!"]
["MAZOWIECKIE","warszawski zachodni","Izabelin","#REF!",null,"#REF!"]
["MAZOWIECKIE","warszawski zachodni","Kampinos","#REF!",null,"#REF!"]
["MAZOWIECKIE","warszawski zachodni","Leszno","#REF!",null,"#REF!"]
["MAZOWIECKIE","warszawski zachodni","Łomianki","#REF!",null,"#REF!"]
["MAZOWIECKIE","warszawski zachodni","Ożarów Mazowiecki","#REF!",null,"#REF!"]
["MAZOWIECKIE","warszawski zachodni","Stare Babice","#REF!",null,"#REF!"]
["MAZOWIECKIE","węgrowski","Grębków","#REF!",null,"#REF!"]
["MAZOWIECKIE","węgrowski","Korytnica","#REF!",null,"#REF!"]
["MAZOWIECKIE","węgrowski","Liw","#REF!",null,"#REF!"]
["MAZOWIECKIE","węgrowski","Łochów","#REF!",null,"#REF!"]
["MAZOWIECKIE","węgrowski","Miedzna","#REF!",null,"#REF!"]
["MAZOWIECKIE","węgrowski","Sadowne","#REF!",null,"#REF!"]
["MAZOWIECKIE","węgrowski","Stoczek","#REF!",null,"#REF!"]
["MAZOWIECKIE","węgrowski","Węgrów","#REF!",null,"#REF!"]
["MAZOWIECKIE","węgrowski","Wierzbno","#REF!",null,"#REF!"]
["MAZOWIECKIE","wołomiński","Dąbrówka","#REF!",null,"#REF!"]
["MAZOWIECKIE","wołomiński","Jadów","#REF!",null,"#REF!"]
["MAZOWIECKIE","wołomiński","Klembów","#REF!",null,"#REF!"]
["MAZOWIECKIE","wołomiński","Kobyłka","#REF!",null,"#REF!"]
["MAZOWIECKIE","wołomiński","Marki","#REF!",null,"#REF!"]
["MAZOWIECKIE","wołomiński","Poświętne","#REF!",null,"#REF!"]
["MAZOWIECKIE","wołomiński","Radzymin","#REF!",null,"#REF!"]
["MAZOWIECKIE","wołomiński","Strachówka","#REF!",null,"#REF!"]
["MAZOWIECKIE","wołomiński","Tłuszcz","#REF!",null,"#REF!"]
["MAZOWIECKIE","wołomiński","Wołomin","#REF!",null,"#REF!"]
["MAZOWIECKIE","wołomiński","Ząbki","#REF!",null,"#REF!"]
["MAZOWIECKIE","wołomiński","Zielonka","#REF!",null,"#REF!"]
["MAZOWIECKIE","wyszkowski","Brańszczyk","#REF!",null,"#REF!"]
["MAZOWIECKIE","wyszkowski","Długosiodło","#REF!",null,"#REF!"]
["MAZOWIECKIE","wyszkowski","Rząśnik","#REF!",null,"#REF!"]
["MAZOWIECKIE","wyszkowski","Somianka","#REF!",null,"#REF!"]
["MAZOWIECKIE","wyszkowski","Wyszków","#REF!",null,"#REF!"]
["MAZOWIECKIE","wyszkowski","Zabrodzie","#REF!",null,"#REF!"]
["MAZOWIECKIE","zwoleński","Kazanów","#REF!",null,"#REF!"]
["MAZOWIECKIE","zwoleński","Policzna","#REF!",null,"#REF!"]
["MAZOWIECKIE","zwoleński","Przyłęk","#REF!",null,"#REF!"]
["MAZOWIECKIE","zwoleński","Tczów","#REF!",null,"#REF!"]
["MAZOWIECKIE","zwoleński","Zwoleń","#REF!",null,"#REF!"]
["MAZOWIECKIE","żuromiński","Bieżuń","#REF!",null,"#REF!"]
["MAZOWIECKIE","żuromiński","Kuczbork-Osada","#REF!",null,"#REF!"]
["MAZOWIECKIE","żuromiński","Lubowidz","#REF!",null,"#REF!"]
["MAZOWIECKIE","żuromiński","Lutocin","#REF!",null,"#REF!"]
["MAZOWIECKIE","żuromiński","Siemiątkowo","#REF!",null,"#REF!"]
["MAZOWIECKIE","żuromiński","Żuromin","#REF!",null,"#REF!"]
["MAZOWIECKIE","żyrardowski","Mszczonów","#REF!",null,"#REF!"]
["MAZOWIECKIE","żyrardowski","Puszcza Mariańska","#REF!",null,"#REF!"]
["MAZOWIECKIE","żyrardowski","Radziejowice","#REF!",null,"#REF!"]
["MAZOWIECKIE","żyrardowski","Wiskitki","#REF!",null,"#REF!"]
["MAZOWIECKIE","żyrardowski","Żyrardów","#REF!",null,"#REF!"]
["OPOLSKIE","brzeski","Brzeg","#REF!",null,"#REF!"]
["OPOLSKIE","brzeski","Grodków","#REF!",null,"#REF!"]
["OPOLSKIE","brzeski","Lewin Brzeski","#REF!",null,"#REF!"]
["OPOLSKIE","brzeski","Lubsza","#REF!",null,"#REF!"]
["OPOLSKIE","brzeski","Olszanka","#REF!",null,"#REF!"]
["OPOLSKIE","brzeski","Skarbimierz","#REF!",null,"#REF!"]
["OPOLSKIE","głubczycki","Baborów","#REF!",null,"#REF!"]
["OPOLSKIE","głubczycki","Branice","#REF!",null,"#REF!"]
["OPOLSKIE","głubczycki","Głubczyce","#REF!",null,"#REF!"]
["OPOLSKIE","głubczycki","Kietrz","#REF!",null,"#REF!"]
["OPOLSKIE","kędzierzyńsko-kozielski","Bierawa","#REF!",null,"#REF!"]
["OPOLSKIE","kędzierzyńsko-kozielski","Cisek","#REF!",null,"#REF!"]
["OPOLSKIE","kędzierzyńsko-kozielski","Kędzierzyn-Koźle","#REF!",null,"#REF!"]
["OPOLSKIE","kędzierzyńsko-kozielski","Pawłowiczki","#REF!",null,"#REF!"]
["OPOLSKIE","kędzierzyńsko-kozielski","Polska Cerekiew","#REF!",null,"#REF!"]
["OPOLSKIE","kędzierzyńsko-kozielski","Reńska Wieś","#REF!",null,"#REF!"]
["OPOLSKIE","kluczborski","Byczyna","#REF!",null,"#REF!"]
["OPOLSKIE","kluczborski","Kluczbork","#REF!",null,"#REF!"]
["OPOLSKIE","kluczborski","Lasowice Wielkie","#REF!",null,"#REF!"]
["OPOLSKIE","kluczborski","Wołczyn","#REF!",null,"#REF!"]
["OPOLSKIE","krapkowicki","Gogolin","#REF!",null,"#REF!"]
["OPOLSKIE","krapkowicki","Krapkowice","#REF!",null,"#REF!"]
["OPOLSKIE","krapkowicki","Strzeleczki","#REF!",null,"#REF!"]
["OPOLSKIE","krapkowicki","Walce","#REF!",null,"#REF!"]
["OPOLSKIE","krapkowicki","Zdzieszowice","#REF!",null,"#REF!"]
["OPOLSKIE","namysłowski","Domaszowice","#REF!",null,"#REF!"]
["OPOLSKIE","namysłowski","Namysłów","#REF!",null,"#REF!"]
["OPOLSKIE","namysłowski","Pokój","#REF!",null,"#REF!"]
["OPOLSKIE","namysłowski","Świerczów","#REF!",null,"#REF!"]
["OPOLSKIE","namysłowski","Wilków","#REF!",null,"#REF!"]
["OPOLSKIE","nyski","Głuchołazy","#REF!",null,"#REF!"]
["OPOLSKIE","nyski","Kamiennik","#REF!",null,"#REF!"]
["OPOLSKIE","nyski","Korfantów","#REF!",null,"#REF!"]
["OPOLSKIE","nyski","Łambinowice","#REF!",null,"#REF!"]
["OPOLSKIE","nyski","Nysa","#REF!",null,"#REF!"]
["OPOLSKIE","nyski","Otmuchów","#REF!",null,"#REF!"]
["OPOLSKIE","nyski","Paczków","#REF!",null,"#REF!"]
["OPOLSKIE","nyski","Pakosławice","#REF!",null,"#REF!"]
["OPOLSKIE","nyski","Skoroszyce","#REF!",null,"#REF!"]
["OPOLSKIE","oleski","Dobrodzień","#REF!",null,"#REF!"]
["OPOLSKIE","oleski","Gorzów Śląski","#REF!",null,"#REF!"]
["OPOLSKIE","oleski","Olesno","#REF!",null,"#REF!"]
["OPOLSKIE","oleski","Praszka","#REF!",null,"#REF!"]
["OPOLSKIE","oleski","Radłów","#REF!",null,"#REF!"]
["OPOLSKIE","oleski","Rudniki","#REF!",null,"#REF!"]
["OPOLSKIE","oleski","Zębowice","#REF!",null,"#REF!"]
["OPOLSKIE","Opole","Opole","#REF!",null,"#REF!"]
["OPOLSKIE","opolski","Chrząstowice","#REF!",null,"#REF!"]
["OPOLSKIE","opolski","Dąbrowa","#REF!",null,"#REF!"]
["OPOLSKIE","opolski","Dobrzeń Wielki","#REF!",null,"#REF!"]
["OPOLSKIE","opolski","Komprachcice","#REF!",null,"#REF!"]
["OPOLSKIE","opolski","Łubniany","#REF!",null,"#REF!"]
["OPOLSKIE","opolski","Murów","#REF!",null,"#REF!"]
["OPOLSKIE","opolski","Niemodlin","#REF!",null,"#REF!"]
["OPOLSKIE","opolski","Ozimek","#REF!",null,"#REF!"]
["OPOLSKIE","opolski","Popielów","#REF!",null,"#REF!"]
["OPOLSKIE","opolski","Prószków","#REF!",null,"#REF!"]
["OPOLSKIE","opolski","Tarnów Opolski","#REF!",null,"#REF!"]
["OPOLSKIE","opolski","Tułowice","#REF!",null,"#REF!"]
["OPOLSKIE","opolski","Turawa","#REF!",null,"#REF!"]
["OPOLSKIE","prudnicki","Biała","#REF!",null,"#REF!"]
["OPOLSKIE","prudnicki","Głogówek","#REF!",null,"#REF!"]
["OPOLSKIE","prudnicki","Lubrza","#REF!",null,"#REF!"]
["OPOLSKIE","prudnicki","Prudnik","#REF!",null,"#REF!"]
["OPOLSKIE","strzelecki","Izbicko","#REF!",null,"#REF!"]
["OPOLSKIE","strzelecki","Jemielnica","#REF!",null,"#REF!"]
["OPOLSKIE","strzelecki","Kolonowskie","#REF!",null,"#REF!"]
["OPOLSKIE","strzelecki","Leśnica","#REF!",null,"#REF!"]
["OPOLSKIE","strzelecki","Strzelce Opolskie","#REF!",null,"#REF!"]
["OPOLSKIE","strzelecki","Ujazd","#REF!",null,"#REF!"]
["OPOLSKIE","strzelecki","Zawadzkie","#REF!",null,"#REF!"]
["PODKARPACKIE","bieszczadzki","Czarna","#REF!",null,"#REF!"]
["PODKARPACKIE","bieszczadzki","Lutowiska","#REF!",null,"#REF!"]
["PODKARPACKIE","bieszczadzki","Ustrzyki Dolne","#REF!",null,"#REF!"]
["PODKARPACKIE","brzozowski","Brzozów","#REF!",null,"#REF!"]
["PODKARPACKIE","brzozowski","Domaradz","#REF!",null,"#REF!"]
["PODKARPACKIE","brzozowski","Dydnia","#REF!",null,"#REF!"]
["PODKARPACKIE","brzozowski","Haczów","#REF!",null,"#REF!"]
["PODKARPACKIE","brzozowski","Jasienica Rosielna","#REF!",null,"#REF!"]
["PODKARPACKIE","brzozowski","Nozdrzec","#REF!",null,"#REF!"]
["PODKARPACKIE","dębicki","Brzostek","#REF!",null,"#REF!"]
["PODKARPACKIE","dębicki","Czarna","#REF!",null,"#REF!"]
["PODKARPACKIE","dębicki","Dębica","#REF!",null,"#REF!"]
["PODKARPACKIE","dębicki","Jodłowa","#REF!",null,"#REF!"]
["PODKARPACKIE","dębicki","Pilzno","#REF!",null,"#REF!"]
["PODKARPACKIE","dębicki","Żyraków","#REF!",null,"#REF!"]
["PODKARPACKIE","jarosławski","Chłopice","#REF!",null,"#REF!"]
["PODKARPACKIE","jarosławski","Jarosław","#REF!",null,"#REF!"]
["PODKARPACKIE","jarosławski","Laszki","#REF!",null,"#REF!"]
["PODKARPACKIE","jarosławski","Pawłosiów","#REF!",null,"#REF!"]
["PODKARPACKIE","jarosławski","Pruchnik","#REF!",null,"#REF!"]
["PODKARPACKIE","jarosławski","Radymno","#REF!",null,"#REF!"]
["PODKARPACKIE","jarosławski","Rokietnica","#REF!",null,"#REF!"]
["PODKARPACKIE","jarosławski","Roźwienica","#REF!",null,"#REF!"]
["PODKARPACKIE","jarosławski","Wiązownica","#REF!",null,"#REF!"]
["PODKARPACKIE","jasielski","Brzyska","#REF!",null,"#REF!"]
["PODKARPACKIE","jasielski","Dębowiec","#REF!",null,"#REF!"]
["PODKARPACKIE","jasielski","Jasło","#REF!",null,"#REF!"]
["PODKARPACKIE","jasielski","Kołaczyce","#REF!",null,"#REF!"]
["PODKARPACKIE","jasielski","Krempna","#REF!",null,"#REF!"]
["PODKARPACKIE","jasielski","Nowy Żmigród","#REF!",null,"#REF!"]
["PODKARPACKIE","jasielski","Osiek Jasielski","#REF!",null,"#REF!"]
["PODKARPACKIE","jasielski","Skołyszyn","#REF!",null,"#REF!"]
["PODKARPACKIE","jasielski","Tarnowiec","#REF!",null,"#REF!"]
["PODKARPACKIE","kolbuszowski","Cmolas","#REF!",null,"#REF!"]
["PODKARPACKIE","kolbuszowski","Dzikowiec","#REF!",null,"#REF!"]
["PODKARPACKIE","kolbuszowski","Kolbuszowa","#REF!",null,"#REF!"]
["PODKARPACKIE","kolbuszowski","Majdan Królewski","#REF!",null,"#REF!"]
["PODKARPACKIE","kolbuszowski","Niwiska","#REF!",null,"#REF!"]
["PODKARPACKIE","kolbuszowski","Raniżów","#REF!",null,"#REF!"]
["PODKARPACKIE","Krosno","Krosno","#REF!",null,"#REF!"]
["PODKARPACKIE","krośnieński","Chorkówka","#REF!",null,"#REF!"]
["PODKARPACKIE","krośnieński","Dukla","#REF!",null,"#REF!"]
["PODKARPACKIE","krośnieński","Iwonicz-Zdrój","#REF!",null,"#REF!"]
["PODKARPACKIE","krośnieński","Jaśliska","#REF!",null,"#REF!"]
["PODKARPACKIE","krośnieński","Jedlicze","#REF!",null,"#REF!"]
["PODKARPACKIE","krośnieński","Korczyna","#REF!",null,"#REF!"]
["PODKARPACKIE","krośnieński","Krościenko Wyżne","#REF!",null,"#REF!"]
["PODKARPACKIE","krośnieński","Miejsce Piastowe","#REF!",null,"#REF!"]
["PODKARPACKIE","krośnieński","Rymanów","#REF!",null,"#REF!"]
["PODKARPACKIE","krośnieński","Wojaszówka","#REF!",null,"#REF!"]
["PODKARPACKIE","leski","Baligród","#REF!",null,"#REF!"]
["PODKARPACKIE","leski","Cisna","#REF!",null,"#REF!"]
["PODKARPACKIE","leski","Lesko","#REF!",null,"#REF!"]
["PODKARPACKIE","leski","Olszanica","#REF!",null,"#REF!"]
["PODKARPACKIE","leski","Solina","#REF!",null,"#REF!"]
["PODKARPACKIE","leżajski","Grodzisko Dolne","#REF!",null,"#REF!"]
["PODKARPACKIE","leżajski","Kuryłówka","#REF!",null,"#REF!"]
["PODKARPACKIE","leżajski","Leżajsk","#REF!",null,"#REF!"]
["PODKARPACKIE","leżajski","Nowa Sarzyna","#REF!",null,"#REF!"]
["PODKARPACKIE","lubaczowski","Cieszanów","#REF!",null,"#REF!"]
["PODKARPACKIE","lubaczowski","Horyniec-Zdrój","#REF!",null,"#REF!"]
["PODKARPACKIE","lubaczowski","Lubaczów","#REF!",null,"#REF!"]
["PODKARPACKIE","lubaczowski","Narol","#REF!",null,"#REF!"]
["PODKARPACKIE","lubaczowski","Oleszyce","#REF!",null,"#REF!"]
["PODKARPACKIE","lubaczowski","Stary Dzików","#REF!",null,"#REF!"]
["PODKARPACKIE","lubaczowski","Wielkie Oczy","#REF!",null,"#REF!"]
["PODKARPACKIE","łańcucki","Białobrzegi","#REF!",null,"#REF!"]
["PODKARPACKIE","łańcucki","Czarna","#REF!",null,"#REF!"]
["PODKARPACKIE","łańcucki","Łańcut","#REF!",null,"#REF!"]
["PODKARPACKIE","łańcucki","Markowa","#REF!",null,"#REF!"]
["PODKARPACKIE","łańcucki","Rakszawa","#REF!",null,"#REF!"]
["PODKARPACKIE","łańcucki","Żołynia","#REF!",null,"#REF!"]
["PODKARPACKIE","mielecki","Borowa","#REF!",null,"#REF!"]
["PODKARPACKIE","mielecki","Czermin","#REF!",null,"#REF!"]
["PODKARPACKIE","mielecki","Gawłuszowice","#REF!",null,"#REF!"]
["PODKARPACKIE","mielecki","Mielec","#REF!",null,"#REF!"]
["PODKARPACKIE","mielecki","Padew Narodowa","#REF!",null,"#REF!"]
["PODKARPACKIE","mielecki","Przecław","#REF!",null,"#REF!"]
["PODKARPACKIE","mielecki","Radomyśl Wielki","#REF!",null,"#REF!"]
["PODKARPACKIE","mielecki","Tuszów Narodowy","#REF!",null,"#REF!"]
["PODKARPACKIE","mielecki","Wadowice Górne","#REF!",null,"#REF!"]
["PODKARPACKIE","niżański","Harasiuki","#REF!",null,"#REF!"]
["PODKARPACKIE","niżański","Jarocin","#REF!",null,"#REF!"]
["PODKARPACKIE","niżański","Jeżowe","#REF!",null,"#REF!"]
["PODKARPACKIE","niżański","Krzeszów","#REF!",null,"#REF!"]
["PODKARPACKIE","niżański","Nisko","#REF!",null,"#REF!"]
["PODKARPACKIE","niżański","Rudnik nad Sanem","#REF!",null,"#REF!"]
["PODKARPACKIE","niżański","Ulanów","#REF!",null,"#REF!"]
["PODKARPACKIE","przemyski","Bircza","#REF!",null,"#REF!"]
["PODKARPACKIE","przemyski","Dubiecko","#REF!",null,"#REF!"]
["PODKARPACKIE","przemyski","Fredropol","#REF!",null,"#REF!"]
["PODKARPACKIE","przemyski","Krasiczyn","#REF!",null,"#REF!"]
["PODKARPACKIE","przemyski","Krzywcza","#REF!",null,"#REF!"]
["PODKARPACKIE","przemyski","Medyka","#REF!",null,"#REF!"]
["PODKARPACKIE","przemyski","Orły","#REF!",null,"#REF!"]
["PODKARPACKIE","przemyski","Przemyśl","#REF!",null,"#REF!"]
["PODKARPACKIE","przemyski","Stubno","#REF!",null,"#REF!"]
["PODKARPACKIE","przemyski","Żurawica","#REF!",null,"#REF!"]
["PODKARPACKIE","Przemyśl","Przemyśl","#REF!",null,"#REF!"]
["PODKARPACKIE","przeworski","Adamówka","#REF!",null,"#REF!"]
["PODKARPACKIE","przeworski","Gać","#REF!",null,"#REF!"]
["PODKARPACKIE","przeworski","Jawornik Polski","#REF!",null,"#REF!"]
["PODKARPACKIE","przeworski","Kańczuga","#REF!",null,"#REF!"]
["PODKARPACKIE","przeworski","Przeworsk","#REF!",null,"#REF!"]
["PODKARPACKIE","przeworski","Sieniawa","#REF!",null,"#REF!"]
["PODKARPACKIE","przeworski","Tryńcza","#REF!",null,"#REF!"]
["PODKARPACKIE","przeworski","Zarzecze","#REF!",null,"#REF!"]
["PODKARPACKIE","ropczycko-sędziszowski","Iwierzyce","#REF!",null,"#REF!"]
["PODKARPACKIE","ropczycko-sędziszowski","Ostrów","#REF!",null,"#REF!"]
["PODKARPACKIE","ropczycko-sędziszowski","Ropczyce","#REF!",null,"#REF!"]
["PODKARPACKIE","ropczycko-sędziszowski","Sędziszów Małopolski","#REF!",null,"#REF!"]
["PODKARPACKIE","ropczycko-sędziszowski","Wielopole Skrzyńskie","#REF!",null,"#REF!"]
["PODKARPACKIE","rzeszowski","Błażowa","#REF!",null,"#REF!"]
["PODKARPACKIE","rzeszowski","Boguchwała","#REF!",null,"#REF!"]
["PODKARPACKIE","rzeszowski","Chmielnik","#REF!",null,"#REF!"]
["PODKARPACKIE","rzeszowski","Dynów","#REF!",null,"#REF!"]
["PODKARPACKIE","rzeszowski","Głogów Małopolski","#REF!",null,"#REF!"]
["PODKARPACKIE","rzeszowski","Hyżne","#REF!",null,"#REF!"]
["PODKARPACKIE","rzeszowski","Kamień","#REF!",null,"#REF!"]
["PODKARPACKIE","rzeszowski","Krasne","#REF!",null,"#REF!"]
["PODKARPACKIE","rzeszowski","Lubenia","#REF!",null,"#REF!"]
["PODKARPACKIE","rzeszowski","Sokołów Małopolski","#REF!",null,"#REF!"]
["PODKARPACKIE","rzeszowski","Świlcza","#REF!",null,"#REF!"]
["PODKARPACKIE","rzeszowski","Trzebownisko","#REF!",null,"#REF!"]
["PODKARPACKIE","rzeszowski","Tyczyn","#REF!",null,"#REF!"]
["PODKARPACKIE","Rzeszów","Rzeszów","#REF!",null,"#REF!"]
["PODKARPACKIE","sanocki","Besko","#REF!",null,"#REF!"]
["PODKARPACKIE","sanocki","Bukowsko","#REF!",null,"#REF!"]
["PODKARPACKIE","sanocki","Komańcza","#REF!",null,"#REF!"]
["PODKARPACKIE","sanocki","Sanok","#REF!",null,"#REF!"]
["PODKARPACKIE","sanocki","Tyrawa Wołoska","#REF!",null,"#REF!"]
["PODKARPACKIE","sanocki","Zagórz","#REF!",null,"#REF!"]
["PODKARPACKIE","sanocki","Zarszyn","#REF!",null,"#REF!"]
["PODKARPACKIE","stalowowolski","Bojanów","#REF!",null,"#REF!"]
["PODKARPACKIE","stalowowolski","Pysznica","#REF!",null,"#REF!"]
["PODKARPACKIE","stalowowolski","Radomyśl nad Sanem","#REF!",null,"#REF!"]
["PODKARPACKIE","stalowowolski","Stalowa Wola","#REF!",null,"#REF!"]
["PODKARPACKIE","stalowowolski","Zaklików","#REF!",null,"#REF!"]
["PODKARPACKIE","stalowowolski","Zaleszany","#REF!",null,"#REF!"]
["PODKARPACKIE","strzyżowski","Czudec","#REF!",null,"#REF!"]
["PODKARPACKIE","strzyżowski","Frysztak","#REF!",null,"#REF!"]
["PODKARPACKIE","strzyżowski","Niebylec","#REF!",null,"#REF!"]
["PODKARPACKIE","strzyżowski","Strzyżów","#REF!",null,"#REF!"]
["PODKARPACKIE","strzyżowski","Wiśniowa","#REF!",null,"#REF!"]
["PODKARPACKIE","Tarnobrzeg","Tarnobrzeg","#REF!",null,"#REF!"]
["PODKARPACKIE","tarnobrzeski","Baranów Sandomierski","#REF!",null,"#REF!"]
["PODKARPACKIE","tarnobrzeski","Gorzyce","#REF!",null,"#REF!"]
["PODKARPACKIE","tarnobrzeski","Grębów","#REF!",null,"#REF!"]
["PODKARPACKIE","tarnobrzeski","Nowa Dęba","#REF!",null,"#REF!"]
["PODLASKIE","augustowski","Augustów","#REF!",null,"#REF!"]
["PODLASKIE","augustowski","Bargłów Kościelny","#REF!",null,"#REF!"]
["PODLASKIE","augustowski","Lipsk","#REF!",null,"#REF!"]
["PODLASKIE","augustowski","Nowinka","#REF!",null,"#REF!"]
["PODLASKIE","augustowski","Płaska","#REF!",null,"#REF!"]
["PODLASKIE","augustowski","Sztabin","#REF!",null,"#REF!"]
["PODLASKIE","białostocki","Choroszcz","#REF!",null,"#REF!"]
["PODLASKIE","białostocki","Czarna Białostocka","#REF!",null,"#REF!"]
["PODLASKIE","białostocki","Dobrzyniewo Duże","#REF!",null,"#REF!"]
["PODLASKIE","białostocki","Gródek","#REF!",null,"#REF!"]
["PODLASKIE","białostocki","Juchnowiec Kościelny","#REF!",null,"#REF!"]
["PODLASKIE","białostocki","Łapy","#REF!",null,"#REF!"]
["PODLASKIE","białostocki","Michałowo","#REF!",null,"#REF!"]
["PODLASKIE","białostocki","Poświętne","#REF!",null,"#REF!"]
["PODLASKIE","białostocki","Supraśl","#REF!",null,"#REF!"]
["PODLASKIE","białostocki","Suraż","#REF!",null,"#REF!"]
["PODLASKIE","białostocki","Turośń Kościelna","#REF!",null,"#REF!"]
["PODLASKIE","białostocki","Tykocin","#REF!",null,"#REF!"]
["PODLASKIE","białostocki","Wasilków","#REF!",null,"#REF!"]
["PODLASKIE","białostocki","Zabłudów","#REF!",null,"#REF!"]
["PODLASKIE","białostocki","Zawady","#REF!",null,"#REF!"]
["PODLASKIE","Białystok","Białystok","#REF!",null,"#REF!"]
["PODLASKIE","bielski","Bielsk Podlaski","#REF!",null,"#REF!"]
["PODLASKIE","bielski","Boćki","#REF!",null,"#REF!"]
["PODLASKIE","bielski","Brańsk","#REF!",null,"#REF!"]
["PODLASKIE","bielski","Orla","#REF!",null,"#REF!"]
["PODLASKIE","bielski","Rudka","#REF!",null,"#REF!"]
["PODLASKIE","bielski","Wyszki","#REF!",null,"#REF!"]
["PODLASKIE","grajewski","Grajewo","#REF!",null,"#REF!"]
["PODLASKIE","grajewski","Radziłów","#REF!",null,"#REF!"]
["PODLASKIE","grajewski","Rajgród","#REF!",null,"#REF!"]
["PODLASKIE","grajewski","Szczuczyn","#REF!",null,"#REF!"]
["PODLASKIE","grajewski","Wąsosz","#REF!",null,"#REF!"]
["PODLASKIE","hajnowski","Białowieża","#REF!",null,"#REF!"]
["PODLASKIE","hajnowski","Czeremcha","#REF!",null,"#REF!"]
["PODLASKIE","hajnowski","Czyże","#REF!",null,"#REF!"]
["PODLASKIE","hajnowski","Dubicze Cerkiewne","#REF!",null,"#REF!"]
["PODLASKIE","hajnowski","Hajnówka","#REF!",null,"#REF!"]
["PODLASKIE","hajnowski","Kleszczele","#REF!",null,"#REF!"]
["PODLASKIE","hajnowski","Narew","#REF!",null,"#REF!"]
["PODLASKIE","hajnowski","Narewka","#REF!",null,"#REF!"]
["PODLASKIE","kolneński","Grabowo","#REF!",null,"#REF!"]
["PODLASKIE","kolneński","Kolno","#REF!",null,"#REF!"]
["PODLASKIE","kolneński","Mały Płock","#REF!",null,"#REF!"]
["PODLASKIE","kolneński","Stawiski","#REF!",null,"#REF!"]
["PODLASKIE","kolneński","Turośl","#REF!",null,"#REF!"]
["PODLASKIE","Łomża","Łomża","#REF!",null,"#REF!"]
["PODLASKIE","łomżyński","Jedwabne","#REF!",null,"#REF!"]
["PODLASKIE","łomżyński","Łomża","#REF!",null,"#REF!"]
["PODLASKIE","łomżyński","Miastkowo","#REF!",null,"#REF!"]
["PODLASKIE","łomżyński","Nowogród","#REF!",null,"#REF!"]
["PODLASKIE","łomżyński","Piątnica","#REF!",null,"#REF!"]
["PODLASKIE","łomżyński","Przytuły","#REF!",null,"#REF!"]
["PODLASKIE","łomżyński","Śniadowo","#REF!",null,"#REF!"]
["PODLASKIE","łomżyński","Wizna","#REF!",null,"#REF!"]
["PODLASKIE","łomżyński","Zbójna","#REF!",null,"#REF!"]
["PODLASKIE","moniecki","Goniądz","#REF!",null,"#REF!"]
["PODLASKIE","moniecki","Jasionówka","#REF!",null,"#REF!"]
["PODLASKIE","moniecki","Jaświły","#REF!",null,"#REF!"]
["PODLASKIE","moniecki","Knyszyn","#REF!",null,"#REF!"]
["PODLASKIE","moniecki","Krypno","#REF!",null,"#REF!"]
["PODLASKIE","moniecki","Mońki","#REF!",null,"#REF!"]
["PODLASKIE","moniecki","Trzcianne","#REF!",null,"#REF!"]
["PODLASKIE","sejneński","Giby","#REF!",null,"#REF!"]
["PODLASKIE","sejneński","Krasnopol","#REF!",null,"#REF!"]
["PODLASKIE","sejneński","Puńsk","#REF!",null,"#REF!"]
["PODLASKIE","sejneński","Sejny","#REF!",null,"#REF!"]
["PODLASKIE","siemiatycki","Drohiczyn","#REF!",null,"#REF!"]
["PODLASKIE","siemiatycki","Dziadkowice","#REF!",null,"#REF!"]
["PODLASKIE","siemiatycki","Grodzisk","#REF!",null,"#REF!"]
["PODLASKIE","siemiatycki","Mielnik","#REF!",null,"#REF!"]
["PODLASKIE","siemiatycki","Milejczyce","#REF!",null,"#REF!"]
["PODLASKIE","siemiatycki","Nurzec-Stacja","#REF!",null,"#REF!"]
["PODLASKIE","siemiatycki","Perlejewo","#REF!",null,"#REF!"]
["PODLASKIE","siemiatycki","Siemiatycze","#REF!",null,"#REF!"]
["PODLASKIE","sokólski","Dąbrowa Białostocka","#REF!",null,"#REF!"]
["PODLASKIE","sokólski","Janów","#REF!",null,"#REF!"]
["PODLASKIE","sokólski","Korycin","#REF!",null,"#REF!"]
["PODLASKIE","sokólski","Krynki","#REF!",null,"#REF!"]
["PODLASKIE","sokólski","Kuźnica","#REF!",null,"#REF!"]
["PODLASKIE","sokólski","Nowy Dwór","#REF!",null,"#REF!"]
["PODLASKIE","sokólski","Sidra","#REF!",null,"#REF!"]
["PODLASKIE","sokólski","Sokółka","#REF!",null,"#REF!"]
["PODLASKIE","sokólski","Suchowola","#REF!",null,"#REF!"]
["PODLASKIE","sokólski","Szudziałowo","#REF!",null,"#REF!"]
["PODLASKIE","suwalski","Bakałarzewo","#REF!",null,"#REF!"]
["PODLASKIE","suwalski","Filipów","#REF!",null,"#REF!"]
["PODLASKIE","suwalski","Jeleniewo","#REF!",null,"#REF!"]
["PODLASKIE","suwalski","Przerośl","#REF!",null,"#REF!"]
["PODLASKIE","suwalski","Raczki","#REF!",null,"#REF!"]
["PODLASKIE","suwalski","Rutka-Tartak","#REF!",null,"#REF!"]
["PODLASKIE","suwalski","Suwałki","#REF!",null,"#REF!"]
["PODLASKIE","suwalski","Szypliszki","#REF!",null,"#REF!"]
["PODLASKIE","suwalski","Wiżajny","#REF!",null,"#REF!"]
["PODLASKIE","Suwałki","Suwałki","#REF!",null,"#REF!"]
["PODLASKIE","wysokomazowiecki","Ciechanowiec","#REF!",null,"#REF!"]
["PODLASKIE","wysokomazowiecki","Czyżew","#REF!",null,"#REF!"]
["PODLASKIE","wysokomazowiecki","Klukowo","#REF!",null,"#REF!"]
["PODLASKIE","wysokomazowiecki","Kobylin-Borzymy","#REF!",null,"#REF!"]
["PODLASKIE","wysokomazowiecki","Kulesze Kościelne","#REF!",null,"#REF!"]
["PODLASKIE","wysokomazowiecki","Nowe Piekuty","#REF!",null,"#REF!"]
["PODLASKIE","wysokomazowiecki","Sokoły","#REF!",null,"#REF!"]
["PODLASKIE","wysokomazowiecki","Szepietowo","#REF!",null,"#REF!"]
["PODLASKIE","wysokomazowiecki","Wysokie Mazowieckie","#REF!",null,"#REF!"]
["PODLASKIE","zambrowski","Kołaki Kościelne","#REF!",null,"#REF!"]
["PODLASKIE","zambrowski","Rutki","#REF!",null,"#REF!"]
["PODLASKIE","zambrowski","Szumowo","#REF!",null,"#REF!"]
["PODLASKIE","zambrowski","Zambrów","#REF!",null,"#REF!"]
["POMORSKIE","bytowski","Borzytuchom","#REF!",null,"#REF!"]
["POMORSKIE","bytowski","Bytów","#REF!",null,"#REF!"]
["POMORSKIE","bytowski","Czarna Dąbrówka","#REF!",null,"#REF!"]
["POMORSKIE","bytowski","Kołczygłowy","#REF!",null,"#REF!"]
["POMORSKIE","bytowski","Lipnica","#REF!",null,"#REF!"]
["POMORSKIE","bytowski","Miastko","#REF!",null,"#REF!"]
["POMORSKIE","bytowski","Parchowo","#REF!",null,"#REF!"]
["POMORSKIE","bytowski","Studzienice","#REF!",null,"#REF!"]
["POMORSKIE","bytowski","Trzebielino","#REF!",null,"#REF!"]
["POMORSKIE","bytowski","Tuchomie","#REF!",null,"#REF!"]
["POMORSKIE","chojnicki","Brusy","#REF!",null,"#REF!"]
["POMORSKIE","chojnicki","Chojnice","#REF!",null,"#REF!"]
["POMORSKIE","chojnicki","Czersk","#REF!",null,"#REF!"]
["POMORSKIE","chojnicki","Konarzyny","#REF!",null,"#REF!"]
["POMORSKIE","człuchowski","Czarne","#REF!",null,"#REF!"]
["POMORSKIE","człuchowski","Człuchów","#REF!",null,"#REF!"]
["POMORSKIE","człuchowski","Debrzno","#REF!",null,"#REF!"]
["POMORSKIE","człuchowski","Koczała","#REF!",null,"#REF!"]
["POMORSKIE","człuchowski","Przechlewo","#REF!",null,"#REF!"]
["POMORSKIE","człuchowski","Rzeczenica","#REF!",null,"#REF!"]
["POMORSKIE","Gdańsk","Gdańsk","#REF!",null,"#REF!"]
["POMORSKIE","gdański","Cedry Wielkie","#REF!",null,"#REF!"]
["POMORSKIE","gdański","Kolbudy","#REF!",null,"#REF!"]
["POMORSKIE","gdański","Pruszcz Gdański","#REF!",null,"#REF!"]
["POMORSKIE","gdański","Przywidz","#REF!",null,"#REF!"]
["POMORSKIE","gdański","Pszczółki","#REF!",null,"#REF!"]
["POMORSKIE","gdański","Suchy Dąb","#REF!",null,"#REF!"]
["POMORSKIE","gdański","Trąbki Wielkie","#REF!",null,"#REF!"]
["POMORSKIE","Gdynia","Gdynia","#REF!",null,"#REF!"]
["POMORSKIE","kartuski","Chmielno","#REF!",null,"#REF!"]
["POMORSKIE","kartuski","Kartuzy","#REF!",null,"#REF!"]
["POMORSKIE","kartuski","Przodkowo","#REF!",null,"#REF!"]
["POMORSKIE","kartuski","Sierakowice","#REF!",null,"#REF!"]
["POMORSKIE","kartuski","Somonino","#REF!",null,"#REF!"]
["POMORSKIE","kartuski","Stężyca","#REF!",null,"#REF!"]
["POMORSKIE","kartuski","Sulęczyno","#REF!",null,"#REF!"]
["POMORSKIE","kartuski","Żukowo","#REF!",null,"#REF!"]
["POMORSKIE","kościerski","Dziemiany","#REF!",null,"#REF!"]
["POMORSKIE","kościerski","Karsin","#REF!",null,"#REF!"]
["POMORSKIE","kościerski","Kościerzyna","#REF!",null,"#REF!"]
["POMORSKIE","kościerski","Liniewo","#REF!",null,"#REF!"]
["POMORSKIE","kościerski","Lipusz","#REF!",null,"#REF!"]
["POMORSKIE","kościerski","Nowa Karczma","#REF!",null,"#REF!"]
["POMORSKIE","kościerski","Stara Kiszewa","#REF!",null,"#REF!"]
["POMORSKIE","kwidzyński","Gardeja","#REF!",null,"#REF!"]
["POMORSKIE","kwidzyński","Kwidzyn","#REF!",null,"#REF!"]
["POMORSKIE","kwidzyński","Prabuty","#REF!",null,"#REF!"]
["POMORSKIE","kwidzyński","Ryjewo","#REF!",null,"#REF!"]
["POMORSKIE","kwidzyński","Sadlinki","#REF!",null,"#REF!"]
["POMORSKIE","lęborski","Cewice","#REF!",null,"#REF!"]
["POMORSKIE","lęborski","Lębork","#REF!",null,"#REF!"]
["POMORSKIE","lęborski","Łeba","#REF!",null,"#REF!"]
["POMORSKIE","lęborski","Nowa Wieś Lęborska","#REF!",null,"#REF!"]
["POMORSKIE","lęborski","Wicko","#REF!",null,"#REF!"]
["POMORSKIE","malborski","Lichnowy","#REF!",null,"#REF!"]
["POMORSKIE","malborski","Malbork","#REF!",null,"#REF!"]
["POMORSKIE","malborski","Miłoradz","#REF!",null,"#REF!"]
["POMORSKIE","malborski","Nowy Staw","#REF!",null,"#REF!"]
["POMORSKIE","malborski","Stare Pole","#REF!",null,"#REF!"]
["POMORSKIE","nowodworski","Krynica Morska","#REF!",null,"#REF!"]
["POMORSKIE","nowodworski","Nowy Dwór Gdański","#REF!",null,"#REF!"]
["POMORSKIE","nowodworski","Ostaszewo","#REF!",null,"#REF!"]
["POMORSKIE","nowodworski","Stegna","#REF!",null,"#REF!"]
["POMORSKIE","nowodworski","Sztutowo","#REF!",null,"#REF!"]
["POMORSKIE","pucki","Hel","#REF!",null,"#REF!"]
["POMORSKIE","pucki","Jastarnia","#REF!",null,"#REF!"]
["POMORSKIE","pucki","Kosakowo","#REF!",null,"#REF!"]
["POMORSKIE","pucki","Krokowa","#REF!",null,"#REF!"]
["POMORSKIE","pucki","Puck","#REF!",null,"#REF!"]
["POMORSKIE","pucki","Władysławowo","#REF!",null,"#REF!"]
["POMORSKIE","Słupsk","Słupsk","#REF!",null,"#REF!"]
["POMORSKIE","słupski","Damnica","#REF!",null,"#REF!"]
["POMORSKIE","słupski","Dębnica Kaszubska","#REF!",null,"#REF!"]
["POMORSKIE","słupski","Główczyce","#REF!",null,"#REF!"]
["POMORSKIE","słupski","Kępice","#REF!",null,"#REF!"]
["POMORSKIE","słupski","Kobylnica","#REF!",null,"#REF!"]
["POMORSKIE","słupski","Potęgowo","#REF!",null,"#REF!"]
["POMORSKIE","słupski","Słupsk","#REF!",null,"#REF!"]
["POMORSKIE","słupski","Smołdzino","#REF!",null,"#REF!"]
["POMORSKIE","słupski","Ustka","#REF!",null,"#REF!"]
["POMORSKIE","Sopot","Sopot","#REF!",null,"#REF!"]
["POMORSKIE","starogardzki","Bobowo","#REF!",null,"#REF!"]
["POMORSKIE","starogardzki","Czarna Woda","#REF!",null,"#REF!"]
["POMORSKIE","starogardzki","Kaliska","#REF!",null,"#REF!"]
["POMORSKIE","starogardzki","Lubichowo","#REF!",null,"#REF!"]
["POMORSKIE","starogardzki","Osieczna","#REF!",null,"#REF!"]
["POMORSKIE","starogardzki","Osiek","#REF!",null,"#REF!"]
["POMORSKIE","starogardzki","Skarszewy","#REF!",null,"#REF!"]
["POMORSKIE","starogardzki","Skórcz","#REF!",null,"#REF!"]
["POMORSKIE","starogardzki","Smętowo Graniczne","#REF!",null,"#REF!"]
["POMORSKIE","starogardzki","Starogard Gdański","#REF!",null,"#REF!"]
["POMORSKIE","starogardzki","Zblewo","#REF!",null,"#REF!"]
["POMORSKIE","sztumski","Dzierzgoń","#REF!",null,"#REF!"]
["POMORSKIE","sztumski","Mikołajki Pomorskie","#REF!",null,"#REF!"]
["POMORSKIE","sztumski","Stary Dzierzgoń","#REF!",null,"#REF!"]
["POMORSKIE","sztumski","Stary Targ","#REF!",null,"#REF!"]
["POMORSKIE","sztumski","Sztum","#REF!",null,"#REF!"]
["POMORSKIE","tczewski","Gniew","#REF!",null,"#REF!"]
["POMORSKIE","tczewski","Morzeszczyn","#REF!",null,"#REF!"]
["POMORSKIE","tczewski","Pelplin","#REF!",null,"#REF!"]
["POMORSKIE","tczewski","Subkowy","#REF!",null,"#REF!"]
["POMORSKIE","tczewski","Tczew","#REF!",null,"#REF!"]
["POMORSKIE","wejherowski","Choczewo","#REF!",null,"#REF!"]
["POMORSKIE","wejherowski","Gniewino","#REF!",null,"#REF!"]
["POMORSKIE","wejherowski","Linia","#REF!",null,"#REF!"]
["POMORSKIE","wejherowski","Luzino","#REF!",null,"#REF!"]
["POMORSKIE","wejherowski","Łęczyce","#REF!",null,"#REF!"]
["POMORSKIE","wejherowski","Reda","#REF!",null,"#REF!"]
["POMORSKIE","wejherowski","Rumia","#REF!",null,"#REF!"]
["POMORSKIE","wejherowski","Szemud","#REF!",null,"#REF!"]
["POMORSKIE","wejherowski","Wejherowo","#REF!",null,"#REF!"]
["ŚLĄSKIE","będziński","Będzin","#REF!",null,"#REF!"]
["ŚLĄSKIE","będziński","Bobrowniki","#REF!",null,"#REF!"]
["ŚLĄSKIE","będziński","Czeladź","#REF!",null,"#REF!"]
["ŚLĄSKIE","będziński","Mierzęcice","#REF!",null,"#REF!"]
["ŚLĄSKIE","będziński","Psary","#REF!",null,"#REF!"]
["ŚLĄSKIE","będziński","Siewierz","#REF!",null,"#REF!"]
["ŚLĄSKIE","będziński","Sławków","#REF!",null,"#REF!"]
["ŚLĄSKIE","będziński","Wojkowice","#REF!",null,"#REF!"]
["ŚLĄSKIE","bielski","Bestwina","#REF!",null,"#REF!"]
["ŚLĄSKIE","bielski","Buczkowice","#REF!",null,"#REF!"]
["ŚLĄSKIE","bielski","Czechowice-Dziedzice","#REF!",null,"#REF!"]
["ŚLĄSKIE","bielski","Jasienica","#REF!",null,"#REF!"]
["ŚLĄSKIE","bielski","Jaworze","#REF!",null,"#REF!"]
["ŚLĄSKIE","bielski","Kozy","#REF!",null,"#REF!"]
["ŚLĄSKIE","bielski","Porąbka","#REF!",null,"#REF!"]
["ŚLĄSKIE","bielski","Szczyrk","#REF!",null,"#REF!"]
["ŚLĄSKIE","bielski","Wilamowice","#REF!",null,"#REF!"]
["ŚLĄSKIE","bielski","Wilkowice","#REF!",null,"#REF!"]
["ŚLĄSKIE","Bielsko-Biała","Bielsko-Biała","#REF!",null,"#REF!"]
["ŚLĄSKIE","bieruńsko-lędziński","Bieruń","#REF!",null,"#REF!"]
["ŚLĄSKIE","bieruńsko-lędziński","Bojszowy","#REF!",null,"#REF!"]
["ŚLĄSKIE","bieruńsko-lędziński","Chełm Śląski","#REF!",null,"#REF!"]
["ŚLĄSKIE","bieruńsko-lędziński","Imielin","#REF!",null,"#REF!"]
["ŚLĄSKIE","bieruńsko-lędziński","Lędziny","#REF!",null,"#REF!"]
["ŚLĄSKIE","Bytom","Bytom","#REF!",null,"#REF!"]
["ŚLĄSKIE","Chorzów","Chorzów","#REF!",null,"#REF!"]
["ŚLĄSKIE","cieszyński","Brenna","#REF!",null,"#REF!"]
["ŚLĄSKIE","cieszyński","Chybie","#REF!",null,"#REF!"]
["ŚLĄSKIE","cieszyński","Cieszyn","#REF!",null,"#REF!"]
["ŚLĄSKIE","cieszyński","Dębowiec","#REF!",null,"#REF!"]
["ŚLĄSKIE","cieszyński","Goleszów","#REF!",null,"#REF!"]
["ŚLĄSKIE","cieszyński","Hażlach","#REF!",null,"#REF!"]
["ŚLĄSKIE","cieszyński","Istebna","#REF!",null,"#REF!"]
["ŚLĄSKIE","cieszyński","Skoczów","#REF!",null,"#REF!"]
["ŚLĄSKIE","cieszyński","Strumień","#REF!",null,"#REF!"]
["ŚLĄSKIE","cieszyński","Ustroń","#REF!",null,"#REF!"]
["ŚLĄSKIE","cieszyński","Wisła","#REF!",null,"#REF!"]
["ŚLĄSKIE","cieszyński","Zebrzydowice","#REF!",null,"#REF!"]
["ŚLĄSKIE","Częstochowa","Częstochowa","#REF!",null,"#REF!"]
["ŚLĄSKIE","częstochowski","Blachownia","#REF!",null,"#REF!"]
["ŚLĄSKIE","częstochowski","Dąbrowa Zielona","#REF!",null,"#REF!"]
["ŚLĄSKIE","częstochowski","Janów","#REF!",null,"#REF!"]
["ŚLĄSKIE","częstochowski","Kamienica Polska","#REF!",null,"#REF!"]
["ŚLĄSKIE","częstochowski","Kłomnice","#REF!",null,"#REF!"]
["ŚLĄSKIE","częstochowski","Koniecpol","#REF!",null,"#REF!"]
["ŚLĄSKIE","częstochowski","Konopiska","#REF!",null,"#REF!"]
["ŚLĄSKIE","częstochowski","Kruszyna","#REF!",null,"#REF!"]
["ŚLĄSKIE","częstochowski","Lelów","#REF!",null,"#REF!"]
["ŚLĄSKIE","częstochowski","Mstów","#REF!",null,"#REF!"]
["ŚLĄSKIE","częstochowski","Mykanów","#REF!",null,"#REF!"]
["ŚLĄSKIE","częstochowski","Olsztyn","#REF!",null,"#REF!"]
["ŚLĄSKIE","częstochowski","Poczesna","#REF!",null,"#REF!"]
["ŚLĄSKIE","częstochowski","Przyrów","#REF!",null,"#REF!"]
["ŚLĄSKIE","częstochowski","Rędziny","#REF!",null,"#REF!"]
["ŚLĄSKIE","częstochowski","Starcza","#REF!",null,"#REF!"]
["ŚLĄSKIE","Dąbrowa Górnicza","Dąbrowa Górnicza","#REF!",null,"#REF!"]
["ŚLĄSKIE","Gliwice","Gliwice","#REF!",null,"#REF!"]
["ŚLĄSKIE","gliwicki","Gierałtowice","#REF!",null,"#REF!"]
["ŚLĄSKIE","gliwicki","Knurów","#REF!",null,"#REF!"]
["ŚLĄSKIE","gliwicki","Pilchowice","#REF!",null,"#REF!"]
["ŚLĄSKIE","gliwicki","Pyskowice","#REF!",null,"#REF!"]
["ŚLĄSKIE","gliwicki","Rudziniec","#REF!",null,"#REF!"]
["ŚLĄSKIE","gliwicki","Sośnicowice","#REF!",null,"#REF!"]
["ŚLĄSKIE","gliwicki","Toszek","#REF!",null,"#REF!"]
["ŚLĄSKIE","gliwicki","Wielowieś","#REF!",null,"#REF!"]
["ŚLĄSKIE","Jastrzębie-Zdrój","Jastrzębie-Zdrój","#REF!",null,"#REF!"]
["ŚLĄSKIE","Jaworzno","Jaworzno","#REF!",null,"#REF!"]
["ŚLĄSKIE","Katowice","Katowice","#REF!",null,"#REF!"]
["ŚLĄSKIE","kłobucki","Kłobuck","#REF!",null,"#REF!"]
["ŚLĄSKIE","kłobucki","Krzepice","#REF!",null,"#REF!"]
["ŚLĄSKIE","kłobucki","Lipie","#REF!",null,"#REF!"]
["ŚLĄSKIE","kłobucki","Miedźno","#REF!",null,"#REF!"]
["ŚLĄSKIE","kłobucki","Opatów","#REF!",null,"#REF!"]
["ŚLĄSKIE","kłobucki","Panki","#REF!",null,"#REF!"]
["ŚLĄSKIE","kłobucki","Popów","#REF!",null,"#REF!"]
["ŚLĄSKIE","kłobucki","Przystajń","#REF!",null,"#REF!"]
["ŚLĄSKIE","kłobucki","Wręczyca Wielka","#REF!",null,"#REF!"]
["ŚLĄSKIE","lubliniecki","Boronów","#REF!",null,"#REF!"]
["ŚLĄSKIE","lubliniecki","Ciasna","#REF!",null,"#REF!"]
["ŚLĄSKIE","lubliniecki","Herby","#REF!",null,"#REF!"]
["ŚLĄSKIE","lubliniecki","Kochanowice","#REF!",null,"#REF!"]
["ŚLĄSKIE","lubliniecki","Koszęcin","#REF!",null,"#REF!"]
["ŚLĄSKIE","lubliniecki","Lubliniec","#REF!",null,"#REF!"]
["ŚLĄSKIE","lubliniecki","Pawonków","#REF!",null,"#REF!"]
["ŚLĄSKIE","lubliniecki","Woźniki","#REF!",null,"#REF!"]
["ŚLĄSKIE","mikołowski","Łaziska Górne","#REF!",null,"#REF!"]
["ŚLĄSKIE","mikołowski","Mikołów","#REF!",null,"#REF!"]
["ŚLĄSKIE","mikołowski","Ornontowice","#REF!",null,"#REF!"]
["ŚLĄSKIE","mikołowski","Orzesze","#REF!",null,"#REF!"]
["ŚLĄSKIE","mikołowski","Wyry","#REF!",null,"#REF!"]
["ŚLĄSKIE","Mysłowice","Mysłowice","#REF!",null,"#REF!"]
["ŚLĄSKIE","myszkowski","Koziegłowy","#REF!",null,"#REF!"]
["ŚLĄSKIE","myszkowski","Myszków","#REF!",null,"#REF!"]
["ŚLĄSKIE","myszkowski","Niegowa","#REF!",null,"#REF!"]
["ŚLĄSKIE","myszkowski","Poraj","#REF!",null,"#REF!"]
["ŚLĄSKIE","myszkowski","Żarki","#REF!",null,"#REF!"]
["ŚLĄSKIE","Piekary Śląskie","Piekary Śląskie","#REF!",null,"#REF!"]
["ŚLĄSKIE","pszczyński","Goczałkowice-Zdrój","#REF!",null,"#REF!"]
["ŚLĄSKIE","pszczyński","Kobiór","#REF!",null,"#REF!"]
["ŚLĄSKIE","pszczyński","Miedźna","#REF!",null,"#REF!"]
["ŚLĄSKIE","pszczyński","Pawłowice","#REF!",null,"#REF!"]
["ŚLĄSKIE","pszczyński","Pszczyna","#REF!",null,"#REF!"]
["ŚLĄSKIE","pszczyński","Suszec","#REF!",null,"#REF!"]
["ŚLĄSKIE","raciborski","Kornowac","#REF!",null,"#REF!"]
["ŚLĄSKIE","raciborski","Krzanowice","#REF!",null,"#REF!"]
["ŚLĄSKIE","raciborski","Krzyżanowice","#REF!",null,"#REF!"]
["ŚLĄSKIE","raciborski","Kuźnia Raciborska","#REF!",null,"#REF!"]
["ŚLĄSKIE","raciborski","Nędza","#REF!",null,"#REF!"]
["ŚLĄSKIE","raciborski","Pietrowice Wielkie","#REF!",null,"#REF!"]
["ŚLĄSKIE","raciborski","Racibórz","#REF!",null,"#REF!"]
["ŚLĄSKIE","raciborski","Rudnik","#REF!",null,"#REF!"]
["ŚLĄSKIE","Ruda Śląska","Ruda Śląska","#REF!",null,"#REF!"]
["ŚLĄSKIE","rybnicki","Czerwionka-Leszczyny","#REF!",null,"#REF!"]
["ŚLĄSKIE","rybnicki","Gaszowice","#REF!",null,"#REF!"]
["ŚLĄSKIE","rybnicki","Jejkowice","#REF!",null,"#REF!"]
["ŚLĄSKIE","rybnicki","Lyski","#REF!",null,"#REF!"]
["ŚLĄSKIE","rybnicki","Świerklany","#REF!",null,"#REF!"]
["ŚLĄSKIE","Rybnik","Rybnik","#REF!",null,"#REF!"]
["ŚLĄSKIE","Siemianowice Śląskie","Siemianowice Śląskie","#REF!",null,"#REF!"]
["ŚLĄSKIE","Sosnowiec","Sosnowiec","#REF!",null,"#REF!"]
["ŚLĄSKIE","Świętochłowice","Świętochłowice","#REF!",null,"#REF!"]
["ŚLĄSKIE","tarnogórski","Kalety","#REF!",null,"#REF!"]
["ŚLĄSKIE","tarnogórski","Krupski Młyn","#REF!",null,"#REF!"]
["ŚLĄSKIE","tarnogórski","Miasteczko Śląskie","#REF!",null,"#REF!"]
["ŚLĄSKIE","tarnogórski","Ożarowice","#REF!",null,"#REF!"]
["ŚLĄSKIE","tarnogórski","Radzionków","#REF!",null,"#REF!"]
["ŚLĄSKIE","tarnogórski","Świerklaniec","#REF!",null,"#REF!"]
["ŚLĄSKIE","tarnogórski","Tarnowskie Góry","#REF!",null,"#REF!"]
["ŚLĄSKIE","tarnogórski","Tworóg","#REF!",null,"#REF!"]
["ŚLĄSKIE","tarnogórski","Zbrosławice","#REF!",null,"#REF!"]
["ŚLĄSKIE","Tychy","Tychy","#REF!",null,"#REF!"]
["ŚLĄSKIE","wodzisławski","Godów","#REF!",null,"#REF!"]
["ŚLĄSKIE","wodzisławski","Gorzyce","#REF!",null,"#REF!"]
["ŚLĄSKIE","wodzisławski","Lubomia","#REF!",null,"#REF!"]
["ŚLĄSKIE","wodzisławski","Marklowice","#REF!",null,"#REF!"]
["ŚLĄSKIE","wodzisławski","Mszana","#REF!",null,"#REF!"]
["ŚLĄSKIE","wodzisławski","Pszów","#REF!",null,"#REF!"]
["ŚLĄSKIE","wodzisławski","Radlin","#REF!",null,"#REF!"]
["ŚLĄSKIE","wodzisławski","Rydułtowy","#REF!",null,"#REF!"]
["ŚLĄSKIE","wodzisławski","Wodzisław Śląski","#REF!",null,"#REF!"]
["ŚLĄSKIE","Zabrze","Zabrze","#REF!",null,"#REF!"]
["ŚLĄSKIE","zawierciański","Irządze","#REF!",null,"#REF!"]
["ŚLĄSKIE","zawierciański","Kroczyce","#REF!",null,"#REF!"]
["ŚLĄSKIE","zawierciański","Łazy","#REF!",null,"#REF!"]
["ŚLĄSKIE","zawierciański","Ogrodzieniec","#REF!",null,"#REF!"]
["ŚLĄSKIE","zawierciański","Pilica","#REF!",null,"#REF!"]
["ŚLĄSKIE","zawierciański","Poręba","#REF!",null,"#REF!"]
["ŚLĄSKIE","zawierciański","Szczekociny","#REF!",null,"#REF!"]
["ŚLĄSKIE","zawierciański","Włodowice","#REF!",null,"#REF!"]
["ŚLĄSKIE","zawierciański","Zawiercie","#REF!",null,"#REF!"]
["ŚLĄSKIE","zawierciański","Żarnowiec","#REF!",null,"#REF!"]
["ŚLĄSKIE","Żory","Żory","#REF!",null,"#REF!"]
["ŚLĄSKIE","żywiecki","Czernichów","#REF!",null,"#REF!"]
["ŚLĄSKIE","żywiecki","Gilowice","#REF!",null,"#REF!"]
["ŚLĄSKIE","żywiecki","Jeleśnia","#REF!",null,"#REF!"]
["ŚLĄSKIE","żywiecki","Koszarawa","#REF!",null,"#REF!"]
["ŚLĄSKIE","żywiecki","Lipowa","#REF!",null,"#REF!"]
["ŚLĄSKIE","żywiecki","Łękawica","#REF!",null,"#REF!"]
["ŚLĄSKIE","żywiecki","Łodygowice","#REF!",null,"#REF!"]
["ŚLĄSKIE","żywiecki","Milówka","#REF!",null,"#REF!"]
["ŚLĄSKIE","żywiecki","Radziechowy-Wieprz","#REF!",null,"#REF!"]
["ŚLĄSKIE","żywiecki","Rajcza","#REF!",null,"#REF!"]
["ŚLĄSKIE","żywiecki","Ślemień","#REF!",null,"#REF!"]
["ŚLĄSKIE","żywiecki","Świnna","#REF!",null,"#REF!"]
["ŚLĄSKIE","żywiecki","Ujsoły","#REF!",null,"#REF!"]
["ŚLĄSKIE","żywiecki","Węgierska Górka","#REF!",null,"#REF!"]
["ŚLĄSKIE","żywiecki","Żywiec","#REF!",null,"#REF!"]
["ŚWIĘTOKRZYSKIE","buski","Busko-Zdrój","#REF!",null,"#REF!"]
["ŚWIĘTOKRZYSKIE","buski","Gnojno","#REF!",null,"#REF!"]
["ŚWIĘTOKRZYSKIE","buski","Nowy Korczyn","#REF!",null,"#REF!"]
["ŚWIĘTOKRZYSKIE","buski","Pacanów","#REF!",null,"#REF!"]
["ŚWIĘTOKRZYSKIE","buski","Solec-Zdrój","#REF!",null,"#REF!"]
["ŚWIĘTOKRZYSKIE","buski","Stopnica","#REF!",null,"#REF!"]
["ŚWIĘTOKRZYSKIE","buski","Tuczępy","#REF!",null,"#REF!"]
["ŚWIĘTOKRZYSKIE","buski","Wiślica","#REF!",null,"#REF!"]
["ŚWIĘTOKRZYSKIE","jędrzejowski","Imielno","#REF!",null,"#REF!"]
["ŚWIĘTOKRZYSKIE","jędrzejowski","Jędrzejów","#REF!",null,"#REF!"]
["ŚWIĘTOKRZYSKIE","jędrzejowski","Małogoszcz","#REF!",null,"#REF!"]
["ŚWIĘTOKRZYSKIE","jędrzejowski","Nagłowice","#REF!",null,"#REF!"]
["ŚWIĘTOKRZYSKIE","jędrzejowski","Oksa","#REF!",null,"#REF!"]
["ŚWIĘTOKRZYSKIE","jędrzejowski","Sędziszów","#REF!",null,"#REF!"]
["ŚWIĘTOKRZYSKIE","jędrzejowski","Słupia","#REF!",null,"#REF!"]
["ŚWIĘTOKRZYSKIE","jędrzejowski","Sobków","#REF!",null,"#REF!"]
["ŚWIĘTOKRZYSKIE","jędrzejowski","Wodzisław","#REF!",null,"#REF!"]
["ŚWIĘTOKRZYSKIE","kazimierski","Bejsce","#REF!",null,"#REF!"]
["ŚWIĘTOKRZYSKIE","kazimierski","Czarnocin","#REF!",null,"#REF!"]
["ŚWIĘTOKRZYSKIE","kazimierski","Kazimierza Wielka","#REF!",null,"#REF!"]
["ŚWIĘTOKRZYSKIE","kazimierski","Opatowiec","#REF!",null,"#REF!"]
["ŚWIĘTOKRZYSKIE","kazimierski","Skalbmierz","#REF!",null,"#REF!"]
["ŚWIĘTOKRZYSKIE","Kielce","Kielce","#REF!",null,"#REF!"]
["ŚWIĘTOKRZYSKIE","kielecki","Bieliny","#REF!",null,"#REF!"]
["ŚWIĘTOKRZYSKIE","kielecki","Bodzentyn","#REF!",null,"#REF!"]
["ŚWIĘTOKRZYSKIE","kielecki","Chęciny","#REF!",null,"#REF!"]
["ŚWIĘTOKRZYSKIE","kielecki","Chmielnik","#REF!",null,"#REF!"]
["ŚWIĘTOKRZYSKIE","kielecki","Daleszyce","#REF!",null,"#REF!"]
["ŚWIĘTOKRZYSKIE","kielecki","Górno","#REF!",null,"#REF!"]
["ŚWIĘTOKRZYSKIE","kielecki","Łagów","#REF!",null,"#REF!"]
["ŚWIĘTOKRZYSKIE","kielecki","Łopuszno","#REF!",null,"#REF!"]
["ŚWIĘTOKRZYSKIE","kielecki","Masłów","#REF!",null,"#REF!"]
["ŚWIĘTOKRZYSKIE","kielecki","Miedziana Góra","#REF!",null,"#REF!"]
["ŚWIĘTOKRZYSKIE","kielecki","Mniów","#REF!",null,"#REF!"]
["ŚWIĘTOKRZYSKIE","kielecki","Morawica","#REF!",null,"#REF!"]
["ŚWIĘTOKRZYSKIE","kielecki","Nowa Słupia","#REF!",null,"#REF!"]
["ŚWIĘTOKRZYSKIE","kielecki","Piekoszów","#REF!",null,"#REF!"]
["ŚWIĘTOKRZYSKIE","kielecki","Pierzchnica","#REF!",null,"#REF!"]
["ŚWIĘTOKRZYSKIE","kielecki","Raków","#REF!",null,"#REF!"]
["ŚWIĘTOKRZYSKIE","kielecki","Sitkówka-Nowiny","#REF!",null,"#REF!"]
["ŚWIĘTOKRZYSKIE","kielecki","Strawczyn","#REF!",null,"#REF!"]
["ŚWIĘTOKRZYSKIE","kielecki","Zagnańsk","#REF!",null,"#REF!"]
["ŚWIĘTOKRZYSKIE","konecki","Fałków","#REF!",null,"#REF!"]
["ŚWIĘTOKRZYSKIE","konecki","Gowarczów","#REF!",null,"#REF!"]
["ŚWIĘTOKRZYSKIE","konecki","Końskie","#REF!",null,"#REF!"]
["ŚWIĘTOKRZYSKIE","konecki","Radoszyce","#REF!",null,"#REF!"]
["ŚWIĘTOKRZYSKIE","konecki","Ruda Maleniecka","#REF!",null,"#REF!"]
["ŚWIĘTOKRZYSKIE","konecki","Słupia Konecka","#REF!",null,"#REF!"]
["ŚWIĘTOKRZYSKIE","konecki","Smyków","#REF!",null,"#REF!"]
["ŚWIĘTOKRZYSKIE","konecki","Stąporków","#REF!",null,"#REF!"]
["ŚWIĘTOKRZYSKIE","opatowski","Baćkowice","#REF!",null,"#REF!"]
["ŚWIĘTOKRZYSKIE","opatowski","Iwaniska","#REF!",null,"#REF!"]
["ŚWIĘTOKRZYSKIE","opatowski","Lipnik","#REF!",null,"#REF!"]
["ŚWIĘTOKRZYSKIE","opatowski","Opatów","#REF!",null,"#REF!"]
["ŚWIĘTOKRZYSKIE","opatowski","Ożarów","#REF!",null,"#REF!"]
["ŚWIĘTOKRZYSKIE","opatowski","Sadowie","#REF!",null,"#REF!"]
["ŚWIĘTOKRZYSKIE","opatowski","Tarłów","#REF!",null,"#REF!"]
["ŚWIĘTOKRZYSKIE","opatowski","Wojciechowice","#REF!",null,"#REF!"]
["ŚWIĘTOKRZYSKIE","ostrowiecki","Bałtów","#REF!",null,"#REF!"]
["ŚWIĘTOKRZYSKIE","ostrowiecki","Bodzechów","#REF!",null,"#REF!"]
["ŚWIĘTOKRZYSKIE","ostrowiecki","Ćmielów","#REF!",null,"#REF!"]
["ŚWIĘTOKRZYSKIE","ostrowiecki","Kunów","#REF!",null,"#REF!"]
["ŚWIĘTOKRZYSKIE","ostrowiecki","Ostrowiec Świętokrzyski","#REF!",null,"#REF!"]
["ŚWIĘTOKRZYSKIE","ostrowiecki","Waśniów","#REF!",null,"#REF!"]
["ŚWIĘTOKRZYSKIE","pińczowski","Działoszyce","#REF!",null,"#REF!"]
["ŚWIĘTOKRZYSKIE","pińczowski","Kije","#REF!",null,"#REF!"]
["ŚWIĘTOKRZYSKIE","pińczowski","Michałów","#REF!",null,"#REF!"]
["ŚWIĘTOKRZYSKIE","pińczowski","Pińczów","#REF!",null,"#REF!"]
["ŚWIĘTOKRZYSKIE","pińczowski","Złota","#REF!",null,"#REF!"]
["ŚWIĘTOKRZYSKIE","sandomierski","Dwikozy","#REF!",null,"#REF!"]
["ŚWIĘTOKRZYSKIE","sandomierski","Klimontów","#REF!",null,"#REF!"]
["ŚWIĘTOKRZYSKIE","sandomierski","Koprzywnica","#REF!",null,"#REF!"]
["ŚWIĘTOKRZYSKIE","sandomierski","Łoniów","#REF!",null,"#REF!"]
["ŚWIĘTOKRZYSKIE","sandomierski","Obrazów","#REF!",null,"#REF!"]
["ŚWIĘTOKRZYSKIE","sandomierski","Samborzec","#REF!",null,"#REF!"]
["ŚWIĘTOKRZYSKIE","sandomierski","Sandomierz","#REF!",null,"#REF!"]
["ŚWIĘTOKRZYSKIE","sandomierski","Wilczyce","#REF!",null,"#REF!"]
["ŚWIĘTOKRZYSKIE","sandomierski","Zawichost","#REF!",null,"#REF!"]
["ŚWIĘTOKRZYSKIE","skarżyski","Bliżyn","#REF!",null,"#REF!"]
["ŚWIĘTOKRZYSKIE","skarżyski","Łączna","#REF!",null,"#REF!"]
["ŚWIĘTOKRZYSKIE","skarżyski","Skarżysko Kościelne","#REF!",null,"#REF!"]
["ŚWIĘTOKRZYSKIE","skarżyski","Skarżysko-Kamienna","#REF!",null,"#REF!"]
["ŚWIĘTOKRZYSKIE","skarżyski","Suchedniów","#REF!",null,"#REF!"]
["ŚWIĘTOKRZYSKIE","starachowicki","Brody","#REF!",null,"#REF!"]
["ŚWIĘTOKRZYSKIE","starachowicki","Mirzec","#REF!",null,"#REF!"]
["ŚWIĘTOKRZYSKIE","starachowicki","Pawłów","#REF!",null,"#REF!"]
["ŚWIĘTOKRZYSKIE","starachowicki","Starachowice","#REF!",null,"#REF!"]
["ŚWIĘTOKRZYSKIE","starachowicki","Wąchock","#REF!",null,"#REF!"]
["ŚWIĘTOKRZYSKIE","staszowski","Bogoria","#REF!",null,"#REF!"]
["ŚWIĘTOKRZYSKIE","staszowski","Łubnice","#REF!",null,"#REF!"]
["ŚWIĘTOKRZYSKIE","staszowski","Oleśnica","#REF!",null,"#REF!"]
["ŚWIĘTOKRZYSKIE","staszowski","Osiek","#REF!",null,"#REF!"]
["ŚWIĘTOKRZYSKIE","staszowski","Połaniec","#REF!",null,"#REF!"]
["ŚWIĘTOKRZYSKIE","staszowski","Rytwiany","#REF!",null,"#REF!"]
["ŚWIĘTOKRZYSKIE","staszowski","Staszów","#REF!",null,"#REF!"]
["ŚWIĘTOKRZYSKIE","staszowski","Szydłów","#REF!",null,"#REF!"]
["ŚWIĘTOKRZYSKIE","włoszczowski","Kluczewsko","#REF!",null,"#REF!"]
["ŚWIĘTOKRZYSKIE","włoszczowski","Krasocin","#REF!",null,"#REF!"]
["ŚWIĘTOKRZYSKIE","włoszczowski","Moskorzew","#REF!",null,"#REF!"]
["ŚWIĘTOKRZYSKIE","włoszczowski","Radków","#REF!",null,"#REF!"]
["ŚWIĘTOKRZYSKIE","włoszczowski","Secemin","#REF!",null,"#REF!"]
["ŚWIĘTOKRZYSKIE","włoszczowski","Włoszczowa","#REF!",null,"#REF!"]
["WARMIŃSKO-MAZURSKIE","bartoszycki","Bartoszyce","#REF!",null,"#REF!"]
["WARMIŃSKO-MAZURSKIE","bartoszycki","Bisztynek","#REF!",null,"#REF!"]
["WARMIŃSKO-MAZURSKIE","bartoszycki","Górowo Iławeckie","#REF!",null,"#REF!"]
["WARMIŃSKO-MAZURSKIE","bartoszycki","Sępopol","#REF!",null,"#REF!"]
["WARMIŃSKO-MAZURSKIE","braniewski","Braniewo","#REF!",null,"#REF!"]
["WARMIŃSKO-MAZURSKIE","braniewski","Frombork","#REF!",null,"#REF!"]
["WARMIŃSKO-MAZURSKIE","braniewski","Lelkowo","#REF!",null,"#REF!"]
["WARMIŃSKO-MAZURSKIE","braniewski","Pieniężno","#REF!",null,"#REF!"]
["WARMIŃSKO-MAZURSKIE","braniewski","Płoskinia","#REF!",null,"#REF!"]
["WARMIŃSKO-MAZURSKIE","braniewski","Wilczęta","#REF!",null,"#REF!"]
["WARMIŃSKO-MAZURSKIE","działdowski","Działdowo","#REF!",null,"#REF!"]
["WARMIŃSKO-MAZURSKIE","działdowski","Iłowo-Osada","#REF!",null,"#REF!"]
["WARMIŃSKO-MAZURSKIE","działdowski","Lidzbark","#REF!",null,"#REF!"]
["WARMIŃSKO-MAZURSKIE","działdowski","Płośnica","#REF!",null,"#REF!"]
["WARMIŃSKO-MAZURSKIE","działdowski","Rybno","#REF!",null,"#REF!"]
["WARMIŃSKO-MAZURSKIE","Elbląg","Elbląg","#REF!",null,"#REF!"]
["WARMIŃSKO-MAZURSKIE","elbląski","Elbląg","#REF!",null,"#REF!"]
["WARMIŃSKO-MAZURSKIE","elbląski","Godkowo","#REF!",null,"#REF!"]
["WARMIŃSKO-MAZURSKIE","elbląski","Gronowo Elbląskie","#REF!",null,"#REF!"]
["WARMIŃSKO-MAZURSKIE","elbląski","Markusy","#REF!",null,"#REF!"]
["WARMIŃSKO-MAZURSKIE","elbląski","Milejewo","#REF!",null,"#REF!"]
["WARMIŃSKO-MAZURSKIE","elbląski","Młynary","#REF!",null,"#REF!"]
["WARMIŃSKO-MAZURSKIE","elbląski","Pasłęk","#REF!",null,"#REF!"]
["WARMIŃSKO-MAZURSKIE","elbląski","Rychliki","#REF!",null,"#REF!"]
["WARMIŃSKO-MAZURSKIE","elbląski","Tolkmicko","#REF!",null,"#REF!"]
["WARMIŃSKO-MAZURSKIE","ełcki","Ełk","#REF!",null,"#REF!"]
["WARMIŃSKO-MAZURSKIE","ełcki","Kalinowo","#REF!",null,"#REF!"]
["WARMIŃSKO-MAZURSKIE","ełcki","Prostki","#REF!",null,"#REF!"]
["WARMIŃSKO-MAZURSKIE","ełcki","Stare Juchy","#REF!",null,"#REF!"]
["WARMIŃSKO-MAZURSKIE","giżycki","Giżycko","#REF!",null,"#REF!"]
["WARMIŃSKO-MAZURSKIE","giżycki","Kruklanki","#REF!",null,"#REF!"]
["WARMIŃSKO-MAZURSKIE","giżycki","Miłki","#REF!",null,"#REF!"]
["WARMIŃSKO-MAZURSKIE","giżycki","Ryn","#REF!",null,"#REF!"]
["WARMIŃSKO-MAZURSKIE","giżycki","Wydminy","#REF!",null,"#REF!"]
["WARMIŃSKO-MAZURSKIE","gołdapski","Banie Mazurskie","#REF!",null,"#REF!"]
["WARMIŃSKO-MAZURSKIE","gołdapski","Dubeninki","#REF!",null,"#REF!"]
["WARMIŃSKO-MAZURSKIE","gołdapski","Gołdap","#REF!",null,"#REF!"]
["WARMIŃSKO-MAZURSKIE","iławski","Iława","#REF!",null,"#REF!"]
["WARMIŃSKO-MAZURSKIE","iławski","Kisielice","#REF!",null,"#REF!"]
["WARMIŃSKO-MAZURSKIE","iławski","Lubawa","#REF!",null,"#REF!"]
["WARMIŃSKO-MAZURSKIE","iławski","Susz","#REF!",null,"#REF!"]
["WARMIŃSKO-MAZURSKIE","iławski","Zalewo","#REF!",null,"#REF!"]
["WARMIŃSKO-MAZURSKIE","kętrzyński","Barciany","#REF!",null,"#REF!"]
["WARMIŃSKO-MAZURSKIE","kętrzyński","Kętrzyn","#REF!",null,"#REF!"]
["WARMIŃSKO-MAZURSKIE","kętrzyński","Korsze","#REF!",null,"#REF!"]
["WARMIŃSKO-MAZURSKIE","kętrzyński","Reszel","#REF!",null,"#REF!"]
["WARMIŃSKO-MAZURSKIE","kętrzyński","Srokowo","#REF!",null,"#REF!"]
["WARMIŃSKO-MAZURSKIE","lidzbarski","Kiwity","#REF!",null,"#REF!"]
["WARMIŃSKO-MAZURSKIE","lidzbarski","Lidzbark Warmiński","#REF!",null,"#REF!"]
["WARMIŃSKO-MAZURSKIE","lidzbarski","Lubomino","#REF!",null,"#REF!"]
["WARMIŃSKO-MAZURSKIE","lidzbarski","Orneta","#REF!",null,"#REF!"]
["WARMIŃSKO-MAZURSKIE","mrągowski","Mikołajki","#REF!",null,"#REF!"]
["WARMIŃSKO-MAZURSKIE","mrągowski","Mrągowo","#REF!",null,"#REF!"]
["WARMIŃSKO-MAZURSKIE","mrągowski","Piecki","#REF!",null,"#REF!"]
["WARMIŃSKO-MAZURSKIE","mrągowski","Sorkwity","#REF!",null,"#REF!"]
["WARMIŃSKO-MAZURSKIE","nidzicki","Janowiec Kościelny","#REF!",null,"#REF!"]
["WARMIŃSKO-MAZURSKIE","nidzicki","Janowo","#REF!",null,"#REF!"]
["WARMIŃSKO-MAZURSKIE","nidzicki","Kozłowo","#REF!",null,"#REF!"]
["WARMIŃSKO-MAZURSKIE","nidzicki","Nidzica","#REF!",null,"#REF!"]
["WARMIŃSKO-MAZURSKIE","nowomiejski","Biskupiec","#REF!",null,"#REF!"]
["WARMIŃSKO-MAZURSKIE","nowomiejski","Grodziczno","#REF!",null,"#REF!"]
["WARMIŃSKO-MAZURSKIE","nowomiejski","Kurzętnik","#REF!",null,"#REF!"]
["WARMIŃSKO-MAZURSKIE","nowomiejski","Nowe Miasto Lubawskie","#REF!",null,"#REF!"]
["WARMIŃSKO-MAZURSKIE","olecki","Kowale Oleckie","#REF!",null,"#REF!"]
["WARMIŃSKO-MAZURSKIE","olecki","Olecko","#REF!",null,"#REF!"]
["WARMIŃSKO-MAZURSKIE","olecki","Świętajno","#REF!",null,"#REF!"]
["WARMIŃSKO-MAZURSKIE","olecki","Wieliczki","#REF!",null,"#REF!"]
["WARMIŃSKO-MAZURSKIE","Olsztyn","Olsztyn","#REF!",null,"#REF!"]
["WARMIŃSKO-MAZURSKIE","olsztyński","Barczewo","#REF!",null,"#REF!"]
["WARMIŃSKO-MAZURSKIE","olsztyński","Biskupiec","#REF!",null,"#REF!"]
["WARMIŃSKO-MAZURSKIE","olsztyński","Dobre Miasto","#REF!",null,"#REF!"]
["WARMIŃSKO-MAZURSKIE","olsztyński","Dywity","#REF!",null,"#REF!"]
["WARMIŃSKO-MAZURSKIE","olsztyński","Gietrzwałd","#REF!",null,"#REF!"]
["WARMIŃSKO-MAZURSKIE","olsztyński","Jeziorany","#REF!",null,"#REF!"]
["WARMIŃSKO-MAZURSKIE","olsztyński","Jonkowo","#REF!",null,"#REF!"]
["WARMIŃSKO-MAZURSKIE","olsztyński","Kolno","#REF!",null,"#REF!"]
["WARMIŃSKO-MAZURSKIE","olsztyński","Olsztynek","#REF!",null,"#REF!"]
["WARMIŃSKO-MAZURSKIE","olsztyński","Purda","#REF!",null,"#REF!"]
["WARMIŃSKO-MAZURSKIE","olsztyński","Stawiguda","#REF!",null,"#REF!"]
["WARMIŃSKO-MAZURSKIE","olsztyński","Świątki","#REF!",null,"#REF!"]
["WARMIŃSKO-MAZURSKIE","ostródzki","Dąbrówno","#REF!",null,"#REF!"]
["WARMIŃSKO-MAZURSKIE","ostródzki","Grunwald","#REF!",null,"#REF!"]
["WARMIŃSKO-MAZURSKIE","ostródzki","Łukta","#REF!",null,"#REF!"]
["WARMIŃSKO-MAZURSKIE","ostródzki","Małdyty","#REF!",null,"#REF!"]
["WARMIŃSKO-MAZURSKIE","ostródzki","Miłakowo","#REF!",null,"#REF!"]
["WARMIŃSKO-MAZURSKIE","ostródzki","Miłomłyn","#REF!",null,"#REF!"]
["WARMIŃSKO-MAZURSKIE","ostródzki","Morąg","#REF!",null,"#REF!"]
["WARMIŃSKO-MAZURSKIE","ostródzki","Ostróda","#REF!",null,"#REF!"]
["WARMIŃSKO-MAZURSKIE","piski","Biała Piska","#REF!",null,"#REF!"]
["WARMIŃSKO-MAZURSKIE","piski","Orzysz","#REF!",null,"#REF!"]
["WARMIŃSKO-MAZURSKIE","piski","Pisz","#REF!",null,"#REF!"]
["WARMIŃSKO-MAZURSKIE","piski","Ruciane-Nida","#REF!",null,"#REF!"]
["WARMIŃSKO-MAZURSKIE","szczycieński","Dźwierzuty","#REF!",null,"#REF!"]
["WARMIŃSKO-MAZURSKIE","szczycieński","Jedwabno","#REF!",null,"#REF!"]
["WARMIŃSKO-MAZURSKIE","szczycieński","Pasym","#REF!",null,"#REF!"]
["WARMIŃSKO-MAZURSKIE","szczycieński","Rozogi","#REF!",null,"#REF!"]
["WARMIŃSKO-MAZURSKIE","szczycieński","Szczytno","#REF!",null,"#REF!"]
["WARMIŃSKO-MAZURSKIE","szczycieński","Świętajno","#REF!",null,"#REF!"]
["WARMIŃSKO-MAZURSKIE","szczycieński","Wielbark","#REF!",null,"#REF!"]
["WARMIŃSKO-MAZURSKIE","węgorzewski","Budry","#REF!",null,"#REF!"]
["WARMIŃSKO-MAZURSKIE","węgorzewski","Pozezdrze","#REF!",null,"#REF!"]
["WARMIŃSKO-MAZURSKIE","węgorzewski","Węgorzewo","#REF!",null,"#REF!"]
["WIELKOPOLSKIE","chodzieski","Budzyń","#REF!",null,"#REF!"]
["WIELKOPOLSKIE","chodzieski","Chodzież","#REF!",null,"#REF!"]
["WIELKOPOLSKIE","chodzieski","Margonin","#REF!",null,"#REF!"]
["WIELKOPOLSKIE","chodzieski","Szamocin","#REF!",null,"#REF!"]
["WIELKOPOLSKIE","czarnkowsko-trzcianecki","Czarnków","#REF!",null,"#REF!"]
["WIELKOPOLSKIE","czarnkowsko-trzcianecki","Drawsko","#REF!",null,"#REF!"]
["WIELKOPOLSKIE","czarnkowsko-trzcianecki","Krzyż Wielkopolski","#REF!",null,"#REF!"]
["WIELKOPOLSKIE","czarnkowsko-trzcianecki","Lubasz","#REF!",null,"#REF!"]
["WIELKOPOLSKIE","czarnkowsko-trzcianecki","Połajewo","#REF!",null,"#REF!"]
["WIELKOPOLSKIE","czarnkowsko-trzcianecki","Trzcianka","#REF!",null,"#REF!"]
["WIELKOPOLSKIE","czarnkowsko-trzcianecki","Wieleń","#REF!",null,"#REF!"]
["WIELKOPOLSKIE","gnieźnieński","Czerniejewo","#REF!",null,"#REF!"]
["WIELKOPOLSKIE","gnieźnieński","Gniezno","#REF!",null,"#REF!"]
["WIELKOPOLSKIE","gnieźnieński","Kiszkowo","#REF!",null,"#REF!"]
["WIELKOPOLSKIE","gnieźnieński","Kłecko","#REF!",null,"#REF!"]
["WIELKOPOLSKIE","gnieźnieński","Łubowo","#REF!",null,"#REF!"]
["WIELKOPOLSKIE","gnieźnieński","Mieleszyn","#REF!",null,"#REF!"]
["WIELKOPOLSKIE","gnieźnieński","Niechanowo","#REF!",null,"#REF!"]
["WIELKOPOLSKIE","gnieźnieński","Trzemeszno","#REF!",null,"#REF!"]
["WIELKOPOLSKIE","gnieźnieński","Witkowo","#REF!",null,"#REF!"]
["WIELKOPOLSKIE","gostyński","Borek Wielkopolski","#REF!",null,"#REF!"]
["WIELKOPOLSKIE","gostyński","Gostyń","#REF!",null,"#REF!"]
["WIELKOPOLSKIE","gostyński","Krobia","#REF!",null,"#REF!"]
["WIELKOPOLSKIE","gostyński","Pępowo","#REF!",null,"#REF!"]
["WIELKOPOLSKIE","gostyński","Piaski","#REF!",null,"#REF!"]
["WIELKOPOLSKIE","gostyński","Pogorzela","#REF!",null,"#REF!"]
["WIELKOPOLSKIE","gostyński","Poniec","#REF!",null,"#REF!"]
["WIELKOPOLSKIE","grodziski","Granowo","#REF!",null,"#REF!"]
["WIELKOPOLSKIE","grodziski","Grodzisk Wielkopolski","#REF!",null,"#REF!"]
["WIELKOPOLSKIE","grodziski","Kamieniec","#REF!",null,"#REF!"]
["WIELKOPOLSKIE","grodziski","Rakoniewice","#REF!",null,"#REF!"]
["WIELKOPOLSKIE","grodziski","Wielichowo","#REF!",null,"#REF!"]
["WIELKOPOLSKIE","jarociński","Jaraczewo","#REF!",null,"#REF!"]
["WIELKOPOLSKIE","jarociński","Jarocin","#REF!",null,"#REF!"]
["WIELKOPOLSKIE","jarociński","Kotlin","#REF!",null,"#REF!"]
["WIELKOPOLSKIE","jarociński","Żerków","#REF!",null,"#REF!"]
["WIELKOPOLSKIE","kaliski","Blizanów","#REF!",null,"#REF!"]
["WIELKOPOLSKIE","kaliski","Brzeziny","#REF!",null,"#REF!"]
["WIELKOPOLSKIE","kaliski","Ceków-Kolonia","#REF!",null,"#REF!"]
["WIELKOPOLSKIE","kaliski","Godziesze Wielkie","#REF!",null,"#REF!"]
["WIELKOPOLSKIE","kaliski","Koźminek","#REF!",null,"#REF!"]
["WIELKOPOLSKIE","kaliski","Lisków","#REF!",null,"#REF!"]
["WIELKOPOLSKIE","kaliski","Mycielin","#REF!",null,"#REF!"]
["WIELKOPOLSKIE","kaliski","Opatówek","#REF!",null,"#REF!"]
["WIELKOPOLSKIE","kaliski","Stawiszyn","#REF!",null,"#REF!"]
["WIELKOPOLSKIE","kaliski","Szczytniki","#REF!",null,"#REF!"]
["WIELKOPOLSKIE","kaliski","Żelazków","#REF!",null,"#REF!"]
["WIELKOPOLSKIE","Kalisz","Kalisz","#REF!",null,"#REF!"]
["WIELKOPOLSKIE","kępiński","Baranów","#REF!",null,"#REF!"]
["WIELKOPOLSKIE","kępiński","Bralin","#REF!",null,"#REF!"]
["WIELKOPOLSKIE","kępiński","Kępno","#REF!",null,"#REF!"]
["WIELKOPOLSKIE","kępiński","Łęka Opatowska","#REF!",null,"#REF!"]
["WIELKOPOLSKIE","kępiński","Perzów","#REF!",null,"#REF!"]
["WIELKOPOLSKIE","kępiński","Rychtal","#REF!",null,"#REF!"]
["WIELKOPOLSKIE","kępiński","Trzcinica","#REF!",null,"#REF!"]
["WIELKOPOLSKIE","kolski","Babiak","#REF!",null,"#REF!"]
["WIELKOPOLSKIE","kolski","Chodów","#REF!",null,"#REF!"]
["WIELKOPOLSKIE","kolski","Dąbie","#REF!",null,"#REF!"]
["WIELKOPOLSKIE","kolski","Grzegorzew","#REF!",null,"#REF!"]
["WIELKOPOLSKIE","kolski","Kłodawa","#REF!",null,"#REF!"]
["WIELKOPOLSKIE","kolski","Koło","#REF!",null,"#REF!"]
["WIELKOPOLSKIE","kolski","Kościelec","#REF!",null,"#REF!"]
["WIELKOPOLSKIE","kolski","Olszówka","#REF!",null,"#REF!"]
["WIELKOPOLSKIE","kolski","Osiek Mały","#REF!",null,"#REF!"]
["WIELKOPOLSKIE","kolski","Przedecz","#REF!",null,"#REF!"]
["WIELKOPOLSKIE","Konin","Konin","#REF!",null,"#REF!"]
["WIELKOPOLSKIE","koniński","Golina","#REF!",null,"#REF!"]
["WIELKOPOLSKIE","koniński","Grodziec","#REF!",null,"#REF!"]
["WIELKOPOLSKIE","koniński","Kazimierz Biskupi","#REF!",null,"#REF!"]
["WIELKOPOLSKIE","koniński","Kleczew","#REF!",null,"#REF!"]
["WIELKOPOLSKIE","koniński","Kramsk","#REF!",null,"#REF!"]
["WIELKOPOLSKIE","koniński","Krzymów","#REF!",null,"#REF!"]
["WIELKOPOLSKIE","koniński","Rychwał","#REF!",null,"#REF!"]
["WIELKOPOLSKIE","koniński","Rzgów","#REF!",null,"#REF!"]
["WIELKOPOLSKIE","koniński","Skulsk","#REF!",null,"#REF!"]
["WIELKOPOLSKIE","koniński","Sompolno","#REF!",null,"#REF!"]
["WIELKOPOLSKIE","koniński","Stare Miasto","#REF!",null,"#REF!"]
["WIELKOPOLSKIE","koniński","Ślesin","#REF!",null,"#REF!"]
["WIELKOPOLSKIE","koniński","Wierzbinek","#REF!",null,"#REF!"]
["WIELKOPOLSKIE","koniński","Wilczyn","#REF!",null,"#REF!"]
["WIELKOPOLSKIE","kościański","Czempiń","#REF!",null,"#REF!"]
["WIELKOPOLSKIE","kościański","Kościan","#REF!",null,"#REF!"]
["WIELKOPOLSKIE","kościański","Krzywiń","#REF!",null,"#REF!"]
["WIELKOPOLSKIE","kościański","Śmigiel","#REF!",null,"#REF!"]
["WIELKOPOLSKIE","krotoszyński","Kobylin","#REF!",null,"#REF!"]
["WIELKOPOLSKIE","krotoszyński","Koźmin Wielkopolski","#REF!",null,"#REF!"]
["WIELKOPOLSKIE","krotoszyński","Krotoszyn","#REF!",null,"#REF!"]
["WIELKOPOLSKIE","krotoszyński","Rozdrażew","#REF!",null,"#REF!"]
["WIELKOPOLSKIE","krotoszyński","Sulmierzyce","#REF!",null,"#REF!"]
["WIELKOPOLSKIE","krotoszyński","Zduny","#REF!",null,"#REF!"]
["WIELKOPOLSKIE","leszczyński","Krzemieniewo","#REF!",null,"#REF!"]
["WIELKOPOLSKIE","leszczyński","Lipno","#REF!",null,"#REF!"]
["WIELKOPOLSKIE","leszczyński","Osieczna","#REF!",null,"#REF!"]
["WIELKOPOLSKIE","leszczyński","Rydzyna","#REF!",null,"#REF!"]
["WIELKOPOLSKIE","leszczyński","Święciechowa","#REF!",null,"#REF!"]
["WIELKOPOLSKIE","leszczyński","Wijewo","#REF!",null,"#REF!"]
["WIELKOPOLSKIE","leszczyński","Włoszakowice","#REF!",null,"#REF!"]
["WIELKOPOLSKIE","Leszno","Leszno","#REF!",null,"#REF!"]
["WIELKOPOLSKIE","międzychodzki","Chrzypsko Wielkie","#REF!",null,"#REF!"]
["WIELKOPOLSKIE","międzychodzki","Kwilcz","#REF!",null,"#REF!"]
["WIELKOPOLSKIE","międzychodzki","Międzychód","#REF!",null,"#REF!"]
["WIELKOPOLSKIE","międzychodzki","Sieraków","#REF!",null,"#REF!"]
["WIELKOPOLSKIE","nowotomyski","Kuślin","#REF!",null,"#REF!"]
["WIELKOPOLSKIE","nowotomyski","Lwówek","#REF!",null,"#REF!"]
["WIELKOPOLSKIE","nowotomyski","Miedzichowo","#REF!",null,"#REF!"]
["WIELKOPOLSKIE","nowotomyski","Nowy Tomyśl","#REF!",null,"#REF!"]
["WIELKOPOLSKIE","nowotomyski","Opalenica","#REF!",null,"#REF!"]
["WIELKOPOLSKIE","nowotomyski","Zbąszyń","#REF!",null,"#REF!"]
["WIELKOPOLSKIE","obornicki","Oborniki","#REF!",null,"#REF!"]
["WIELKOPOLSKIE","obornicki","Rogoźno","#REF!",null,"#REF!"]
["WIELKOPOLSKIE","obornicki","Ryczywół","#REF!",null,"#REF!"]
["WIELKOPOLSKIE","ostrowski","Nowe Skalmierzyce","#REF!",null,"#REF!"]
["WIELKOPOLSKIE","ostrowski","Odolanów","#REF!",null,"#REF!"]
["WIELKOPOLSKIE","ostrowski","Ostrów Wielkopolski","#REF!",null,"#REF!"]
["WIELKOPOLSKIE","ostrowski","Przygodzice","#REF!",null,"#REF!"]
["WIELKOPOLSKIE","ostrowski","Raszków","#REF!",null,"#REF!"]
["WIELKOPOLSKIE","ostrowski","Sieroszewice","#REF!",null,"#REF!"]
["WIELKOPOLSKIE","ostrowski","Sośnie","#REF!",null,"#REF!"]
["WIELKOPOLSKIE","ostrzeszowski","Czajków","#REF!",null,"#REF!"]
["WIELKOPOLSKIE","ostrzeszowski","Doruchów","#REF!",null,"#REF!"]
["WIELKOPOLSKIE","ostrzeszowski","Grabów nad Prosną","#REF!",null,"#REF!"]
["WIELKOPOLSKIE","ostrzeszowski","Kobyla Góra","#REF!",null,"#REF!"]
["WIELKOPOLSKIE","ostrzeszowski","Kraszewice","#REF!",null,"#REF!"]
["WIELKOPOLSKIE","ostrzeszowski","Mikstat","#REF!",null,"#REF!"]
["WIELKOPOLSKIE","ostrzeszowski","Ostrzeszów","#REF!",null,"#REF!"]
["WIELKOPOLSKIE","pilski","Białośliwie","#REF!",null,"#REF!"]
["WIELKOPOLSKIE","pilski","Kaczory","#REF!",null,"#REF!"]
["WIELKOPOLSKIE","pilski","Łobżenica","#REF!",null,"#REF!"]
["WIELKOPOLSKIE","pilski","Miasteczko Krajeńskie","#REF!",null,"#REF!"]
["WIELKOPOLSKIE","pilski","Piła","#REF!",null,"#REF!"]
["WIELKOPOLSKIE","pilski","Szydłowo","#REF!",null,"#REF!"]
["WIELKOPOLSKIE","pilski","Ujście","#REF!",null,"#REF!"]
["WIELKOPOLSKIE","pilski","Wyrzysk","#REF!",null,"#REF!"]
["WIELKOPOLSKIE","pilski","Wysoka","#REF!",null,"#REF!"]
["WIELKOPOLSKIE","pleszewski","Chocz","#REF!",null,"#REF!"]
["WIELKOPOLSKIE","pleszewski","Czermin","#REF!",null,"#REF!"]
["WIELKOPOLSKIE","pleszewski","Dobrzyca","#REF!",null,"#REF!"]
["WIELKOPOLSKIE","pleszewski","Gizałki","#REF!",null,"#REF!"]
["WIELKOPOLSKIE","pleszewski","Gołuchów","#REF!",null,"#REF!"]
["WIELKOPOLSKIE","pleszewski","Pleszew","#REF!",null,"#REF!"]
["WIELKOPOLSKIE","Poznań","Poznań","#REF!",null,"#REF!"]
["WIELKOPOLSKIE","poznański","Buk","#REF!",null,"#REF!"]
["WIELKOPOLSKIE","poznański","Czerwonak","#REF!",null,"#REF!"]
["WIELKOPOLSKIE","poznański","Dopiewo","#REF!",null,"#REF!"]
["WIELKOPOLSKIE","poznański","Kleszczewo","#REF!",null,"#REF!"]
["WIELKOPOLSKIE","poznański","Komorniki","#REF!",null,"#REF!"]
["WIELKOPOLSKIE","poznański","Kostrzyn","#REF!",null,"#REF!"]
["WIELKOPOLSKIE","poznański","Kórnik","#REF!",null,"#REF!"]
["WIELKOPOLSKIE","poznański","Luboń","#REF!",null,"#REF!"]
["WIELKOPOLSKIE","poznański","Mosina","#REF!",null,"#REF!"]
["WIELKOPOLSKIE","poznański","Murowana Goślina","#REF!",null,"#REF!"]
["WIELKOPOLSKIE","poznański","Pobiedziska","#REF!",null,"#REF!"]
["WIELKOPOLSKIE","poznański","Puszczykowo","#REF!",null,"#REF!"]
["WIELKOPOLSKIE","poznański","Rokietnica","#REF!",null,"#REF!"]
["WIELKOPOLSKIE","poznański","Stęszew","#REF!",null,"#REF!"]
["WIELKOPOLSKIE","poznański","Suchy Las","#REF!",null,"#REF!"]
["WIELKOPOLSKIE","poznański","Swarzędz","#REF!",null,"#REF!"]
["WIELKOPOLSKIE","poznański","Tarnowo Podgórne","#REF!",null,"#REF!"]
["WIELKOPOLSKIE","rawicki","Bojanowo","#REF!",null,"#REF!"]
["WIELKOPOLSKIE","rawicki","Jutrosin","#REF!",null,"#REF!"]
["WIELKOPOLSKIE","rawicki","Miejska Górka","#REF!",null,"#REF!"]
["WIELKOPOLSKIE","rawicki","Pakosław","#REF!",null,"#REF!"]
["WIELKOPOLSKIE","rawicki","Rawicz","#REF!",null,"#REF!"]
["WIELKOPOLSKIE","słupecki","Lądek","#REF!",null,"#REF!"]
["WIELKOPOLSKIE","słupecki","Orchowo","#REF!",null,"#REF!"]
["WIELKOPOLSKIE","słupecki","Ostrowite","#REF!",null,"#REF!"]
["WIELKOPOLSKIE","słupecki","Powidz","#REF!",null,"#REF!"]
["WIELKOPOLSKIE","słupecki","Słupca","#REF!",null,"#REF!"]
["WIELKOPOLSKIE","słupecki","Strzałkowo","#REF!",null,"#REF!"]
["WIELKOPOLSKIE","słupecki","Zagórów","#REF!",null,"#REF!"]
["WIELKOPOLSKIE","szamotulski","Duszniki","#REF!",null,"#REF!"]
["WIELKOPOLSKIE","szamotulski","Kaźmierz","#REF!",null,"#REF!"]
["WIELKOPOLSKIE","szamotulski","Obrzycko","#REF!",null,"#REF!"]
["WIELKOPOLSKIE","szamotulski","Ostroróg","#REF!",null,"#REF!"]
["WIELKOPOLSKIE","szamotulski","Pniewy","#REF!",null,"#REF!"]
["WIELKOPOLSKIE","szamotulski","Szamotuły","#REF!",null,"#REF!"]
["WIELKOPOLSKIE","szamotulski","Wronki","#REF!",null,"#REF!"]
["WIELKOPOLSKIE","średzki","Dominowo","#REF!",null,"#REF!"]
["WIELKOPOLSKIE","średzki","Krzykosy","#REF!",null,"#REF!"]
["WIELKOPOLSKIE","średzki","Nowe Miasto nad Wartą","#REF!",null,"#REF!"]
["WIELKOPOLSKIE","średzki","Środa Wielkopolska","#REF!",null,"#REF!"]
["WIELKOPOLSKIE","średzki","Zaniemyśl","#REF!",null,"#REF!"]
["WIELKOPOLSKIE","śremski","Brodnica","#REF!",null,"#REF!"]
["WIELKOPOLSKIE","śremski","Dolsk","#REF!",null,"#REF!"]
["WIELKOPOLSKIE","śremski","Książ Wielkopolski","#REF!",null,"#REF!"]
["WIELKOPOLSKIE","śremski","Śrem","#REF!",null,"#REF!"]
["WIELKOPOLSKIE","turecki","Brudzew","#REF!",null,"#REF!"]
["WIELKOPOLSKIE","turecki","Dobra","#REF!",null,"#REF!"]
["WIELKOPOLSKIE","turecki","Kawęczyn","#REF!",null,"#REF!"]
["WIELKOPOLSKIE","turecki","Malanów","#REF!",null,"#REF!"]
["WIELKOPOLSKIE","turecki","Przykona","#REF!",null,"#REF!"]
["WIELKOPOLSKIE","turecki","Tuliszków","#REF!",null,"#REF!"]
["WIELKOPOLSKIE","turecki","Turek","#REF!",null,"#REF!"]
["WIELKOPOLSKIE","turecki","Władysławów","#REF!",null,"#REF!"]
["WIELKOPOLSKIE","wągrowiecki","Damasławek","#REF!",null,"#REF!"]
["WIELKOPOLSKIE","wągrowiecki","Gołańcz","#REF!",null,"#REF!"]
["WIELKOPOLSKIE","wągrowiecki","Mieścisko","#REF!",null,"#REF!"]
["WIELKOPOLSKIE","wągrowiecki","Skoki","#REF!",null,"#REF!"]
["WIELKOPOLSKIE","wągrowiecki","Wapno","#REF!",null,"#REF!"]
["WIELKOPOLSKIE","wągrowiecki","Wągrowiec","#REF!",null,"#REF!"]
["WIELKOPOLSKIE","wolsztyński","Przemęt","#REF!",null,"#REF!"]
["WIELKOPOLSKIE","wolsztyński","Siedlec","#REF!",null,"#REF!"]
["WIELKOPOLSKIE","wolsztyński","Wolsztyn","#REF!",null,"#REF!"]
["WIELKOPOLSKIE","wrzesiński","Kołaczkowo","#REF!",null,"#REF!"]
["WIELKOPOLSKIE","wrzesiński","Miłosław","#REF!",null,"#REF!"]
["WIELKOPOLSKIE","wrzesiński","Nekla","#REF!",null,"#REF!"]
["WIELKOPOLSKIE","wrzesiński","Pyzdry","#REF!",null,"#REF!"]
["WIELKOPOLSKIE","wrzesiński","Września","#REF!",null,"#REF!"]
["WIELKOPOLSKIE","złotowski","Jastrowie","#REF!",null,"#REF!"]
["WIELKOPOLSKIE","złotowski","Krajenka","#REF!",null,"#REF!"]
["WIELKOPOLSKIE","złotowski","Lipka","#REF!",null,"#REF!"]
["WIELKOPOLSKIE","złotowski","Okonek","#REF!",null,"#REF!"]
["WIELKOPOLSKIE","złotowski","Tarnówka","#REF!",null,"#REF!"]
["WIELKOPOLSKIE","złotowski","Zakrzewo","#REF!",null,"#REF!"]
["WIELKOPOLSKIE","złotowski","Złotów","#REF!",null,"#REF!"]
["ZACHODNIOPOMORSKIE","białogardzki","Białogard","#REF!",null,"#REF!"]
["ZACHODNIOPOMORSKIE","białogardzki","Karlino","#REF!",null,"#REF!"]
["ZACHODNIOPOMORSKIE","białogardzki","Tychowo","#REF!",null,"#REF!"]
["ZACHODNIOPOMORSKIE","choszczeński","Bierzwnik","#REF!",null,"#REF!"]
["ZACHODNIOPOMORSKIE","choszczeński","Choszczno","#REF!",null,"#REF!"]
["ZACHODNIOPOMORSKIE","choszczeński","Drawno","#REF!",null,"#REF!"]
["ZACHODNIOPOMORSKIE","choszczeński","Krzęcin","#REF!",null,"#REF!"]
["ZACHODNIOPOMORSKIE","choszczeński","Pełczyce","#REF!",null,"#REF!"]
["ZACHODNIOPOMORSKIE","choszczeński","Recz","#REF!",null,"#REF!"]
["ZACHODNIOPOMORSKIE","drawski","Czaplinek","#REF!",null,"#REF!"]
["ZACHODNIOPOMORSKIE","drawski","Drawsko Pomorskie","#REF!",null,"#REF!"]
["ZACHODNIOPOMORSKIE","drawski","Kalisz Pomorski","#REF!",null,"#REF!"]
["ZACHODNIOPOMORSKIE","drawski","Wierzchowo","#REF!",null,"#REF!"]
["ZACHODNIOPOMORSKIE","drawski","Złocieniec","#REF!",null,"#REF!"]
["ZACHODNIOPOMORSKIE","goleniowski","Goleniów","#REF!",null,"#REF!"]
["ZACHODNIOPOMORSKIE","goleniowski","Maszewo","#REF!",null,"#REF!"]
["ZACHODNIOPOMORSKIE","goleniowski","Nowogard","#REF!",null,"#REF!"]
["ZACHODNIOPOMORSKIE","goleniowski","Osina","#REF!",null,"#REF!"]
["ZACHODNIOPOMORSKIE","goleniowski","Przybiernów","#REF!",null,"#REF!"]
["ZACHODNIOPOMORSKIE","goleniowski","Stepnica","#REF!",null,"#REF!"]
["ZACHODNIOPOMORSKIE","gryficki","Brojce","#REF!",null,"#REF!"]
["ZACHODNIOPOMORSKIE","gryficki","Gryfice","#REF!",null,"#REF!"]
["ZACHODNIOPOMORSKIE","gryficki","Karnice","#REF!",null,"#REF!"]
["ZACHODNIOPOMORSKIE","gryficki","Płoty","#REF!",null,"#REF!"]
["ZACHODNIOPOMORSKIE","gryficki","Rewal","#REF!",null,"#REF!"]
["ZACHODNIOPOMORSKIE","gryficki","Trzebiatów","#REF!",null,"#REF!"]
["ZACHODNIOPOMORSKIE","gryfiński","Banie","#REF!",null,"#REF!"]
["ZACHODNIOPOMORSKIE","gryfiński","Cedynia","#REF!",null,"#REF!"]
["ZACHODNIOPOMORSKIE","gryfiński","Chojna","#REF!",null,"#REF!"]
["ZACHODNIOPOMORSKIE","gryfiński","Gryfino","#REF!",null,"#REF!"]
["ZACHODNIOPOMORSKIE","gryfiński","Mieszkowice","#REF!",null,"#REF!"]
["ZACHODNIOPOMORSKIE","gryfiński","Moryń","#REF!",null,"#REF!"]
["ZACHODNIOPOMORSKIE","gryfiński","Stare Czarnowo","#REF!",null,"#REF!"]
["ZACHODNIOPOMORSKIE","gryfiński","Trzcińsko-Zdrój","#REF!",null,"#REF!"]
["ZACHODNIOPOMORSKIE","gryfiński","Widuchowa","#REF!",null,"#REF!"]
["ZACHODNIOPOMORSKIE","kamieński","Dziwnów","#REF!",null,"#REF!"]
["ZACHODNIOPOMORSKIE","kamieński","Golczewo","#REF!",null,"#REF!"]
["ZACHODNIOPOMORSKIE","kamieński","Kamień Pomorski","#REF!",null,"#REF!"]
["ZACHODNIOPOMORSKIE","kamieński","Międzyzdroje","#REF!",null,"#REF!"]
["ZACHODNIOPOMORSKIE","kamieński","Świerzno"]
["ZACHODNIOPOMORSKIE","kamieński","Wolin"]
["ZACHODNIOPOMORSKIE","kołobrzeski","Dygowo"]
["ZACHODNIOPOMORSKIE","kołobrzeski","Gościno"]
["ZACHODNIOPOMORSKIE","kołobrzeski","Kołobrzeg"]
["ZACHODNIOPOMORSKIE","kołobrzeski","Rymań"]
["ZACHODNIOPOMORSKIE","kołobrzeski","Siemyśl"]
["ZACHODNIOPOMORSKIE","kołobrzeski","Ustronie Morskie"]
["ZACHODNIOPOMORSKIE","Koszalin","Koszalin"]
["ZACHODNIOPOMORSKIE","koszaliński","Będzino"]
["ZACHODNIOPOMORSKIE","koszaliński","Biesiekierz"]
["ZACHODNIOPOMORSKIE","koszaliński","Bobolice"]
["ZACHODNIOPOMORSKIE","koszaliński","Manowo"]
["ZACHODNIOPOMORSKIE","koszaliński","Mielno"]
["ZACHODNIOPOMORSKIE","koszaliński","Polanów"]
["ZACHODNIOPOMORSKIE","koszaliński","Sianów"]
["ZACHODNIOPOMORSKIE","koszaliński","Świeszyno"]
["ZACHODNIOPOMORSKIE","łobeski","Dobra"]
["ZACHODNIOPOMORSKIE","łobeski","Łobez"]
["ZACHODNIOPOMORSKIE","łobeski","Radowo Małe"]
["ZACHODNIOPOMORSKIE","łobeski","Resko"]
["ZACHODNIOPOMORSKIE","łobeski","Węgorzyno"]
["ZACHODNIOPOMORSKIE","myśliborski","Barlinek"]
["ZACHODNIOPOMORSKIE","myśliborski","Boleszkowice"]
["ZACHODNIOPOMORSKIE","myśliborski","Dębno"]
["ZACHODNIOPOMORSKIE","myśliborski","Myślibórz"]
["ZACHODNIOPOMORSKIE","myśliborski","Nowogródek Pomorski"]
["ZACHODNIOPOMORSKIE","policki","Dobra (Szczecińska)"]
["ZACHODNIOPOMORSKIE","policki","Kołbaskowo"]
["ZACHODNIOPOMORSKIE","policki","Nowe Warpno"]
["ZACHODNIOPOMORSKIE","policki","Police"]
["ZACHODNIOPOMORSKIE","pyrzycki","Bielice"]
["ZACHODNIOPOMORSKIE","pyrzycki","Kozielice"]
["ZACHODNIOPOMORSKIE","pyrzycki","Lipiany"]
["ZACHODNIOPOMORSKIE","pyrzycki","Przelewice"]
["ZACHODNIOPOMORSKIE","pyrzycki","Pyrzyce"]
["ZACHODNIOPOMORSKIE","pyrzycki","Warnice"]
["ZACHODNIOPOMORSKIE","sławieński","Darłowo"]
["ZACHODNIOPOMORSKIE","sławieński","Malechowo"]
["ZACHODNIOPOMORSKIE","sławieński","Postomino"]
["ZACHODNIOPOMORSKIE","sławieński","Sławno"]
["ZACHODNIOPOMORSKIE","stargardzki","Chociwel"]
["ZACHODNIOPOMORSKIE","stargardzki","Dobrzany"]
["ZACHODNIOPOMORSKIE","stargardzki","Dolice"]
["ZACHODNIOPOMORSKIE","stargardzki","Ińsko"]
["ZACHODNIOPOMORSKIE","stargardzki","Kobylanka"]
["ZACHODNIOPOMORSKIE","stargardzki","Marianowo"]
["ZACHODNIOPOMORSKIE","stargardzki","Stara Dąbrowa"]
["ZACHODNIOPOMORSKIE","stargardzki","Stargard"]
["ZACHODNIOPOMORSKIE","stargardzki","Suchań"]
["ZACHODNIOPOMORSKIE","Szczecin","Szczecin"]
["ZACHODNIOPOMORSKIE","szczecinecki","Barwice"]
["ZACHODNIOPOMORSKIE","szczecinecki","Biały Bór"]
["ZACHODNIOPOMORSKIE","szczecinecki","Borne Sulinowo"]
["ZACHODNIOPOMORSKIE","szczecinecki","Grzmiąca"]
["ZACHODNIOPOMORSKIE","szczecinecki","Szczecinek"]
["ZACHODNIOPOMORSKIE","świdwiński","Brzeżno"]
["ZACHODNIOPOMORSKIE","świdwiński","Połczyn-Zdrój"]
["ZACHODNIOPOMORSKIE","świdwiński","Rąbino"]
["ZACHODNIOPOMORSKIE","świdwiński","Sławoborze"]
["ZACHODNIOPOMORSKIE","świdwiński","Świdwin"]
["ZACHODNIOPOMORSKIE","Świnoujście","Świnoujście"]
["ZACHODNIOPOMORSKIE","wałecki","Człopa"]
["ZACHODNIOPOMORSKIE","wałecki","Mirosławiec"]
["ZACHODNIOPOMORSKIE","wałecki","Tuczno"]
["ZACHODNIOPOMORSKIE","wałecki","Wałcz"]